Workbook

Sheet Skippers List
A1: Day Sailer scoring workbook
A2: This workbook is comprised of this instruction page, Sheet1 as a template page, 23 weeks of score sheets and a Summary page.
A3: A score keeper must enter the placement of each boat for each race (up to 15 races per day). Formulas will calculate scores and daily placement.
A4: Formulas in the Summary sheet compile the results over the entire season to determine seasonal placement of competitors.
A6: Instructions to start a new year:
A7: 1. On this page, Fill in all the sail numbers and skipper names (up to 20 names).
A8: 2. Select the Yellow cells then Sort the list of numbers and names - DO NOT re-sort after the season starts or the scores will not be accurate!
A9: 3. Click on "Sheet1" and type in the Date of your first race - all the dates in the other score sheets will update for each week.
A10: 4. Double click on each score sheet tab (NOT Sheet1) and re-name the tab to the proper date. All the formulas in the Summary sheet will update automatically.
A11: 5. Once racing starts, record finishing placements for each race on the score sheet for the proper date.
B13: Skippers List
B14: Sail Number | C14: Skipper | E14: Scoring Explanation
A15: 1 | B15: 1041 | C15: Ted Sojka | E15: The scoring system employed here factors in the number of boats racing plus a "high point" finishing placement for each boat in each race. There is also a 0.5 point bonus for placing first in a race. For example, if there are 4 boats competing in race #1, each boat earns 4 points for competing; in addition, the first place boat receives another 4 points plus the .5 point bonus for finishing first, for a total of 8.5 points. The second place boat receives 4 points plus 3 points, third receives 4 points plus 2 points, and 4th receives 4 points plus 1 point. Any boat not completing a race receives 0 points for that race. This should encourage all racers to participate in every race and to place as high as possible. The "Summary" page tracks weekly scores over the course of the season to establish an overall seasonal ranking.
A16: 2 | B16: 2753 | C16: Gene McNurlen
A17: 3 | B17: 3097 | C17: Jon Feist
A18: 4 | B18: 3383 | C18: Harlan Gleason
A19: 5 | B19: 4836 | C19: Nate Melby
A20: 6 | B20: 5251 | C20: Jordan Cerney
A21: 7 | B21: 11062 | C21: Dave Vind
A22: 8 | B22: 11791 | C22: Stephen Taylor
A23: 9 | B23: 13030 | C23: Lee Peterson
A24: 10 | C24: Chas Schelin
A25: 11 | C25: Claudia Schneller
A26: 12 | C26: Craig/Ellen Cutting
A27: 13 | C27: Dane Lamb
A28: 14 | C28: Don Anderson (Mouette)
A29: 15 | C29: Ginny Wintersteen
A30: 16 | B30: 3011 | C30: Karl Maas
A31: 17 | C31: Paul Krause
A32: 18 | C32: Scott Iverson
A33: 19 | C33: Tom Dubisar
A34: 20 | C34: Andy Plzak

Sheet Sheet1
A1: Day Sailer Racing
A2: 2016-05-11 | B2: Race # -> | C2: =IF(COUNT(C4:C23)>0,1,"") ->  | D2: =IF(COUNT(D4:D23)>0,1+C2,"") ->  | R2: Grand Total | Y2: Race # -> | Z2: =IF(COUNT(Z4:Z23)>0,1,"") ->  | AA2: =IF(COUNT(AA4:AA23)>0,1+Z2,"") -> 
A3: Skipper/Sail Number | B3: # of boats --> Ranking Below | C3: =COUNT(C4:C23) -> 0 | D3: =COUNT(D4:D23) -> 0 | E3: 0 | F3: 0 | G3: 0 | H3: 0 | I3: 0 | J3: 0 | K3: 0 | L3: 0 | M3: 0 | N3: 0 | O3: 0 | P3: 0 | Q3: 0 | R3: Points
A4: =CONCATENATE('Skippers List'!B15," ",'Skippers List'!C15) -> 1041 Ted Sojka | B4: =IF(R4<>"",_xlfn.RANK.EQ(R4,$R$4:$R$23,0),"") ->  | R4: =IF(SUM(Z4:AN4)>0,SUM(Z4:AN4),"") ->  | Z4: =IF(C4=1,C$3-C4+1+C$3+0.5,IF(C4>1,C$3-C4+1+C$3,IF(C4<1,""))) -> 
A5: =CONCATENATE('Skippers List'!B16," ",'Skippers List'!C16) -> 2753 Gene McNurlen | B5: =IF(R5<>"",_xlfn.RANK.EQ(R5,$R$4:$R$23,0),"") ->  | R5: =IF(SUM(Z5:AN5)>0,SUM(Z5:AN5),"") ->  | Z5: =IF(C5=1,C$3-C5+1+C$3+0.5,IF(C5>1,C$3-C5+1+C$3,IF(C5<1,""))) ->  | AA5: =IF(D5=1,D$3-D5+1+D$3+0.5,IF(D5>1,D$3-D5+1+D$3,IF(D5<1,""))) ->  | AB5: =IF(E5=1,E$3-E5+1+E$3+0.5,IF(E5>1,E$3-E5+1+E$3,IF(E5<1,""))) ->  | AC5: =IF(F5=1,F$3-F5+1+F$3+0.5,IF(F5>1,F$3-F5+1+F$3,IF(F5<1,""))) ->  | AD5: =IF(G5=1,G$3-G5+1+G$3+0.5,IF(G5>1,G$3-G5+1+G$3,IF(G5<1,""))) ->  | AE5: =IF(H5=1,H$3-H5+1+H$3+0.5,IF(H5>1,H$3-H5+1+H$3,IF(H5<1,""))) ->  | AF5: =IF(I5=1,I$3-I5+1+I$3+0.5,IF(I5>1,I$3-I5+1+I$3,IF(I5<1,""))) ->  | AG5: =IF(J5=1,J$3-J5+1+J$3+0.5,IF(J5>1,J$3-J5+1+J$3,IF(J5<1,""))) ->  | AH5: =IF(K5=1,K$3-K5+1+K$3+0.5,IF(K5>1,K$3-K5+1+K$3,IF(K5<1,""))) ->  | AI5: =IF(L5=1,L$3-L5+1+L$3+0.5,IF(L5>1,L$3-L5+1+L$3,IF(L5<1,""))) ->  | AJ5: =IF(M5=1,M$3-M5+1+M$3+0.5,IF(M5>1,M$3-M5+1+M$3,IF(M5<1,""))) ->  | AK5: =IF(N5=1,N$3-N5+1+N$3+0.5,IF(N5>1,N$3-N5+1+N$3,IF(N5<1,""))) ->  | AL5: =IF(O5=1,O$3-O5+1+O$3+0.5,IF(O5>1,O$3-O5+1+O$3,IF(O5<1,""))) ->  | AM5: =IF(P5=1,P$3-P5+1+P$3+0.5,IF(P5>1,P$3-P5+1+P$3,IF(P5<1,""))) ->  | AN5: =IF(Q5=1,Q$3-Q5+1+Q$3+0.5,IF(Q5>1,Q$3-Q5+1+Q$3,IF(Q5<1,""))) -> 
A6: =CONCATENATE('Skippers List'!B17," ",'Skippers List'!C17) -> 3097 Jon Feist
A7: =CONCATENATE('Skippers List'!B18," ",'Skippers List'!C18) -> 3383 Harlan Gleason
A8: =CONCATENATE('Skippers List'!B19," ",'Skippers List'!C19) -> 4836 Nate Melby
A9: =CONCATENATE('Skippers List'!B20," ",'Skippers List'!C20) -> 5251 Jordan Cerney
A10: =CONCATENATE('Skippers List'!B21," ",'Skippers List'!C21) -> 11062 Dave Vind
A11: =CONCATENATE('Skippers List'!B22," ",'Skippers List'!C22) -> 11791 Stephen Taylor
A12: =CONCATENATE('Skippers List'!B23," ",'Skippers List'!C23) -> 13030 Lee Peterson
A13: =CONCATENATE('Skippers List'!B24," ",'Skippers List'!C24) -> Chas Schelin
A14: =CONCATENATE('Skippers List'!B25," ",'Skippers List'!C25) -> Claudia Schneller
A15: =CONCATENATE('Skippers List'!B26," ",'Skippers List'!C26) -> Craig/Ellen Cutting
A16: =CONCATENATE('Skippers List'!B27," ",'Skippers List'!C27) -> Dane Lamb
A17: =CONCATENATE('Skippers List'!B28," ",'Skippers List'!C28) -> Don Anderson (Mouette)
A18: =CONCATENATE('Skippers List'!B29," ",'Skippers List'!C29) -> Ginny Wintersteen
A19: =CONCATENATE('Skippers List'!B30," ",'Skippers List'!C30) -> 3011 Karl Maas
A20: =CONCATENATE('Skippers List'!B31," ",'Skippers List'!C31) -> Paul Krause
A21: =CONCATENATE('Skippers List'!B32," ",'Skippers List'!C32) -> Scott Iverson
A22: =CONCATENATE('Skippers List'!B33," ",'Skippers List'!C33) -> Tom Dubisar
A23: =CONCATENATE('Skippers List'!B34," ",'Skippers List'!C34) -> Andy Plzak

Sheet 5-11-16
A1: Day Sailer Racing
A2: =Sheet1!A2 -> 2016-05-11 | B2: Race # -> | C2: =IF(COUNT(C4:C23)>0,1,"") ->  | D2: =IF(COUNT(D4:D23)>0,1+C2,"") ->  | R2: Grand Total | Y2: Race # -> | Z2: =IF(COUNT(Z4:Z23)>0,1,"") ->  | AA2: =IF(COUNT(AA4:AA23)>0,1+Z2,"") -> 
A3: Skipper/Sail Number | B3: # of boats --> Ranking Below | C3: =COUNT(C4:C23) -> 0 | D3: =COUNT(D4:D23) -> 0 | E3: 0 | F3: 0 | G3: 0 | H3: 0 | I3: 0 | J3: 0 | K3: 0 | L3: 0 | M3: 0 | N3: 0 | O3: 0 | P3: 0 | Q3: 0 | R3: Points
A4: =CONCATENATE('Skippers List'!B15," ",'Skippers List'!C15) -> 1041 Ted Sojka | B4: =IF(R4<>"",_xlfn.RANK.EQ(R4,$R$4:$R$23,0),"") ->  | R4: =IF(SUM(Z4:AN4)>0,SUM(Z4:AN4),"") ->  | Z4: =IF(C4=1,C$3-C4+1+C$3+0.5,IF(C4>1,C$3-C4+1+C$3,IF(C4<1,""))) -> 
A5: =CONCATENATE('Skippers List'!B16," ",'Skippers List'!C16) -> 2753 Gene McNurlen | B5: =IF(R5<>"",_xlfn.RANK.EQ(R5,$R$4:$R$23,0),"") ->  | R5: =IF(SUM(Z5:AN5)>0,SUM(Z5:AN5),"") ->  | Z5: =IF(C5=1,C$3-C5+1+C$3+0.5,IF(C5>1,C$3-C5+1+C$3,IF(C5<1,""))) -> 
A6: =CONCATENATE('Skippers List'!B17," ",'Skippers List'!C17) -> 3097 Jon Feist
A7: =CONCATENATE('Skippers List'!B18," ",'Skippers List'!C18) -> 3383 Harlan Gleason
A8: =CONCATENATE('Skippers List'!B19," ",'Skippers List'!C19) -> 4836 Nate Melby
A9: =CONCATENATE('Skippers List'!B20," ",'Skippers List'!C20) -> 5251 Jordan Cerney
A10: =CONCATENATE('Skippers List'!B21," ",'Skippers List'!C21) -> 11062 Dave Vind
A11: =CONCATENATE('Skippers List'!B22," ",'Skippers List'!C22) -> 11791 Stephen Taylor
A12: =CONCATENATE('Skippers List'!B23," ",'Skippers List'!C23) -> 13030 Lee Peterson
A13: =CONCATENATE('Skippers List'!B24," ",'Skippers List'!C24) -> Chas Schelin
A14: =CONCATENATE('Skippers List'!B25," ",'Skippers List'!C25) -> Claudia Schneller
A15: =CONCATENATE('Skippers List'!B26," ",'Skippers List'!C26) -> Craig/Ellen Cutting
A16: =CONCATENATE('Skippers List'!B27," ",'Skippers List'!C27) -> Dane Lamb
A17: =CONCATENATE('Skippers List'!B28," ",'Skippers List'!C28) -> Don Anderson (Mouette)
A18: =CONCATENATE('Skippers List'!B29," ",'Skippers List'!C29) -> Ginny Wintersteen
A19: =CONCATENATE('Skippers List'!B30," ",'Skippers List'!C30) -> 3011 Karl Maas
A20: =CONCATENATE('Skippers List'!B31," ",'Skippers List'!C31) -> Paul Krause
A21: =CONCATENATE('Skippers List'!B32," ",'Skippers List'!C32) -> Scott Iverson
A22: =CONCATENATE('Skippers List'!B33," ",'Skippers List'!C33) -> Tom Dubisar | Z22: =IF(C22=1,C$3-C22+1+C$3+0.5,IF(C22>1,C$3-C22+1+C$3,IF(C22<1,""))) -> 
A23: =CONCATENATE('Skippers List'!B34," ",'Skippers List'!C34) -> Andy Plzak

Sheet 5-18-16
A1: Day Sailer Racing
A2: ='5-11-16'!A2+7 -> 2016-05-18 | B2: Race # -> | C2: =IF(COUNT(C4:C23)>0,1,"") ->  | D2: =IF(COUNT(D4:D23)>0,1+C2,"") ->  | R2: Grand Total | Y2: Race # -> | Z2: =IF(COUNT(Z4:Z23)>0,1,"") ->  | AA2: =IF(COUNT(AA4:AA23)>0,1+Z2,"") -> 
A3: Skipper/Sail Number | B3: # of boats --> Ranking Below | C3: =COUNT(C4:C23) -> 0 | D3: =COUNT(D4:D23) -> 0 | E3: 0 | F3: 0 | G3: 0 | H3: 0 | I3: 0 | J3: 0 | K3: 0 | L3: 0 | M3: 0 | N3: 0 | O3: 0 | P3: 0 | Q3: 0 | R3: Points
A4: =CONCATENATE('Skippers List'!B15," ",'Skippers List'!C15) -> 1041 Ted Sojka | B4: =IF(R4<>"",_xlfn.RANK.EQ(R4,$R$4:$R$23,0),"") ->  | R4: =IF(SUM(Z4:AN4)>0,SUM(Z4:AN4),"") ->  | Z4: =IF(C4=1,C$3-C4+1+C$3+0.5,IF(C4>1,C$3-C4+1+C$3,IF(C4<1,""))) -> 
A5: =CONCATENATE('Skippers List'!B16," ",'Skippers List'!C16) -> 2753 Gene McNurlen | B5: =IF(R5<>"",_xlfn.RANK.EQ(R5,$R$4:$R$23,0),"") ->  | R5: =IF(SUM(Z5:AN5)>0,SUM(Z5:AN5),"") ->  | Z5: =IF(C5=1,C$3-C5+1+C$3+0.5,IF(C5>1,C$3-C5+1+C$3,IF(C5<1,""))) -> 
A6: =CONCATENATE('Skippers List'!B17," ",'Skippers List'!C17) -> 3097 Jon Feist
A7: =CONCATENATE('Skippers List'!B18," ",'Skippers List'!C18) -> 3383 Harlan Gleason
A8: =CONCATENATE('Skippers List'!B19," ",'Skippers List'!C19) -> 4836 Nate Melby
A9: =CONCATENATE('Skippers List'!B20," ",'Skippers List'!C20) -> 5251 Jordan Cerney
A10: =CONCATENATE('Skippers List'!B21," ",'Skippers List'!C21) -> 11062 Dave Vind
A11: =CONCATENATE('Skippers List'!B22," ",'Skippers List'!C22) -> 11791 Stephen Taylor
A12: =CONCATENATE('Skippers List'!B23," ",'Skippers List'!C23) -> 13030 Lee Peterson
A13: =CONCATENATE('Skippers List'!B24," ",'Skippers List'!C24) -> Chas Schelin
A14: =CONCATENATE('Skippers List'!B25," ",'Skippers List'!C25) -> Claudia Schneller
A15: =CONCATENATE('Skippers List'!B26," ",'Skippers List'!C26) -> Craig/Ellen Cutting
A16: =CONCATENATE('Skippers List'!B27," ",'Skippers List'!C27) -> Dane Lamb
A17: =CONCATENATE('Skippers List'!B28," ",'Skippers List'!C28) -> Don Anderson (Mouette)
A18: =CONCATENATE('Skippers List'!B29," ",'Skippers List'!C29) -> Ginny Wintersteen
A19: =CONCATENATE('Skippers List'!B30," ",'Skippers List'!C30) -> 3011 Karl Maas
A20: =CONCATENATE('Skippers List'!B31," ",'Skippers List'!C31) -> Paul Krause
A21: =CONCATENATE('Skippers List'!B32," ",'Skippers List'!C32) -> Scott Iverson
A22: =CONCATENATE('Skippers List'!B33," ",'Skippers List'!C33) -> Tom Dubisar | Z22: =IF(C22=1,C$3-C22+1+C$3+0.5,IF(C22>1,C$3-C22+1+C$3,IF(C22<1,""))) -> 
A23: =CONCATENATE('Skippers List'!B34," ",'Skippers List'!C34) -> Andy Plzak

Sheet 5-25-16
A1: Day Sailer Racing
A2: ='5-18-16'!A2+7 -> 2016-05-25 | B2: Race # -> | C2: =IF(COUNT(C4:C23)>0,1,"") ->  | D2: =IF(COUNT(D4:D23)>0,1+C2,"") ->  | R2: Grand Total | Y2: Race # -> | Z2: =IF(COUNT(Z4:Z23)>0,1,"") ->  | AA2: =IF(COUNT(AA4:AA23)>0,1+Z2,"") -> 
A3: Skipper/Sail Number | B3: # of boats --> Ranking Below | C3: =COUNT(C4:C23) -> 0 | D3: =COUNT(D4:D23) -> 0 | E3: 0 | F3: 0 | G3: 0 | H3: 0 | I3: 0 | J3: 0 | K3: 0 | L3: 0 | M3: 0 | N3: 0 | O3: 0 | P3: 0 | Q3: 0 | R3: Points
A4: =CONCATENATE('Skippers List'!B15," ",'Skippers List'!C15) -> 1041 Ted Sojka | B4: =IF(R4<>"",_xlfn.RANK.EQ(R4,$R$4:$R$23,0),"") ->  | R4: =IF(SUM(Z4:AN4)>0,SUM(Z4:AN4),"") ->  | Z4: =IF(C4=1,C$3-C4+1+C$3+0.5,IF(C4>1,C$3-C4+1+C$3,IF(C4<1,""))) -> 
A5: =CONCATENATE('Skippers List'!B16," ",'Skippers List'!C16) -> 2753 Gene McNurlen | B5: =IF(R5<>"",_xlfn.RANK.EQ(R5,$R$4:$R$23,0),"") ->  | R5: =IF(SUM(Z5:AN5)>0,SUM(Z5:AN5),"") ->  | Z5: =IF(C5=1,C$3-C5+1+C$3+0.5,IF(C5>1,C$3-C5+1+C$3,IF(C5<1,""))) -> 
A6: =CONCATENATE('Skippers List'!B17," ",'Skippers List'!C17) -> 3097 Jon Feist
A7: =CONCATENATE('Skippers List'!B18," ",'Skippers List'!C18) -> 3383 Harlan Gleason
A8: =CONCATENATE('Skippers List'!B19," ",'Skippers List'!C19) -> 4836 Nate Melby
A9: =CONCATENATE('Skippers List'!B20," ",'Skippers List'!C20) -> 5251 Jordan Cerney
A10: =CONCATENATE('Skippers List'!B21," ",'Skippers List'!C21) -> 11062 Dave Vind
A11: =CONCATENATE('Skippers List'!B22," ",'Skippers List'!C22) -> 11791 Stephen Taylor
A12: =CONCATENATE('Skippers List'!B23," ",'Skippers List'!C23) -> 13030 Lee Peterson
A13: =CONCATENATE('Skippers List'!B24," ",'Skippers List'!C24) -> Chas Schelin
A14: =CONCATENATE('Skippers List'!B25," ",'Skippers List'!C25) -> Claudia Schneller
A15: =CONCATENATE('Skippers List'!B26," ",'Skippers List'!C26) -> Craig/Ellen Cutting
A16: =CONCATENATE('Skippers List'!B27," ",'Skippers List'!C27) -> Dane Lamb
A17: =CONCATENATE('Skippers List'!B28," ",'Skippers List'!C28) -> Don Anderson (Mouette)
A18: =CONCATENATE('Skippers List'!B29," ",'Skippers List'!C29) -> Ginny Wintersteen
A19: =CONCATENATE('Skippers List'!B30," ",'Skippers List'!C30) -> 3011 Karl Maas
A20: =CONCATENATE('Skippers List'!B31," ",'Skippers List'!C31) -> Paul Krause
A21: =CONCATENATE('Skippers List'!B32," ",'Skippers List'!C32) -> Scott Iverson
A22: =CONCATENATE('Skippers List'!B33," ",'Skippers List'!C33) -> Tom Dubisar | Z22: =IF(C22=1,C$3-C22+1+C$3+0.5,IF(C22>1,C$3-C22+1+C$3,IF(C22<1,""))) -> 
A23: =CONCATENATE('Skippers List'!B34," ",'Skippers List'!C34) -> Andy Plzak

Sheet 6-1-16
A1: Day Sailer Racing
A2: ='5-25-16'!A2+7 -> 2016-06-01 | B2: Race # -> | C2: =IF(COUNT(C4:C23)>0,1,"") -> 1 | D2: =IF(COUNT(D4:D23)>0,1+C2,"") -> 2 | E2: 3 | R2: Grand Total | Y2: Race # -> | Z2: =IF(COUNT(Z4:Z23)>0,1,"") -> 1 | AA2: =IF(COUNT(AA4:AA23)>0,1+Z2,"") -> 2 | AB2: 3
A3: Skipper/Sail Number | B3: # of boats --> Ranking Below | C3: =COUNT(C4:C23) -> 4 | D3: =COUNT(D4:D23) -> 5 | E3: 3 | F3: 0 | G3: 0 | H3: 0 | I3: 0 | J3: 0 | K3: 0 | L3: 0 | M3: 0 | N3: 0 | O3: 0 | P3: 0 | Q3: 0 | R3: Points
A4: =CONCATENATE('Skippers List'!B15," ",'Skippers List'!C15) -> 1041 Ted Sojka | B4: =IF(R4<>"",_xlfn.RANK.EQ(R4,$R$4:$R$23,0),"") ->  | R4: =IF(SUM(Z4:AN4)>0,SUM(Z4:AN4),"") ->  | Z4: =IF(C4=1,C$3-C4+1+C$3+0.5,IF(C4>1,C$3-C4+1+C$3,IF(C4<1,""))) -> 
A5: =CONCATENATE('Skippers List'!B16," ",'Skippers List'!C16) -> 2753 Gene McNurlen | B5: =IF(R5<>"",_xlfn.RANK.EQ(R5,$R$4:$R$23,0),"") -> 2 | C5: 3 | D5: 4 | E5: 2 | R5: =IF(SUM(Z5:AN5)>0,SUM(Z5:AN5),"") -> 18 | Z5: =IF(C5=1,C$3-C5+1+C$3+0.5,IF(C5>1,C$3-C5+1+C$3,IF(C5<1,""))) -> 6 | AA5: 7 | AB5: 5
A6: =CONCATENATE('Skippers List'!B17," ",'Skippers List'!C17) -> 3097 Jon Feist | B6: 3 | C6: 1 | D6: 2 | R6: 17.5 | Z6: 8.5 | AA6: 9
A7: =CONCATENATE('Skippers List'!B18," ",'Skippers List'!C18) -> 3383 Harlan Gleason
A8: =CONCATENATE('Skippers List'!B19," ",'Skippers List'!C19) -> 4836 Nate Melby
A9: =CONCATENATE('Skippers List'!B20," ",'Skippers List'!C20) -> 5251 Jordan Cerney | B9: 5 | D9: 1 | R9: 10.5 | AA9: 10.5
A10: =CONCATENATE('Skippers List'!B21," ",'Skippers List'!C21) -> 11062 Dave Vind | B10: 4 | C10: 4 | D10: 5 | E10: 3 | R10: 15 | Z10: 5 | AA10: 6 | AB10: 4
A11: =CONCATENATE('Skippers List'!B22," ",'Skippers List'!C22) -> 11791 Stephen Taylor
A12: =CONCATENATE('Skippers List'!B23," ",'Skippers List'!C23) -> 13030 Lee Peterson | B12: 1 | C12: 2 | D12: 3 | E12: 1 | R12: 21.5 | Z12: 7 | AA12: 8 | AB12: 6.5
A13: =CONCATENATE('Skippers List'!B24," ",'Skippers List'!C24) -> Chas Schelin
A14: =CONCATENATE('Skippers List'!B25," ",'Skippers List'!C25) -> Claudia Schneller
A15: =CONCATENATE('Skippers List'!B26," ",'Skippers List'!C26) -> Craig/Ellen Cutting
A16: =CONCATENATE('Skippers List'!B27," ",'Skippers List'!C27) -> Dane Lamb
A17: =CONCATENATE('Skippers List'!B28," ",'Skippers List'!C28) -> Don Anderson (Mouette)
A18: =CONCATENATE('Skippers List'!B29," ",'Skippers List'!C29) -> Ginny Wintersteen
A19: =CONCATENATE('Skippers List'!B30," ",'Skippers List'!C30) -> 3011 Karl Maas
A20: =CONCATENATE('Skippers List'!B31," ",'Skippers List'!C31) -> Paul Krause
A21: =CONCATENATE('Skippers List'!B32," ",'Skippers List'!C32) -> Scott Iverson
A22: =CONCATENATE('Skippers List'!B33," ",'Skippers List'!C33) -> Tom Dubisar | Z22: =IF(C22=1,C$3-C22+1+C$3+0.5,IF(C22>1,C$3-C22+1+C$3,IF(C22<1,""))) -> 
A23: =CONCATENATE('Skippers List'!B34," ",'Skippers List'!C34) -> Andy Plzak

Sheet 6-8-16
A1: Day Sailer Racing
A2: ='6-1-16'!A2+7 -> 2016-06-08 | B2: Race # -> | C2: =IF(COUNT(C4:C23)>0,1,"") ->  | D2: =IF(COUNT(D4:D23)>0,1+C2,"") ->  | R2: Grand Total | Y2: Race # -> | Z2: =IF(COUNT(Z4:Z23)>0,1,"") ->  | AA2: =IF(COUNT(AA4:AA23)>0,1+Z2,"") -> 
A3: Skipper/Sail Number | B3: # of boats --> Ranking Below | C3: =COUNT(C4:C23) -> 0 | D3: =COUNT(D4:D23) -> 0 | E3: 0 | F3: 0 | G3: 0 | H3: 0 | I3: 0 | J3: 0 | K3: 0 | L3: 0 | M3: 0 | N3: 0 | O3: 0 | P3: 0 | Q3: 0 | R3: Points
A4: =CONCATENATE('Skippers List'!B15," ",'Skippers List'!C15) -> 1041 Ted Sojka | B4: =IF(R4<>"",_xlfn.RANK.EQ(R4,$R$4:$R$23,0),"") ->  | R4: =IF(SUM(Z4:AN4)>0,SUM(Z4:AN4),"") ->  | Z4: =IF(C4=1,C$3-C4+1+C$3+0.5,IF(C4>1,C$3-C4+1+C$3,IF(C4<1,""))) -> 
A5: =CONCATENATE('Skippers List'!B16," ",'Skippers List'!C16) -> 2753 Gene McNurlen | B5: =IF(R5<>"",_xlfn.RANK.EQ(R5,$R$4:$R$23,0),"") ->  | R5: =IF(SUM(Z5:AN5)>0,SUM(Z5:AN5),"") ->  | Z5: =IF(C5=1,C$3-C5+1+C$3+0.5,IF(C5>1,C$3-C5+1+C$3,IF(C5<1,""))) -> 
A6: =CONCATENATE('Skippers List'!B17," ",'Skippers List'!C17) -> 3097 Jon Feist
A7: =CONCATENATE('Skippers List'!B18," ",'Skippers List'!C18) -> 3383 Harlan Gleason
A8: =CONCATENATE('Skippers List'!B19," ",'Skippers List'!C19) -> 4836 Nate Melby
A9: =CONCATENATE('Skippers List'!B20," ",'Skippers List'!C20) -> 5251 Jordan Cerney
A10: =CONCATENATE('Skippers List'!B21," ",'Skippers List'!C21) -> 11062 Dave Vind
A11: =CONCATENATE('Skippers List'!B22," ",'Skippers List'!C22) -> 11791 Stephen Taylor
A12: =CONCATENATE('Skippers List'!B23," ",'Skippers List'!C23) -> 13030 Lee Peterson
A13: =CONCATENATE('Skippers List'!B24," ",'Skippers List'!C24) -> Chas Schelin
A14: =CONCATENATE('Skippers List'!B25," ",'Skippers List'!C25) -> Claudia Schneller
A15: =CONCATENATE('Skippers List'!B26," ",'Skippers List'!C26) -> Craig/Ellen Cutting
A16: =CONCATENATE('Skippers List'!B27," ",'Skippers List'!C27) -> Dane Lamb
A17: =CONCATENATE('Skippers List'!B28," ",'Skippers List'!C28) -> Don Anderson (Mouette)
A18: =CONCATENATE('Skippers List'!B29," ",'Skippers List'!C29) -> Ginny Wintersteen
A19: =CONCATENATE('Skippers List'!B30," ",'Skippers List'!C30) -> 3011 Karl Maas
A20: =CONCATENATE('Skippers List'!B31," ",'Skippers List'!C31) -> Paul Krause
A21: =CONCATENATE('Skippers List'!B32," ",'Skippers List'!C32) -> Scott Iverson
A22: =CONCATENATE('Skippers List'!B33," ",'Skippers List'!C33) -> Tom Dubisar | Z22: =IF(C22=1,C$3-C22+1+C$3+0.5,IF(C22>1,C$3-C22+1+C$3,IF(C22<1,""))) -> 
A23: =CONCATENATE('Skippers List'!B34," ",'Skippers List'!C34) -> Andy Plzak

Sheet 6-15-16
A1: Day Sailer Racing
A2: ='6-8-16'!A2+7 -> 2016-06-15 | B2: Race # -> | C2: =IF(COUNT(C4:C23)>0,1,"") ->  | D2: =IF(COUNT(D4:D23)>0,1+C2,"") ->  | R2: Grand Total | Y2: Race # -> | Z2: =IF(COUNT(Z4:Z23)>0,1,"") ->  | AA2: =IF(COUNT(AA4:AA23)>0,1+Z2,"") -> 
A3: Skipper/Sail Number | B3: # of boats --> Ranking Below | C3: =COUNT(C4:C23) -> 0 | D3: =COUNT(D4:D23) -> 0 | E3: 0 | F3: 0 | G3: 0 | H3: 0 | I3: 0 | J3: 0 | K3: 0 | L3: 0 | M3: 0 | N3: 0 | O3: 0 | P3: 0 | Q3: 0 | R3: Points
A4: =CONCATENATE('Skippers List'!B15," ",'Skippers List'!C15) -> 1041 Ted Sojka | B4: =IF(R4<>"",_xlfn.RANK.EQ(R4,$R$4:$R$23,0),"") ->  | R4: =IF(SUM(Z4:AN4)>0,SUM(Z4:AN4),"") ->  | Z4: =IF(C4=1,C$3-C4+1+C$3+0.5,IF(C4>1,C$3-C4+1+C$3,IF(C4<1,""))) -> 
A5: =CONCATENATE('Skippers List'!B16," ",'Skippers List'!C16) -> 2753 Gene McNurlen | B5: =IF(R5<>"",_xlfn.RANK.EQ(R5,$R$4:$R$23,0),"") ->  | R5: =IF(SUM(Z5:AN5)>0,SUM(Z5:AN5),"") ->  | Z5: =IF(C5=1,C$3-C5+1+C$3+0.5,IF(C5>1,C$3-C5+1+C$3,IF(C5<1,""))) -> 
A6: =CONCATENATE('Skippers List'!B17," ",'Skippers List'!C17) -> 3097 Jon Feist
A7: =CONCATENATE('Skippers List'!B18," ",'Skippers List'!C18) -> 3383 Harlan Gleason
A8: =CONCATENATE('Skippers List'!B19," ",'Skippers List'!C19) -> 4836 Nate Melby
A9: =CONCATENATE('Skippers List'!B20," ",'Skippers List'!C20) -> 5251 Jordan Cerney
A10: =CONCATENATE('Skippers List'!B21," ",'Skippers List'!C21) -> 11062 Dave Vind
A11: =CONCATENATE('Skippers List'!B22," ",'Skippers List'!C22) -> 11791 Stephen Taylor
A12: =CONCATENATE('Skippers List'!B23," ",'Skippers List'!C23) -> 13030 Lee Peterson
A13: =CONCATENATE('Skippers List'!B24," ",'Skippers List'!C24) -> Chas Schelin
A14: =CONCATENATE('Skippers List'!B25," ",'Skippers List'!C25) -> Claudia Schneller
A15: =CONCATENATE('Skippers List'!B26," ",'Skippers List'!C26) -> Craig/Ellen Cutting
A16: =CONCATENATE('Skippers List'!B27," ",'Skippers List'!C27) -> Dane Lamb
A17: =CONCATENATE('Skippers List'!B28," ",'Skippers List'!C28) -> Don Anderson (Mouette)
A18: =CONCATENATE('Skippers List'!B29," ",'Skippers List'!C29) -> Ginny Wintersteen
A19: =CONCATENATE('Skippers List'!B30," ",'Skippers List'!C30) -> 3011 Karl Maas
A20: =CONCATENATE('Skippers List'!B31," ",'Skippers List'!C31) -> Paul Krause
A21: =CONCATENATE('Skippers List'!B32," ",'Skippers List'!C32) -> Scott Iverson
A22: =CONCATENATE('Skippers List'!B33," ",'Skippers List'!C33) -> Tom Dubisar | Z22: =IF(C22=1,C$3-C22+1+C$3+0.5,IF(C22>1,C$3-C22+1+C$3,IF(C22<1,""))) -> 
A23: =CONCATENATE('Skippers List'!B34," ",'Skippers List'!C34) -> Andy Plzak

Sheet 6-22-16
A1: Day Sailer Racing
A2: ='6-15-16'!A2+7 -> 2016-06-22 | B2: Race # -> | C2: =IF(COUNT(C4:C23)>0,1,"") -> 1 | D2: =IF(COUNT(D4:D23)>0,1+C2,"") -> 2 | E2: 3 | F2: 4 | R2: Grand Total | Y2: Race # -> | Z2: =IF(COUNT(Z4:Z23)>0,1,"") -> 1 | AA2: =IF(COUNT(AA4:AA23)>0,1+Z2,"") -> 2 | AB2: 3 | AC2: 4
A3: Skipper/Sail Number | B3: # of boats --> Ranking Below | C3: =COUNT(C4:C23) -> 3 | D3: =COUNT(D4:D23) -> 3 | E3: 3 | F3: 2 | G3: 0 | H3: 0 | I3: 0 | J3: 0 | K3: 0 | L3: 0 | M3: 0 | N3: 0 | O3: 0 | P3: 0 | Q3: 0 | R3: Points
A4: =CONCATENATE('Skippers List'!B15," ",'Skippers List'!C15) -> 1041 Ted Sojka | B4: =IF(R4<>"",_xlfn.RANK.EQ(R4,$R$4:$R$23,0),"") ->  | R4: =IF(SUM(Z4:AN4)>0,SUM(Z4:AN4),"") ->  | Z4: =IF(C4=1,C$3-C4+1+C$3+0.5,IF(C4>1,C$3-C4+1+C$3,IF(C4<1,""))) -> 
A5: =CONCATENATE('Skippers List'!B16," ",'Skippers List'!C16) -> 2753 Gene McNurlen | B5: =IF(R5<>"",_xlfn.RANK.EQ(R5,$R$4:$R$23,0),"") -> 1 | C5: 1 | D5: 1 | E5: 1 | F5: 1 | R5: =IF(SUM(Z5:AN5)>0,SUM(Z5:AN5),"") -> 24 | Z5: =IF(C5=1,C$3-C5+1+C$3+0.5,IF(C5>1,C$3-C5+1+C$3,IF(C5<1,""))) -> 6.5 | AA5: 6.5 | AB5: 6.5 | AC5: 4.5
A6: =CONCATENATE('Skippers List'!B17," ",'Skippers List'!C17) -> 3097 Jon Feist
A7: =CONCATENATE('Skippers List'!B18," ",'Skippers List'!C18) -> 3383 Harlan Gleason
A8: =CONCATENATE('Skippers List'!B19," ",'Skippers List'!C19) -> 4836 Nate Melby
A9: =CONCATENATE('Skippers List'!B20," ",'Skippers List'!C20) -> 5251 Jordan Cerney
A10: =CONCATENATE('Skippers List'!B21," ",'Skippers List'!C21) -> 11062 Dave Vind
A11: =CONCATENATE('Skippers List'!B22," ",'Skippers List'!C22) -> 11791 Stephen Taylor | B11: 3 | C11: 3 | D11: 3 | E11: 3 | R11: 12 | Z11: 4 | AA11: 4 | AB11: 4
A12: =CONCATENATE('Skippers List'!B23," ",'Skippers List'!C23) -> 13030 Lee Peterson | B12: 2 | C12: 2 | D12: 2 | E12: 2 | F12: 2 | R12: 18 | Z12: 5 | AA12: 5 | AB12: 5 | AC12: 3
A13: =CONCATENATE('Skippers List'!B24," ",'Skippers List'!C24) -> Chas Schelin
A14: =CONCATENATE('Skippers List'!B25," ",'Skippers List'!C25) -> Claudia Schneller
A15: =CONCATENATE('Skippers List'!B26," ",'Skippers List'!C26) -> Craig/Ellen Cutting
A16: =CONCATENATE('Skippers List'!B27," ",'Skippers List'!C27) -> Dane Lamb
A17: =CONCATENATE('Skippers List'!B28," ",'Skippers List'!C28) -> Don Anderson (Mouette)
A18: =CONCATENATE('Skippers List'!B29," ",'Skippers List'!C29) -> Ginny Wintersteen
A19: =CONCATENATE('Skippers List'!B30," ",'Skippers List'!C30) -> 3011 Karl Maas
A20: =CONCATENATE('Skippers List'!B31," ",'Skippers List'!C31) -> Paul Krause
A21: =CONCATENATE('Skippers List'!B32," ",'Skippers List'!C32) -> Scott Iverson
A22: =CONCATENATE('Skippers List'!B33," ",'Skippers List'!C33) -> Tom Dubisar | Z22: =IF(C22=1,C$3-C22+1+C$3+0.5,IF(C22>1,C$3-C22+1+C$3,IF(C22<1,""))) -> 
A23: =CONCATENATE('Skippers List'!B34," ",'Skippers List'!C34) -> Andy Plzak

Sheet 6-29-16
A1: Day Sailer Racing
A2: ='6-22-16'!A2+7 -> 2016-06-29 | B2: Race # -> | C2: =IF(COUNT(C4:C23)>0,1,"") -> 1 | D2: =IF(COUNT(D4:D23)>0,1+C2,"") -> 2 | E2: 3 | F2: 4 | G2: 5 | R2: Grand Total | Y2: Race # -> | Z2: =IF(COUNT(Z4:Z23)>0,1,"") -> 1 | AA2: =IF(COUNT(AA4:AA23)>0,1+Z2,"") -> 2 | AB2: 3 | AC2: 4 | AD2: 5
A3: Skipper/Sail Number | B3: # of boats --> Ranking Below | C3: =COUNT(C4:C23) -> 4 | D3: =COUNT(D4:D23) -> 4 | E3: 4 | F3: 4 | G3: 4 | H3: 0 | I3: 0 | J3: 0 | K3: 0 | L3: 0 | M3: 0 | N3: 0 | O3: 0 | P3: 0 | Q3: 0 | R3: Points
A4: =CONCATENATE('Skippers List'!B15," ",'Skippers List'!C15) -> 1041 Ted Sojka | B4: =IF(R4<>"",_xlfn.RANK.EQ(R4,$R$4:$R$23,0),"") -> 4 | C4: 4 | D4: 3 | E4: 3 | F4: 4 | G4: 3 | R4: =IF(SUM(Z4:AN4)>0,SUM(Z4:AN4),"") -> 28 | Z4: =IF(C4=1,C$3-C4+1+C$3+0.5,IF(C4>1,C$3-C4+1+C$3,IF(C4<1,""))) -> 5 | AA4: 6 | AB4: 6 | AC4: 5 | AD4: 6
A5: =CONCATENATE('Skippers List'!B16," ",'Skippers List'!C16) -> 2753 Gene McNurlen | B5: =IF(R5<>"",_xlfn.RANK.EQ(R5,$R$4:$R$23,0),"") ->  | R5: =IF(SUM(Z5:AN5)>0,SUM(Z5:AN5),"") ->  | Z5: =IF(C5=1,C$3-C5+1+C$3+0.5,IF(C5>1,C$3-C5+1+C$3,IF(C5<1,""))) -> 
A6: =CONCATENATE('Skippers List'!B17," ",'Skippers List'!C17) -> 3097 Jon Feist | B6: 2 | C6: 1 | D6: 2 | E6: 1 | F6: 1 | G6: 4 | R6: 37.5 | Z6: 8.5 | AA6: 7 | AB6: 8.5 | AC6: 8.5 | AD6: 5
A7: =CONCATENATE('Skippers List'!B18," ",'Skippers List'!C18) -> 3383 Harlan Gleason
A8: =CONCATENATE('Skippers List'!B19," ",'Skippers List'!C19) -> 4836 Nate Melby
A9: =CONCATENATE('Skippers List'!B20," ",'Skippers List'!C20) -> 5251 Jordan Cerney | B9: 3 | C9: 3 | D9: 4 | E9: 4 | F9: 3 | G9: 2 | R9: 29 | Z9: 6 | AA9: 5 | AB9: 5 | AC9: 6 | AD9: 7
A10: =CONCATENATE('Skippers List'!B21," ",'Skippers List'!C21) -> 11062 Dave Vind
A11: =CONCATENATE('Skippers List'!B22," ",'Skippers List'!C22) -> 11791 Stephen Taylor
A12: =CONCATENATE('Skippers List'!B23," ",'Skippers List'!C23) -> 13030 Lee Peterson | B12: 1 | C12: 2 | D12: 1 | E12: 2 | F12: 2 | G12: 1 | R12: 38 | Z12: 7 | AA12: 8.5 | AB12: 7 | AC12: 7 | AD12: 8.5
A13: =CONCATENATE('Skippers List'!B24," ",'Skippers List'!C24) -> Chas Schelin
A14: =CONCATENATE('Skippers List'!B25," ",'Skippers List'!C25) -> Claudia Schneller
A15: =CONCATENATE('Skippers List'!B26," ",'Skippers List'!C26) -> Craig/Ellen Cutting
A16: =CONCATENATE('Skippers List'!B27," ",'Skippers List'!C27) -> Dane Lamb
A17: =CONCATENATE('Skippers List'!B28," ",'Skippers List'!C28) -> Don Anderson (Mouette)
A18: =CONCATENATE('Skippers List'!B29," ",'Skippers List'!C29) -> Ginny Wintersteen
A19: =CONCATENATE('Skippers List'!B30," ",'Skippers List'!C30) -> 3011 Karl Maas
A20: =CONCATENATE('Skippers List'!B31," ",'Skippers List'!C31) -> Paul Krause
A21: =CONCATENATE('Skippers List'!B32," ",'Skippers List'!C32) -> Scott Iverson
A22: =CONCATENATE('Skippers List'!B33," ",'Skippers List'!C33) -> Tom Dubisar | Z22: =IF(C22=1,C$3-C22+1+C$3+0.5,IF(C22>1,C$3-C22+1+C$3,IF(C22<1,""))) -> 
A23: =CONCATENATE('Skippers List'!B34," ",'Skippers List'!C34) -> Andy Plzak

Sheet 7-6-16
A1: Day Sailer Racing
A2: ='6-29-16'!A2+7 -> 2016-07-06 | B2: Race # -> | C2: =IF(COUNT(C4:C23)>0,1,"") -> 1 | D2: =IF(COUNT(D4:D23)>0,1+C2,"") -> 2 | E2: 3 | R2: Grand Total | Y2: Race # -> | Z2: =IF(COUNT(Z4:Z23)>0,1,"") -> 1 | AA2: =IF(COUNT(AA4:AA23)>0,1+Z2,"") -> 2 | AB2: 3
A3: Skipper/Sail Number | B3: # of boats --> Ranking Below | C3: =COUNT(C4:C23) -> 4 | D3: =COUNT(D4:D23) -> 4 | E3: 4 | F3: 0 | G3: 0 | H3: 0 | I3: 0 | J3: 0 | K3: 0 | L3: 0 | M3: 0 | N3: 0 | O3: 0 | P3: 0 | Q3: 0 | R3: Points
A4: =CONCATENATE('Skippers List'!B15," ",'Skippers List'!C15) -> 1041 Ted Sojka | B4: =IF(R4<>"",_xlfn.RANK.EQ(R4,$R$4:$R$23,0),"") -> 2 | C4: 1 | D4: 3 | E4: 3 | R4: =IF(SUM(Z4:AN4)>0,SUM(Z4:AN4),"") -> 20.5 | Z4: =IF(C4=1,C$3-C4+1+C$3+0.5,IF(C4>1,C$3-C4+1+C$3,IF(C4<1,""))) -> 8.5 | AA4: 6 | AB4: 6
A5: =CONCATENATE('Skippers List'!B16," ",'Skippers List'!C16) -> 2753 Gene McNurlen | B5: =IF(R5<>"",_xlfn.RANK.EQ(R5,$R$4:$R$23,0),"") -> 4 | C5: 2 | D5: 4 | E5: 4 | R5: =IF(SUM(Z5:AN5)>0,SUM(Z5:AN5),"") -> 17 | Z5: =IF(C5=1,C$3-C5+1+C$3+0.5,IF(C5>1,C$3-C5+1+C$3,IF(C5<1,""))) -> 7 | AA5: 5 | AB5: 5
A6: =CONCATENATE('Skippers List'!B17," ",'Skippers List'!C17) -> 3097 Jon Feist | B6: 1 | C6: 3 | D6: 2 | E6: 1 | R6: 21.5 | Z6: 6 | AA6: 7 | AB6: 8.5
A7: =CONCATENATE('Skippers List'!B18," ",'Skippers List'!C18) -> 3383 Harlan Gleason
A8: =CONCATENATE('Skippers List'!B19," ",'Skippers List'!C19) -> 4836 Nate Melby
A9: =CONCATENATE('Skippers List'!B20," ",'Skippers List'!C20) -> 5251 Jordan Cerney
A10: =CONCATENATE('Skippers List'!B21," ",'Skippers List'!C21) -> 11062 Dave Vind
A11: =CONCATENATE('Skippers List'!B22," ",'Skippers List'!C22) -> 11791 Stephen Taylor
A12: =CONCATENATE('Skippers List'!B23," ",'Skippers List'!C23) -> 13030 Lee Peterson | B12: 2 | C12: 4 | D12: 1 | E12: 2 | R12: 20.5 | Z12: 5 | AA12: 8.5 | AB12: 7
A13: =CONCATENATE('Skippers List'!B24," ",'Skippers List'!C24) -> Chas Schelin
A14: =CONCATENATE('Skippers List'!B25," ",'Skippers List'!C25) -> Claudia Schneller
A15: =CONCATENATE('Skippers List'!B26," ",'Skippers List'!C26) -> Craig/Ellen Cutting
A16: =CONCATENATE('Skippers List'!B27," ",'Skippers List'!C27) -> Dane Lamb
A17: =CONCATENATE('Skippers List'!B28," ",'Skippers List'!C28) -> Don Anderson (Mouette)
A18: =CONCATENATE('Skippers List'!B29," ",'Skippers List'!C29) -> Ginny Wintersteen
A19: =CONCATENATE('Skippers List'!B30," ",'Skippers List'!C30) -> 3011 Karl Maas
A20: =CONCATENATE('Skippers List'!B31," ",'Skippers List'!C31) -> Paul Krause
A21: =CONCATENATE('Skippers List'!B32," ",'Skippers List'!C32) -> Scott Iverson
A22: =CONCATENATE('Skippers List'!B33," ",'Skippers List'!C33) -> Tom Dubisar | Z22: =IF(C22=1,C$3-C22+1+C$3+0.5,IF(C22>1,C$3-C22+1+C$3,IF(C22<1,""))) -> 
A23: =CONCATENATE('Skippers List'!B34," ",'Skippers List'!C34) -> Andy Plzak

Sheet 7-13-16
A1: Day Sailer Racing
A2: ='7-6-16'!A2+7 -> 2016-07-13 | B2: Race # -> | C2: =IF(COUNT(C4:C23)>0,1,"") -> 1 | D2: =IF(COUNT(D4:D23)>0,1+C2,"") -> 2 | E2: 3 | F2: 4 | G2: 5 | R2: Grand Total | Y2: Race # -> | Z2: =IF(COUNT(Z4:Z23)>0,1,"") -> 1 | AA2: =IF(COUNT(AA4:AA23)>0,1+Z2,"") -> 2 | AB2: 3 | AC2: 4 | AD2: 5
A3: Skipper/Sail Number | B3: # of boats --> Ranking Below | C3: =COUNT(C4:C23) -> 4 | D3: =COUNT(D4:D23) -> 4 | E3: 4 | F3: 4 | G3: 4 | H3: 0 | I3: 0 | J3: 0 | K3: 0 | L3: 0 | M3: 0 | N3: 0 | O3: 0 | P3: 0 | Q3: 0 | R3: Points
A4: =CONCATENATE('Skippers List'!B15," ",'Skippers List'!C15) -> 1041 Ted Sojka | B4: =IF(R4<>"",_xlfn.RANK.EQ(R4,$R$4:$R$23,0),"") ->  | R4: =IF(SUM(Z4:AN4)>0,SUM(Z4:AN4),"") ->  | Z4: =IF(C4=1,C$3-C4+1+C$3+0.5,IF(C4>1,C$3-C4+1+C$3,IF(C4<1,""))) -> 
A5: =CONCATENATE('Skippers List'!B16," ",'Skippers List'!C16) -> 2753 Gene McNurlen | B5: =IF(R5<>"",_xlfn.RANK.EQ(R5,$R$4:$R$23,0),"") -> 3 | C5: 3 | D5: 1 | E5: 3 | F5: 3 | G5: 3 | R5: =IF(SUM(Z5:AN5)>0,SUM(Z5:AN5),"") -> 32.5 | Z5: =IF(C5=1,C$3-C5+1+C$3+0.5,IF(C5>1,C$3-C5+1+C$3,IF(C5<1,""))) -> 6 | AA5: 8.5 | AB5: 6 | AC5: 6 | AD5: 6
A6: =CONCATENATE('Skippers List'!B17," ",'Skippers List'!C17) -> 3097 Jon Feist | B6: 2 | C6: 2 | D6: 2 | E6: 2 | F6: 2 | G6: 2 | R6: 35 | Z6: 7 | AA6: 7 | AB6: 7 | AC6: 7 | AD6: 7
A7: =CONCATENATE('Skippers List'!B18," ",'Skippers List'!C18) -> 3383 Harlan Gleason
A8: =CONCATENATE('Skippers List'!B19," ",'Skippers List'!C19) -> 4836 Nate Melby
A9: =CONCATENATE('Skippers List'!B20," ",'Skippers List'!C20) -> 5251 Jordan Cerney
A10: =CONCATENATE('Skippers List'!B21," ",'Skippers List'!C21) -> 11062 Dave Vind | B10: 4 | C10: 4 | D10: 4 | E10: 4 | F10: 4 | G10: 4 | R10: 25 | Z10: 5 | AA10: 5 | AB10: 5 | AC10: 5 | AD10: 5
A11: =CONCATENATE('Skippers List'!B22," ",'Skippers List'!C22) -> 11791 Stephen Taylor
A12: =CONCATENATE('Skippers List'!B23," ",'Skippers List'!C23) -> 13030 Lee Peterson | B12: 1 | C12: 1 | D12: 3 | E12: 1 | F12: 1 | G12: 1 | R12: 40 | Z12: 8.5 | AA12: 6 | AB12: 8.5 | AC12: 8.5 | AD12: 8.5
A13: =CONCATENATE('Skippers List'!B24," ",'Skippers List'!C24) -> Chas Schelin
A14: =CONCATENATE('Skippers List'!B25," ",'Skippers List'!C25) -> Claudia Schneller
A15: =CONCATENATE('Skippers List'!B26," ",'Skippers List'!C26) -> Craig/Ellen Cutting
A16: =CONCATENATE('Skippers List'!B27," ",'Skippers List'!C27) -> Dane Lamb
A17: =CONCATENATE('Skippers List'!B28," ",'Skippers List'!C28) -> Don Anderson (Mouette)
A18: =CONCATENATE('Skippers List'!B29," ",'Skippers List'!C29) -> Ginny Wintersteen
A19: =CONCATENATE('Skippers List'!B30," ",'Skippers List'!C30) -> 3011 Karl Maas
A20: =CONCATENATE('Skippers List'!B31," ",'Skippers List'!C31) -> Paul Krause
A21: =CONCATENATE('Skippers List'!B32," ",'Skippers List'!C32) -> Scott Iverson
A22: =CONCATENATE('Skippers List'!B33," ",'Skippers List'!C33) -> Tom Dubisar | Z22: =IF(C22=1,C$3-C22+1+C$3+0.5,IF(C22>1,C$3-C22+1+C$3,IF(C22<1,""))) -> 
A23: =CONCATENATE('Skippers List'!B34," ",'Skippers List'!C34) -> Andy Plzak

Sheet 7-20-16
A1: Day Sailer Racing
A2: =+'7-13-16'!A2+7 -> 2016-07-20 | B2: Race # -> | C2: =IF(COUNT(C4:C23)>0,1,"") -> 1 | D2: =IF(COUNT(D4:D23)>0,1+C2,"") -> 2 | E2: 3 | F2: 4 | G2: 5 | R2: Grand Total | Y2: Race # -> | Z2: =IF(COUNT(Z4:Z23)>0,1,"") -> 1 | AA2: =IF(COUNT(AA4:AA23)>0,1+Z2,"") -> 2 | AB2: 3 | AC2: 4 | AD2: 5
A3: Skipper/Sail Number | B3: # of boats --> Ranking Below | C3: =COUNT(C4:C23) -> 4 | D3: =COUNT(D4:D23) -> 4 | E3: 4 | F3: 4 | G3: 4 | H3: 0 | I3: 0 | J3: 0 | K3: 0 | L3: 0 | M3: 0 | N3: 0 | O3: 0 | P3: 0 | Q3: 0 | R3: Points
A4: =CONCATENATE('Skippers List'!B15," ",'Skippers List'!C15) -> 1041 Ted Sojka | B4: =IF(R4<>"",_xlfn.RANK.EQ(R4,$R$4:$R$23,0),"") ->  | R4: =IF(SUM(Z4:AN4)>0,SUM(Z4:AN4),"") ->  | Z4: =IF(C4=1,C$3-C4+1+C$3+0.5,IF(C4>1,C$3-C4+1+C$3,IF(C4<1,""))) -> 
A5: =CONCATENATE('Skippers List'!B16," ",'Skippers List'!C16) -> 2753 Gene McNurlen | B5: =IF(R5<>"",_xlfn.RANK.EQ(R5,$R$4:$R$23,0),"") -> 3 | C5: 3 | D5: 3 | E5: 3 | F5: 2 | G5: 3 | R5: =IF(SUM(Z5:AN5)>0,SUM(Z5:AN5),"") -> 31 | Z5: =IF(C5=1,C$3-C5+1+C$3+0.5,IF(C5>1,C$3-C5+1+C$3,IF(C5<1,""))) -> 6 | AA5: 6 | AB5: 6 | AC5: 7 | AD5: 6
A6: =CONCATENATE('Skippers List'!B17," ",'Skippers List'!C17) -> 3097 Jon Feist | B6: 2 | C6: 1 | D6: 1 | E6: 2 | F6: 3 | G6: 2 | R6: 37 | Z6: 8.5 | AA6: 8.5 | AB6: 7 | AC6: 6 | AD6: 7
A7: =CONCATENATE('Skippers List'!B18," ",'Skippers List'!C18) -> 3383 Harlan Gleason
A8: =CONCATENATE('Skippers List'!B19," ",'Skippers List'!C19) -> 4836 Nate Melby
A9: =CONCATENATE('Skippers List'!B20," ",'Skippers List'!C20) -> 5251 Jordan Cerney
A10: =CONCATENATE('Skippers List'!B21," ",'Skippers List'!C21) -> 11062 Dave Vind
A11: =CONCATENATE('Skippers List'!B22," ",'Skippers List'!C22) -> 11791 Stephen Taylor | B11: 4 | C11: 4 | D11: 4 | E11: 4 | F11: 4 | G11: 4 | R11: 25 | Z11: 5 | AA11: 5 | AB11: 5 | AC11: 5 | AD11: 5
A12: =CONCATENATE('Skippers List'!B23," ",'Skippers List'!C23) -> 13030 Lee Peterson | B12: 1 | C12: 2 | D12: 2 | E12: 1 | F12: 1 | G12: 1 | R12: 39.5 | Z12: 7 | AA12: 7 | AB12: 8.5 | AC12: 8.5 | AD12: 8.5
A13: =CONCATENATE('Skippers List'!B24," ",'Skippers List'!C24) -> Chas Schelin
A14: =CONCATENATE('Skippers List'!B25," ",'Skippers List'!C25) -> Claudia Schneller
A15: =CONCATENATE('Skippers List'!B26," ",'Skippers List'!C26) -> Craig/Ellen Cutting
A16: =CONCATENATE('Skippers List'!B27," ",'Skippers List'!C27) -> Dane Lamb
A17: =CONCATENATE('Skippers List'!B28," ",'Skippers List'!C28) -> Don Anderson (Mouette)
A18: =CONCATENATE('Skippers List'!B29," ",'Skippers List'!C29) -> Ginny Wintersteen
A19: =CONCATENATE('Skippers List'!B30," ",'Skippers List'!C30) -> 3011 Karl Maas
A20: =CONCATENATE('Skippers List'!B31," ",'Skippers List'!C31) -> Paul Krause
A21: =CONCATENATE('Skippers List'!B32," ",'Skippers List'!C32) -> Scott Iverson
A22: =CONCATENATE('Skippers List'!B33," ",'Skippers List'!C33) -> Tom Dubisar | Z22: =IF(C22=1,C$3-C22+1+C$3+0.5,IF(C22>1,C$3-C22+1+C$3,IF(C22<1,""))) -> 
A23: =CONCATENATE('Skippers List'!B34," ",'Skippers List'!C34) -> Andy Plzak

Sheet 7-27-16
A1: Day Sailer Racing
A2: ='7-20-16'!A2+7 -> 2016-07-27 | B2: Race # -> | C2: =IF(COUNT(C4:C23)>0,1,"") ->  | D2: =IF(COUNT(D4:D23)>0,1+C2,"") ->  | R2: Grand Total | Y2: Race # -> | Z2: =IF(COUNT(Z4:Z23)>0,1,"") ->  | AA2: =IF(COUNT(AA4:AA23)>0,1+Z2,"") -> 
A3: Skipper/Sail Number | B3: # of boats --> Ranking Below | C3: =COUNT(C4:C23) -> 0 | D3: =COUNT(D4:D23) -> 0 | E3: 0 | F3: 0 | G3: 0 | H3: 0 | I3: 0 | J3: 0 | K3: 0 | L3: 0 | M3: 0 | N3: 0 | O3: 0 | P3: 0 | Q3: 0 | R3: Points
A4: =CONCATENATE('Skippers List'!B15," ",'Skippers List'!C15) -> 1041 Ted Sojka | B4: =IF(R4<>"",_xlfn.RANK.EQ(R4,$R$4:$R$23,0),"") ->  | R4: =IF(SUM(Z4:AN4)>0,SUM(Z4:AN4),"") ->  | Z4: =IF(C4=1,C$3-C4+1+C$3+0.5,IF(C4>1,C$3-C4+1+C$3,IF(C4<1,""))) -> 
A5: =CONCATENATE('Skippers List'!B16," ",'Skippers List'!C16) -> 2753 Gene McNurlen | B5: =IF(R5<>"",_xlfn.RANK.EQ(R5,$R$4:$R$23,0),"") ->  | R5: =IF(SUM(Z5:AN5)>0,SUM(Z5:AN5),"") ->  | Z5: =IF(C5=1,C$3-C5+1+C$3+0.5,IF(C5>1,C$3-C5+1+C$3,IF(C5<1,""))) -> 
A6: =CONCATENATE('Skippers List'!B17," ",'Skippers List'!C17) -> 3097 Jon Feist
A7: =CONCATENATE('Skippers List'!B18," ",'Skippers List'!C18) -> 3383 Harlan Gleason
A8: =CONCATENATE('Skippers List'!B19," ",'Skippers List'!C19) -> 4836 Nate Melby
A9: =CONCATENATE('Skippers List'!B20," ",'Skippers List'!C20) -> 5251 Jordan Cerney
A10: =CONCATENATE('Skippers List'!B21," ",'Skippers List'!C21) -> 11062 Dave Vind
A11: =CONCATENATE('Skippers List'!B22," ",'Skippers List'!C22) -> 11791 Stephen Taylor
A12: =CONCATENATE('Skippers List'!B23," ",'Skippers List'!C23) -> 13030 Lee Peterson
A13: =CONCATENATE('Skippers List'!B24," ",'Skippers List'!C24) -> Chas Schelin
A14: =CONCATENATE('Skippers List'!B25," ",'Skippers List'!C25) -> Claudia Schneller
A15: =CONCATENATE('Skippers List'!B26," ",'Skippers List'!C26) -> Craig/Ellen Cutting
A16: =CONCATENATE('Skippers List'!B27," ",'Skippers List'!C27) -> Dane Lamb
A17: =CONCATENATE('Skippers List'!B28," ",'Skippers List'!C28) -> Don Anderson (Mouette)
A18: =CONCATENATE('Skippers List'!B29," ",'Skippers List'!C29) -> Ginny Wintersteen
A19: =CONCATENATE('Skippers List'!B30," ",'Skippers List'!C30) -> 3011 Karl Maas
A20: =CONCATENATE('Skippers List'!B31," ",'Skippers List'!C31) -> Paul Krause
A21: =CONCATENATE('Skippers List'!B32," ",'Skippers List'!C32) -> Scott Iverson
A22: =CONCATENATE('Skippers List'!B33," ",'Skippers List'!C33) -> Tom Dubisar | Z22: =IF(C22=1,C$3-C22+1+C$3+0.5,IF(C22>1,C$3-C22+1+C$3,IF(C22<1,""))) -> 
A23: =CONCATENATE('Skippers List'!B34," ",'Skippers List'!C34) -> Andy Plzak

Sheet 8-3-16
A1: Day Sailer Racing
A2: ='7-27-16'!A2+7 -> 2016-08-03 | B2: Race # -> | C2: =IF(COUNT(C4:C23)>0,1,"") ->  | D2: =IF(COUNT(D4:D23)>0,1+C2,"") ->  | R2: Grand Total | Y2: Race # -> | Z2: =IF(COUNT(Z4:Z23)>0,1,"") ->  | AA2: =IF(COUNT(AA4:AA23)>0,1+Z2,"") -> 
A3: Skipper/Sail Number | B3: # of boats --> Ranking Below | C3: =COUNT(C4:C23) -> 0 | D3: =COUNT(D4:D23) -> 0 | E3: 0 | F3: 0 | G3: 0 | H3: 0 | I3: 0 | J3: 0 | K3: 0 | L3: 0 | M3: 0 | N3: 0 | O3: 0 | P3: 0 | Q3: 0 | R3: Points
A4: =CONCATENATE('Skippers List'!B15," ",'Skippers List'!C15) -> 1041 Ted Sojka | B4: =IF(R4<>"",_xlfn.RANK.EQ(R4,$R$4:$R$23,0),"") ->  | R4: =IF(SUM(Z4:AN4)>0,SUM(Z4:AN4),"") ->  | Z4: =IF(C4=1,C$3-C4+1+C$3+0.5,IF(C4>1,C$3-C4+1+C$3,IF(C4<1,""))) -> 
A5: =CONCATENATE('Skippers List'!B16," ",'Skippers List'!C16) -> 2753 Gene McNurlen | B5: =IF(R5<>"",_xlfn.RANK.EQ(R5,$R$4:$R$23,0),"") ->  | R5: =IF(SUM(Z5:AN5)>0,SUM(Z5:AN5),"") ->  | Z5: =IF(C5=1,C$3-C5+1+C$3+0.5,IF(C5>1,C$3-C5+1+C$3,IF(C5<1,""))) -> 
A6: =CONCATENATE('Skippers List'!B17," ",'Skippers List'!C17) -> 3097 Jon Feist
A7: =CONCATENATE('Skippers List'!B18," ",'Skippers List'!C18) -> 3383 Harlan Gleason
A8: =CONCATENATE('Skippers List'!B19," ",'Skippers List'!C19) -> 4836 Nate Melby
A9: =CONCATENATE('Skippers List'!B20," ",'Skippers List'!C20) -> 5251 Jordan Cerney
A10: =CONCATENATE('Skippers List'!B21," ",'Skippers List'!C21) -> 11062 Dave Vind
A11: =CONCATENATE('Skippers List'!B22," ",'Skippers List'!C22) -> 11791 Stephen Taylor
A12: =CONCATENATE('Skippers List'!B23," ",'Skippers List'!C23) -> 13030 Lee Peterson
A13: =CONCATENATE('Skippers List'!B24," ",'Skippers List'!C24) -> Chas Schelin
A14: =CONCATENATE('Skippers List'!B25," ",'Skippers List'!C25) -> Claudia Schneller
A15: =CONCATENATE('Skippers List'!B26," ",'Skippers List'!C26) -> Craig/Ellen Cutting
A16: =CONCATENATE('Skippers List'!B27," ",'Skippers List'!C27) -> Dane Lamb
A17: =CONCATENATE('Skippers List'!B28," ",'Skippers List'!C28) -> Don Anderson (Mouette)
A18: =CONCATENATE('Skippers List'!B29," ",'Skippers List'!C29) -> Ginny Wintersteen
A19: =CONCATENATE('Skippers List'!B30," ",'Skippers List'!C30) -> 3011 Karl Maas
A20: =CONCATENATE('Skippers List'!B31," ",'Skippers List'!C31) -> Paul Krause
A21: =CONCATENATE('Skippers List'!B32," ",'Skippers List'!C32) -> Scott Iverson
A22: =CONCATENATE('Skippers List'!B33," ",'Skippers List'!C33) -> Tom Dubisar | Z22: =IF(C22=1,C$3-C22+1+C$3+0.5,IF(C22>1,C$3-C22+1+C$3,IF(C22<1,""))) -> 
A23: =CONCATENATE('Skippers List'!B34," ",'Skippers List'!C34) -> Andy Plzak

Sheet 8-10-16
A1: Day Sailer Racing
A2: ='8-3-16'!A2+7 -> 2016-08-10 | B2: Race # -> | C2: =IF(COUNT(C4:C23)>0,1,"") ->  | D2: =IF(COUNT(D4:D23)>0,1+C2,"") ->  | R2: Grand Total | Y2: Race # -> | Z2: =IF(COUNT(Z4:Z23)>0,1,"") ->  | AA2: =IF(COUNT(AA4:AA23)>0,1+Z2,"") -> 
A3: Skipper/Sail Number | B3: # of boats --> Ranking Below | C3: =COUNT(C4:C23) -> 0 | D3: =COUNT(D4:D23) -> 0 | E3: 0 | F3: 0 | G3: 0 | H3: 0 | I3: 0 | J3: 0 | K3: 0 | L3: 0 | M3: 0 | N3: 0 | O3: 0 | P3: 0 | Q3: 0 | R3: Points
A4: =CONCATENATE('Skippers List'!B15," ",'Skippers List'!C15) -> 1041 Ted Sojka | B4: =IF(R4<>"",_xlfn.RANK.EQ(R4,$R$4:$R$23,0),"") ->  | R4: =IF(SUM(Z4:AN4)>0,SUM(Z4:AN4),"") ->  | Z4: =IF(C4=1,C$3-C4+1+C$3+0.5,IF(C4>1,C$3-C4+1+C$3,IF(C4<1,""))) -> 
A5: =CONCATENATE('Skippers List'!B16," ",'Skippers List'!C16) -> 2753 Gene McNurlen | B5: =IF(R5<>"",_xlfn.RANK.EQ(R5,$R$4:$R$23,0),"") ->  | R5: =IF(SUM(Z5:AN5)>0,SUM(Z5:AN5),"") ->  | Z5: =IF(C5=1,C$3-C5+1+C$3+0.5,IF(C5>1,C$3-C5+1+C$3,IF(C5<1,""))) -> 
A6: =CONCATENATE('Skippers List'!B17," ",'Skippers List'!C17) -> 3097 Jon Feist
A7: =CONCATENATE('Skippers List'!B18," ",'Skippers List'!C18) -> 3383 Harlan Gleason
A8: =CONCATENATE('Skippers List'!B19," ",'Skippers List'!C19) -> 4836 Nate Melby
A9: =CONCATENATE('Skippers List'!B20," ",'Skippers List'!C20) -> 5251 Jordan Cerney
A10: =CONCATENATE('Skippers List'!B21," ",'Skippers List'!C21) -> 11062 Dave Vind
A11: =CONCATENATE('Skippers List'!B22," ",'Skippers List'!C22) -> 11791 Stephen Taylor
A12: =CONCATENATE('Skippers List'!B23," ",'Skippers List'!C23) -> 13030 Lee Peterson
A13: =CONCATENATE('Skippers List'!B24," ",'Skippers List'!C24) -> Chas Schelin
A14: =CONCATENATE('Skippers List'!B25," ",'Skippers List'!C25) -> Claudia Schneller
A15: =CONCATENATE('Skippers List'!B26," ",'Skippers List'!C26) -> Craig/Ellen Cutting
A16: =CONCATENATE('Skippers List'!B27," ",'Skippers List'!C27) -> Dane Lamb
A17: =CONCATENATE('Skippers List'!B28," ",'Skippers List'!C28) -> Don Anderson (Mouette)
A18: =CONCATENATE('Skippers List'!B29," ",'Skippers List'!C29) -> Ginny Wintersteen
A19: =CONCATENATE('Skippers List'!B30," ",'Skippers List'!C30) -> 3011 Karl Maas
A20: =CONCATENATE('Skippers List'!B31," ",'Skippers List'!C31) -> Paul Krause
A21: =CONCATENATE('Skippers List'!B32," ",'Skippers List'!C32) -> Scott Iverson
A22: =CONCATENATE('Skippers List'!B33," ",'Skippers List'!C33) -> Tom Dubisar | Z22: =IF(C22=1,C$3-C22+1+C$3+0.5,IF(C22>1,C$3-C22+1+C$3,IF(C22<1,""))) -> 
A23: =CONCATENATE('Skippers List'!B34," ",'Skippers List'!C34) -> Andy Plzak

Sheet 8-17-16
A1: Day Sailer Racing
A2: ='8-10-16'!A2+7 -> 2016-08-17 | B2: Race # -> | C2: =IF(COUNT(C4:C23)>0,1,"") ->  | D2: =IF(COUNT(D4:D23)>0,1+C2,"") ->  | R2: Grand Total | Y2: Race # -> | Z2: =IF(COUNT(Z4:Z23)>0,1,"") ->  | AA2: =IF(COUNT(AA4:AA23)>0,1+Z2,"") -> 
A3: Skipper/Sail Number | B3: # of boats --> Ranking Below | C3: =COUNT(C4:C23) -> 0 | D3: =COUNT(D4:D23) -> 0 | E3: 0 | F3: 0 | G3: 0 | H3: 0 | I3: 0 | J3: 0 | K3: 0 | L3: 0 | M3: 0 | N3: 0 | O3: 0 | P3: 0 | Q3: 0 | R3: Points
A4: =CONCATENATE('Skippers List'!B15," ",'Skippers List'!C15) -> 1041 Ted Sojka | B4: =IF(R4<>"",_xlfn.RANK.EQ(R4,$R$4:$R$23,0),"") ->  | R4: =IF(SUM(Z4:AN4)>0,SUM(Z4:AN4),"") ->  | Z4: =IF(C4=1,C$3-C4+1+C$3+0.5,IF(C4>1,C$3-C4+1+C$3,IF(C4<1,""))) -> 
A5: =CONCATENATE('Skippers List'!B16," ",'Skippers List'!C16) -> 2753 Gene McNurlen | B5: =IF(R5<>"",_xlfn.RANK.EQ(R5,$R$4:$R$23,0),"") ->  | R5: =IF(SUM(Z5:AN5)>0,SUM(Z5:AN5),"") ->  | Z5: =IF(C5=1,C$3-C5+1+C$3+0.5,IF(C5>1,C$3-C5+1+C$3,IF(C5<1,""))) -> 
A6: =CONCATENATE('Skippers List'!B17," ",'Skippers List'!C17) -> 3097 Jon Feist
A7: =CONCATENATE('Skippers List'!B18," ",'Skippers List'!C18) -> 3383 Harlan Gleason
A8: =CONCATENATE('Skippers List'!B19," ",'Skippers List'!C19) -> 4836 Nate Melby
A9: =CONCATENATE('Skippers List'!B20," ",'Skippers List'!C20) -> 5251 Jordan Cerney
A10: =CONCATENATE('Skippers List'!B21," ",'Skippers List'!C21) -> 11062 Dave Vind
A11: =CONCATENATE('Skippers List'!B22," ",'Skippers List'!C22) -> 11791 Stephen Taylor
A12: =CONCATENATE('Skippers List'!B23," ",'Skippers List'!C23) -> 13030 Lee Peterson
A13: =CONCATENATE('Skippers List'!B24," ",'Skippers List'!C24) -> Chas Schelin
A14: =CONCATENATE('Skippers List'!B25," ",'Skippers List'!C25) -> Claudia Schneller
A15: =CONCATENATE('Skippers List'!B26," ",'Skippers List'!C26) -> Craig/Ellen Cutting
A16: =CONCATENATE('Skippers List'!B27," ",'Skippers List'!C27) -> Dane Lamb
A17: =CONCATENATE('Skippers List'!B28," ",'Skippers List'!C28) -> Don Anderson (Mouette)
A18: =CONCATENATE('Skippers List'!B29," ",'Skippers List'!C29) -> Ginny Wintersteen
A19: =CONCATENATE('Skippers List'!B30," ",'Skippers List'!C30) -> 3011 Karl Maas
A20: =CONCATENATE('Skippers List'!B31," ",'Skippers List'!C31) -> Paul Krause
A21: =CONCATENATE('Skippers List'!B32," ",'Skippers List'!C32) -> Scott Iverson
A22: =CONCATENATE('Skippers List'!B33," ",'Skippers List'!C33) -> Tom Dubisar | Z22: =IF(C22=1,C$3-C22+1+C$3+0.5,IF(C22>1,C$3-C22+1+C$3,IF(C22<1,""))) -> 
A23: =CONCATENATE('Skippers List'!B34," ",'Skippers List'!C34) -> Andy Plzak

Sheet 8-24-16
A1: Day Sailer Racing
A2: ='8-17-16'!A2+7 -> 2016-08-24 | B2: Race # -> | C2: =IF(COUNT(C4:C23)>0,1,"") -> 1 | D2: =IF(COUNT(D4:D23)>0,1+C2,"") -> 2 | E2: 3 | F2: 4 | R2: Grand Total | Y2: Race # -> | Z2: =IF(COUNT(Z4:Z23)>0,1,"") -> 1 | AA2: =IF(COUNT(AA4:AA23)>0,1+Z2,"") -> 2 | AB2: 3 | AC2: 4
A3: Skipper/Sail Number | B3: # of boats --> Ranking Below | C3: =COUNT(C4:C23) -> 5 | D3: =COUNT(D4:D23) -> 5 | E3: 5 | F3: 5 | G3: 0 | H3: 0 | I3: 0 | J3: 0 | K3: 0 | L3: 0 | M3: 0 | N3: 0 | O3: 0 | P3: 0 | Q3: 0 | R3: Points
A4: =CONCATENATE('Skippers List'!B15," ",'Skippers List'!C15) -> 1041 Ted Sojka | B4: =IF(R4<>"",_xlfn.RANK.EQ(R4,$R$4:$R$23,0),"") -> 4 | C4: 4 | D4: 3 | E4: 3 | F4: 5 | R4: =IF(SUM(Z4:AN4)>0,SUM(Z4:AN4),"") -> 29 | Z4: =IF(C4=1,C$3-C4+1+C$3+0.5,IF(C4>1,C$3-C4+1+C$3,IF(C4<1,""))) -> 7 | AA4: 8 | AB4: 8 | AC4: 6
A5: =CONCATENATE('Skippers List'!B16," ",'Skippers List'!C16) -> 2753 Gene McNurlen | B5: =IF(R5<>"",_xlfn.RANK.EQ(R5,$R$4:$R$23,0),"") -> 3 | C5: 3 | D5: 4 | E5: 2 | F5: 4 | R5: =IF(SUM(Z5:AN5)>0,SUM(Z5:AN5),"") -> 31 | Z5: =IF(C5=1,C$3-C5+1+C$3+0.5,IF(C5>1,C$3-C5+1+C$3,IF(C5<1,""))) -> 8 | AA5: 7 | AB5: 9 | AC5: 7
A6: =CONCATENATE('Skippers List'!B17," ",'Skippers List'!C17) -> 3097 Jon Feist
A7: =CONCATENATE('Skippers List'!B18," ",'Skippers List'!C18) -> 3383 Harlan Gleason
A8: =CONCATENATE('Skippers List'!B19," ",'Skippers List'!C19) -> 4836 Nate Melby
A9: =CONCATENATE('Skippers List'!B20," ",'Skippers List'!C20) -> 5251 Jordan Cerney
A10: =CONCATENATE('Skippers List'!B21," ",'Skippers List'!C21) -> 11062 Dave Vind
A11: =CONCATENATE('Skippers List'!B22," ",'Skippers List'!C22) -> 11791 Stephen Taylor | B11: 5 | C11: 5 | D11: 5 | E11: 4 | F11: 3 | R11: 27 | Z11: 6 | AA11: 6 | AB11: 7 | AC11: 8
A12: =CONCATENATE('Skippers List'!B23," ",'Skippers List'!C23) -> 13030 Lee Peterson | B12: 2 | C12: 1 | D12: 1 | E12: 5 | F12: 2 | R12: 36 | Z12: 10.5 | AA12: 10.5 | AB12: 6 | AC12: 9
A13: =CONCATENATE('Skippers List'!B24," ",'Skippers List'!C24) -> Chas Schelin
A14: =CONCATENATE('Skippers List'!B25," ",'Skippers List'!C25) -> Claudia Schneller
A15: =CONCATENATE('Skippers List'!B26," ",'Skippers List'!C26) -> Craig/Ellen Cutting
A16: =CONCATENATE('Skippers List'!B27," ",'Skippers List'!C27) -> Dane Lamb
A17: =CONCATENATE('Skippers List'!B28," ",'Skippers List'!C28) -> Don Anderson (Mouette)
A18: =CONCATENATE('Skippers List'!B29," ",'Skippers List'!C29) -> Ginny Wintersteen
A19: =CONCATENATE('Skippers List'!B30," ",'Skippers List'!C30) -> 3011 Karl Maas
A20: =CONCATENATE('Skippers List'!B31," ",'Skippers List'!C31) -> Paul Krause
A21: =CONCATENATE('Skippers List'!B32," ",'Skippers List'!C32) -> Scott Iverson
A22: =CONCATENATE('Skippers List'!B33," ",'Skippers List'!C33) -> Tom Dubisar | Z22: =IF(C22=1,C$3-C22+1+C$3+0.5,IF(C22>1,C$3-C22+1+C$3,IF(C22<1,""))) -> 
A23: =CONCATENATE('Skippers List'!B34," ",'Skippers List'!C34) -> Andy Plzak | B23: 1 | C23: 2 | D23: 2 | E23: 1 | F23: 1 | R23: 39 | Z23: 9 | AA23: 9 | AB23: 10.5 | AC23: 10.5

Sheet 8-31-16
A1: Day Sailer Racing
A2: ='8-24-16'!A2+7 -> 2016-08-31 | B2: Race # -> | C2: =IF(COUNT(C4:C23)>0,1,"") -> 1 | D2: =IF(COUNT(D4:D23)>0,1+C2,"") -> 2 | E2: 3 | F2: 4 | R2: Grand Total | Y2: Race # -> | Z2: =IF(COUNT(Z4:Z23)>0,1,"") -> 1 | AA2: =IF(COUNT(AA4:AA23)>0,1+Z2,"") -> 2 | AB2: 3 | AC2: 4
A3: Skipper/Sail Number | B3: # of boats --> Ranking Below | C3: =COUNT(C4:C23) -> 5 | D3: =COUNT(D4:D23) -> 7 | E3: 7 | F3: 7 | G3: 0 | H3: 0 | I3: 0 | J3: 0 | K3: 0 | L3: 0 | M3: 0 | N3: 0 | O3: 0 | P3: 0 | Q3: 0 | R3: Points
A4: =CONCATENATE('Skippers List'!B15," ",'Skippers List'!C15) -> 1041 Ted Sojka | B4: =IF(R4<>"",_xlfn.RANK.EQ(R4,$R$4:$R$23,0),"") -> 2 | C4: 3 | D4: 2 | E4: 3 | F4: 5 | R4: =IF(SUM(Z4:AN4)>0,SUM(Z4:AN4),"") -> 43 | Z4: =IF(C4=1,C$3-C4+1+C$3+0.5,IF(C4>1,C$3-C4+1+C$3,IF(C4<1,""))) -> 8 | AA4: 13 | AB4: 12 | AC4: 10
A5: =CONCATENATE('Skippers List'!B16," ",'Skippers List'!C16) -> 2753 Gene McNurlen | B5: =IF(R5<>"",_xlfn.RANK.EQ(R5,$R$4:$R$23,0),"") -> 5 | C5: 5 | D5: 5 | E5: 5 | F5: 5 | R5: =IF(SUM(Z5:AN5)>0,SUM(Z5:AN5),"") -> 36 | Z5: 6 | AA5: 10 | AB5: 10 | AC5: 10
A6: =CONCATENATE('Skippers List'!B17," ",'Skippers List'!C17) -> 3097 Jon Feist | B6: 3 | D6: 3 | E6: 1 | F6: 1 | R6: 41 | AA6: 12 | AB6: 14.5 | AC6: 14.5
A7: =CONCATENATE('Skippers List'!B18," ",'Skippers List'!C18) -> 3383 Harlan Gleason
A8: =CONCATENATE('Skippers List'!B19," ",'Skippers List'!C19) -> 4836 Nate Melby
A9: =CONCATENATE('Skippers List'!B20," ",'Skippers List'!C20) -> 5251 Jordan Cerney | B9: 7 | D9: 4 | E9: 7 | F9: 4 | R9: 30 | AA9: 11 | AB9: 8 | AC9: 11
A10: =CONCATENATE('Skippers List'!B21," ",'Skippers List'!C21) -> 11062 Dave Vind
A11: =CONCATENATE('Skippers List'!B22," ",'Skippers List'!C22) -> 11791 Stephen Taylor | B11: 4 | C11: 2 | D11: 6 | E11: 6 | F11: 3 | R11: 39 | Z11: 9 | AA11: 9 | AB11: 9 | AC11: 12
A12: =CONCATENATE('Skippers List'!B23," ",'Skippers List'!C23) -> 13030 Lee Peterson | B12: 1 | C12: 1 | D12: 1 | E12: 2 | F12: 2 | R12: 51 | Z12: 10.5 | AA12: 14.5 | AB12: 13 | AC12: 13
A13: =CONCATENATE('Skippers List'!B24," ",'Skippers List'!C24) -> Chas Schelin
A14: =CONCATENATE('Skippers List'!B25," ",'Skippers List'!C25) -> Claudia Schneller
A15: =CONCATENATE('Skippers List'!B26," ",'Skippers List'!C26) -> Craig/Ellen Cutting
A16: =CONCATENATE('Skippers List'!B27," ",'Skippers List'!C27) -> Dane Lamb
A17: =CONCATENATE('Skippers List'!B28," ",'Skippers List'!C28) -> Don Anderson (Mouette)
A18: =CONCATENATE('Skippers List'!B29," ",'Skippers List'!C29) -> Ginny Wintersteen
A19: =CONCATENATE('Skippers List'!B30," ",'Skippers List'!C30) -> 3011 Karl Maas
A20: =CONCATENATE('Skippers List'!B31," ",'Skippers List'!C31) -> Paul Krause | Z20: =IF(C20=1,C$3-C20+1+C$3+0.5,IF(C20>1,C$3-C20+1+C$3,IF(C20<1,""))) -> 
A21: =CONCATENATE('Skippers List'!B32," ",'Skippers List'!C32) -> Scott Iverson
A22: =CONCATENATE('Skippers List'!B33," ",'Skippers List'!C33) -> Tom Dubisar
A23: =CONCATENATE('Skippers List'!B34," ",'Skippers List'!C34) -> Andy Plzak | B23: 6 | C23: 4 | D23: 7 | E23: 4 | F23: 6 | R23: 35 | Z23: 7 | AA23: 8 | AB23: 11 | AC23: 9

Sheet 9-7-16
A1: Day Sailer Racing
A2: ='8-31-16'!A2+7 -> 2016-09-07 | B2: Race # -> | C2: =IF(COUNT(C4:C23)>0,1,"") ->  | D2: =IF(COUNT(D4:D23)>0,1+C2,"") ->  | R2: Grand Total | Y2: Race # -> | Z2: =IF(COUNT(Z4:Z23)>0,1,"") ->  | AA2: =IF(COUNT(AA4:AA23)>0,1+Z2,"") -> 
A3: Skipper/Sail Number | B3: # of boats --> Ranking Below | C3: =COUNT(C4:C23) -> 0 | D3: =COUNT(D4:D23) -> 0 | E3: 0 | F3: 0 | G3: 0 | H3: 0 | I3: 0 | J3: 0 | K3: 0 | L3: 0 | M3: 0 | N3: 0 | O3: 0 | P3: 0 | Q3: 0 | R3: Points
A4: =CONCATENATE('Skippers List'!B15," ",'Skippers List'!C15) -> 1041 Ted Sojka | B4: =IF(R4<>"",_xlfn.RANK.EQ(R4,$R$4:$R$23,0),"") ->  | R4: =IF(SUM(Z4:AN4)>0,SUM(Z4:AN4),"") ->  | Z4: =IF(C4=1,C$3-C4+1+C$3+0.5,IF(C4>1,C$3-C4+1+C$3,IF(C4<1,""))) -> 
A5: =CONCATENATE('Skippers List'!B16," ",'Skippers List'!C16) -> 2753 Gene McNurlen | B5: =IF(R5<>"",_xlfn.RANK.EQ(R5,$R$4:$R$23,0),"") ->  | R5: =IF(SUM(Z5:AN5)>0,SUM(Z5:AN5),"") -> 
A6: =CONCATENATE('Skippers List'!B17," ",'Skippers List'!C17) -> 3097 Jon Feist
A7: =CONCATENATE('Skippers List'!B18," ",'Skippers List'!C18) -> 3383 Harlan Gleason
A8: =CONCATENATE('Skippers List'!B19," ",'Skippers List'!C19) -> 4836 Nate Melby
A9: =CONCATENATE('Skippers List'!B20," ",'Skippers List'!C20) -> 5251 Jordan Cerney
A10: =CONCATENATE('Skippers List'!B21," ",'Skippers List'!C21) -> 11062 Dave Vind
A11: =CONCATENATE('Skippers List'!B22," ",'Skippers List'!C22) -> 11791 Stephen Taylor
A12: =CONCATENATE('Skippers List'!B23," ",'Skippers List'!C23) -> 13030 Lee Peterson
A13: =CONCATENATE('Skippers List'!B24," ",'Skippers List'!C24) -> Chas Schelin
A14: =CONCATENATE('Skippers List'!B25," ",'Skippers List'!C25) -> Claudia Schneller
A15: =CONCATENATE('Skippers List'!B26," ",'Skippers List'!C26) -> Craig/Ellen Cutting
A16: =CONCATENATE('Skippers List'!B27," ",'Skippers List'!C27) -> Dane Lamb
A17: =CONCATENATE('Skippers List'!B28," ",'Skippers List'!C28) -> Don Anderson (Mouette)
A18: =CONCATENATE('Skippers List'!B29," ",'Skippers List'!C29) -> Ginny Wintersteen
A19: =CONCATENATE('Skippers List'!B30," ",'Skippers List'!C30) -> 3011 Karl Maas
A20: =CONCATENATE('Skippers List'!B31," ",'Skippers List'!C31) -> Paul Krause | Z20: =IF(C20=1,C$3-C20+1+C$3+0.5,IF(C20>1,C$3-C20+1+C$3,IF(C20<1,""))) -> 
A21: =CONCATENATE('Skippers List'!B32," ",'Skippers List'!C32) -> Scott Iverson
A22: =CONCATENATE('Skippers List'!B33," ",'Skippers List'!C33) -> Tom Dubisar
A23: =CONCATENATE('Skippers List'!B34," ",'Skippers List'!C34) -> Andy Plzak

Sheet 9-14-16
A1: Day Sailer Racing
A2: ='9-7-16'!A2+7 -> 2016-09-14 | B2: Race # -> | C2: =IF(COUNT(C4:C23)>0,1,"") ->  | D2: =IF(COUNT(D4:D23)>0,1+C2,"") ->  | R2: Grand Total | Y2: Race # -> | Z2: =IF(COUNT(Z4:Z23)>0,1,"") ->  | AA2: =IF(COUNT(AA4:AA23)>0,1+Z2,"") -> 
A3: Skipper/Sail Number | B3: # of boats --> Ranking Below | C3: =COUNT(C4:C23) -> 0 | D3: =COUNT(D4:D23) -> 0 | E3: 0 | F3: 0 | G3: 0 | H3: 0 | I3: 0 | J3: 0 | K3: 0 | L3: 0 | M3: 0 | N3: 0 | O3: 0 | P3: 0 | Q3: 0 | R3: Points
A4: =CONCATENATE('Skippers List'!B15," ",'Skippers List'!C15) -> 1041 Ted Sojka | B4: =IF(R4<>"",_xlfn.RANK.EQ(R4,$R$4:$R$23,0),"") ->  | R4: =IF(SUM(Z4:AN4)>0,SUM(Z4:AN4),"") ->  | Z4: =IF(C4=1,C$3-C4+1+C$3+0.5,IF(C4>1,C$3-C4+1+C$3,IF(C4<1,""))) -> 
A5: =CONCATENATE('Skippers List'!B16," ",'Skippers List'!C16) -> 2753 Gene McNurlen | B5: =IF(R5<>"",_xlfn.RANK.EQ(R5,$R$4:$R$23,0),"") ->  | R5: =IF(SUM(Z5:AN5)>0,SUM(Z5:AN5),"") -> 
A6: =CONCATENATE('Skippers List'!B17," ",'Skippers List'!C17) -> 3097 Jon Feist
A7: =CONCATENATE('Skippers List'!B18," ",'Skippers List'!C18) -> 3383 Harlan Gleason
A8: =CONCATENATE('Skippers List'!B19," ",'Skippers List'!C19) -> 4836 Nate Melby
A9: =CONCATENATE('Skippers List'!B20," ",'Skippers List'!C20) -> 5251 Jordan Cerney
A10: =CONCATENATE('Skippers List'!B21," ",'Skippers List'!C21) -> 11062 Dave Vind
A11: =CONCATENATE('Skippers List'!B22," ",'Skippers List'!C22) -> 11791 Stephen Taylor
A12: =CONCATENATE('Skippers List'!B23," ",'Skippers List'!C23) -> 13030 Lee Peterson
A13: =CONCATENATE('Skippers List'!B24," ",'Skippers List'!C24) -> Chas Schelin
A14: =CONCATENATE('Skippers List'!B25," ",'Skippers List'!C25) -> Claudia Schneller
A15: =CONCATENATE('Skippers List'!B26," ",'Skippers List'!C26) -> Craig/Ellen Cutting
A16: =CONCATENATE('Skippers List'!B27," ",'Skippers List'!C27) -> Dane Lamb
A17: =CONCATENATE('Skippers List'!B28," ",'Skippers List'!C28) -> Don Anderson (Mouette)
A18: =CONCATENATE('Skippers List'!B29," ",'Skippers List'!C29) -> Ginny Wintersteen
A19: =CONCATENATE('Skippers List'!B30," ",'Skippers List'!C30) -> 3011 Karl Maas
A20: =CONCATENATE('Skippers List'!B31," ",'Skippers List'!C31) -> Paul Krause | Z20: =IF(C20=1,C$3-C20+1+C$3+0.5,IF(C20>1,C$3-C20+1+C$3,IF(C20<1,""))) -> 
A21: =CONCATENATE('Skippers List'!B32," ",'Skippers List'!C32) -> Scott Iverson
A22: =CONCATENATE('Skippers List'!B33," ",'Skippers List'!C33) -> Tom Dubisar
A23: =CONCATENATE('Skippers List'!B34," ",'Skippers List'!C34) -> Andy Plzak

Sheet 9-21-16
A1: Day Sailer Racing
A2: ='9-14-16'!A2+7 -> 2016-09-21 | B2: Race # -> | C2: =IF(COUNT(C4:C23)>0,1,"") ->  | D2: =IF(COUNT(D4:D23)>0,1+C2,"") ->  | R2: Grand Total | Y2: Race # -> | Z2: =IF(COUNT(Z4:Z23)>0,1,"") ->  | AA2: =IF(COUNT(AA4:AA23)>0,1+Z2,"") -> 
A3: Skipper/Sail Number | B3: # of boats --> Ranking Below | C3: =COUNT(C4:C23) -> 0 | D3: =COUNT(D4:D23) -> 0 | E3: 0 | F3: 0 | G3: 0 | H3: 0 | I3: 0 | J3: 0 | K3: 0 | L3: 0 | M3: 0 | N3: 0 | O3: 0 | P3: 0 | Q3: 0 | R3: Points
A4: =CONCATENATE('Skippers List'!B15," ",'Skippers List'!C15) -> 1041 Ted Sojka | B4: =IF(R4<>"",_xlfn.RANK.EQ(R4,$R$4:$R$23,0),"") ->  | R4: =IF(SUM(Z4:AN4)>0,SUM(Z4:AN4),"") ->  | Z4: =IF(C4=1,C$3-C4+1+C$3+0.5,IF(C4>1,C$3-C4+1+C$3,IF(C4<1,""))) -> 
A5: =CONCATENATE('Skippers List'!B16," ",'Skippers List'!C16) -> 2753 Gene McNurlen | B5: =IF(R5<>"",_xlfn.RANK.EQ(R5,$R$4:$R$23,0),"") ->  | R5: =IF(SUM(Z5:AN5)>0,SUM(Z5:AN5),"") -> 
A6: =CONCATENATE('Skippers List'!B17," ",'Skippers List'!C17) -> 3097 Jon Feist
A7: =CONCATENATE('Skippers List'!B18," ",'Skippers List'!C18) -> 3383 Harlan Gleason
A8: =CONCATENATE('Skippers List'!B19," ",'Skippers List'!C19) -> 4836 Nate Melby
A9: =CONCATENATE('Skippers List'!B20," ",'Skippers List'!C20) -> 5251 Jordan Cerney
A10: =CONCATENATE('Skippers List'!B21," ",'Skippers List'!C21) -> 11062 Dave Vind
A11: =CONCATENATE('Skippers List'!B22," ",'Skippers List'!C22) -> 11791 Stephen Taylor
A12: =CONCATENATE('Skippers List'!B23," ",'Skippers List'!C23) -> 13030 Lee Peterson
A13: =CONCATENATE('Skippers List'!B24," ",'Skippers List'!C24) -> Chas Schelin
A14: =CONCATENATE('Skippers List'!B25," ",'Skippers List'!C25) -> Claudia Schneller
A15: =CONCATENATE('Skippers List'!B26," ",'Skippers List'!C26) -> Craig/Ellen Cutting
A16: =CONCATENATE('Skippers List'!B27," ",'Skippers List'!C27) -> Dane Lamb
A17: =CONCATENATE('Skippers List'!B28," ",'Skippers List'!C28) -> Don Anderson (Mouette)
A18: =CONCATENATE('Skippers List'!B29," ",'Skippers List'!C29) -> Ginny Wintersteen
A19: =CONCATENATE('Skippers List'!B30," ",'Skippers List'!C30) -> 3011 Karl Maas
A20: =CONCATENATE('Skippers List'!B31," ",'Skippers List'!C31) -> Paul Krause | Z20: =IF(C20=1,C$3-C20+1+C$3+0.5,IF(C20>1,C$3-C20+1+C$3,IF(C20<1,""))) -> 
A21: =CONCATENATE('Skippers List'!B32," ",'Skippers List'!C32) -> Scott Iverson
A22: =CONCATENATE('Skippers List'!B33," ",'Skippers List'!C33) -> Tom Dubisar
A23: =CONCATENATE('Skippers List'!B34," ",'Skippers List'!C34) -> Andy Plzak

Sheet 9-28-16
A1: Day Sailer Racing
A2: ='9-21-16'!A2+7 -> 2016-09-28 | B2: Race # -> | C2: =IF(COUNT(C4:C23)>0,1,"") ->  | D2: =IF(COUNT(D4:D23)>0,1+C2,"") ->  | R2: Grand Total | Y2: Race # -> | Z2: =IF(COUNT(Z4:Z23)>0,1,"") ->  | AA2: =IF(COUNT(AA4:AA23)>0,1+Z2,"") -> 
A3: Skipper/Sail Number | B3: # of boats --> Ranking Below | C3: =COUNT(C4:C23) -> 0 | D3: =COUNT(D4:D23) -> 0 | E3: 0 | F3: 0 | G3: 0 | H3: 0 | I3: 0 | J3: 0 | K3: 0 | L3: 0 | M3: 0 | N3: 0 | O3: 0 | P3: 0 | Q3: 0 | R3: Points
A4: =CONCATENATE('Skippers List'!B15," ",'Skippers List'!C15) -> 1041 Ted Sojka | B4: =IF(R4<>"",_xlfn.RANK.EQ(R4,$R$4:$R$23,0),"") ->  | R4: =IF(SUM(Z4:AN4)>0,SUM(Z4:AN4),"") ->  | Z4: =IF(C4=1,C$3-C4+1+C$3+0.5,IF(C4>1,C$3-C4+1+C$3,IF(C4<1,""))) -> 
A5: =CONCATENATE('Skippers List'!B16," ",'Skippers List'!C16) -> 2753 Gene McNurlen | B5: =IF(R5<>"",_xlfn.RANK.EQ(R5,$R$4:$R$23,0),"") ->  | R5: =IF(SUM(Z5:AN5)>0,SUM(Z5:AN5),"") -> 
A6: =CONCATENATE('Skippers List'!B17," ",'Skippers List'!C17) -> 3097 Jon Feist
A7: =CONCATENATE('Skippers List'!B18," ",'Skippers List'!C18) -> 3383 Harlan Gleason
A8: =CONCATENATE('Skippers List'!B19," ",'Skippers List'!C19) -> 4836 Nate Melby
A9: =CONCATENATE('Skippers List'!B20," ",'Skippers List'!C20) -> 5251 Jordan Cerney
A10: =CONCATENATE('Skippers List'!B21," ",'Skippers List'!C21) -> 11062 Dave Vind
A11: =CONCATENATE('Skippers List'!B22," ",'Skippers List'!C22) -> 11791 Stephen Taylor
A12: =CONCATENATE('Skippers List'!B23," ",'Skippers List'!C23) -> 13030 Lee Peterson
A13: =CONCATENATE('Skippers List'!B24," ",'Skippers List'!C24) -> Chas Schelin
A14: =CONCATENATE('Skippers List'!B25," ",'Skippers List'!C25) -> Claudia Schneller
A15: =CONCATENATE('Skippers List'!B26," ",'Skippers List'!C26) -> Craig/Ellen Cutting
A16: =CONCATENATE('Skippers List'!B27," ",'Skippers List'!C27) -> Dane Lamb
A17: =CONCATENATE('Skippers List'!B28," ",'Skippers List'!C28) -> Don Anderson (Mouette)
A18: =CONCATENATE('Skippers List'!B29," ",'Skippers List'!C29) -> Ginny Wintersteen
A19: =CONCATENATE('Skippers List'!B30," ",'Skippers List'!C30) -> 3011 Karl Maas
A20: =CONCATENATE('Skippers List'!B31," ",'Skippers List'!C31) -> Paul Krause | Z20: =IF(C20=1,C$3-C20+1+C$3+0.5,IF(C20>1,C$3-C20+1+C$3,IF(C20<1,""))) -> 
A21: =CONCATENATE('Skippers List'!B32," ",'Skippers List'!C32) -> Scott Iverson
A22: =CONCATENATE('Skippers List'!B33," ",'Skippers List'!C33) -> Tom Dubisar
A23: =CONCATENATE('Skippers List'!B34," ",'Skippers List'!C34) -> Andy Plzak

Sheet 10-5-16
A1: Day Sailer Racing
A2: ='9-28-16'!A2+7 -> 2016-10-05 | B2: Race # -> | C2: =IF(COUNT(C4:C23)>0,1,"") ->  | D2: =IF(COUNT(D4:D23)>0,1+C2,"") ->  | R2: Grand Total | Y2: Race # -> | Z2: =IF(COUNT(Z4:Z23)>0,1,"") ->  | AA2: =IF(COUNT(AA4:AA23)>0,1+Z2,"") -> 
A3: Skipper/Sail Number | B3: # of boats --> Ranking Below | C3: =COUNT(C4:C23) -> 0 | D3: =COUNT(D4:D23) -> 0 | E3: 0 | F3: 0 | G3: 0 | H3: 0 | I3: 0 | J3: 0 | K3: 0 | L3: 0 | M3: 0 | N3: 0 | O3: 0 | P3: 0 | Q3: 0 | R3: Points
A4: =CONCATENATE('Skippers List'!B15," ",'Skippers List'!C15) -> 1041 Ted Sojka | B4: =IF(R4<>"",_xlfn.RANK.EQ(R4,$R$4:$R$23,0),"") ->  | R4: =IF(SUM(Z4:AN4)>0,SUM(Z4:AN4),"") ->  | Z4: =IF(C4=1,C$3-C4+1+C$3+0.5,IF(C4>1,C$3-C4+1+C$3,IF(C4<1,""))) -> 
A5: =CONCATENATE('Skippers List'!B16," ",'Skippers List'!C16) -> 2753 Gene McNurlen | B5: =IF(R5<>"",_xlfn.RANK.EQ(R5,$R$4:$R$23,0),"") ->  | R5: =IF(SUM(Z5:AN5)>0,SUM(Z5:AN5),"") -> 
A6: =CONCATENATE('Skippers List'!B17," ",'Skippers List'!C17) -> 3097 Jon Feist
A7: =CONCATENATE('Skippers List'!B18," ",'Skippers List'!C18) -> 3383 Harlan Gleason
A8: =CONCATENATE('Skippers List'!B19," ",'Skippers List'!C19) -> 4836 Nate Melby
A9: =CONCATENATE('Skippers List'!B20," ",'Skippers List'!C20) -> 5251 Jordan Cerney
A10: =CONCATENATE('Skippers List'!B21," ",'Skippers List'!C21) -> 11062 Dave Vind
A11: =CONCATENATE('Skippers List'!B22," ",'Skippers List'!C22) -> 11791 Stephen Taylor
A12: =CONCATENATE('Skippers List'!B23," ",'Skippers List'!C23) -> 13030 Lee Peterson
A13: =CONCATENATE('Skippers List'!B24," ",'Skippers List'!C24) -> Chas Schelin
A14: =CONCATENATE('Skippers List'!B25," ",'Skippers List'!C25) -> Claudia Schneller
A15: =CONCATENATE('Skippers List'!B26," ",'Skippers List'!C26) -> Craig/Ellen Cutting
A16: =CONCATENATE('Skippers List'!B27," ",'Skippers List'!C27) -> Dane Lamb
A17: =CONCATENATE('Skippers List'!B28," ",'Skippers List'!C28) -> Don Anderson (Mouette)
A18: =CONCATENATE('Skippers List'!B29," ",'Skippers List'!C29) -> Ginny Wintersteen
A19: =CONCATENATE('Skippers List'!B30," ",'Skippers List'!C30) -> 3011 Karl Maas
A20: =CONCATENATE('Skippers List'!B31," ",'Skippers List'!C31) -> Paul Krause | Z20: =IF(C20=1,C$3-C20+1+C$3+0.5,IF(C20>1,C$3-C20+1+C$3,IF(C20<1,""))) -> 
A21: =CONCATENATE('Skippers List'!B32," ",'Skippers List'!C32) -> Scott Iverson
A22: =CONCATENATE('Skippers List'!B33," ",'Skippers List'!C33) -> Tom Dubisar
A23: =CONCATENATE('Skippers List'!B34," ",'Skippers List'!C34) -> Andy Plzak

Sheet 10-12-16
A1: Day Sailer Racing
A2: ='10-5-16'!A2+7 -> 2016-10-12 | B2: Race # -> | C2: =IF(COUNT(C4:C23)>0,1,"") ->  | D2: =IF(COUNT(D4:D23)>0,1+C2,"") ->  | R2: Grand Total | Y2: Race # -> | Z2: =IF(COUNT(Z4:Z23)>0,1,"") ->  | AA2: =IF(COUNT(AA4:AA23)>0,1+Z2,"") -> 
A3: Skipper/Sail Number | B3: # of boats --> Ranking Below | C3: =COUNT(C4:C23) -> 0 | D3: =COUNT(D4:D23) -> 0 | E3: 0 | F3: 0 | G3: 0 | H3: 0 | I3: 0 | J3: 0 | K3: 0 | L3: 0 | M3: 0 | N3: 0 | O3: 0 | P3: 0 | Q3: 0 | R3: Points
A4: =CONCATENATE('Skippers List'!B15," ",'Skippers List'!C15) -> 1041 Ted Sojka | B4: =IF(R4<>"",_xlfn.RANK.EQ(R4,$R$4:$R$23,0),"") ->  | R4: =IF(SUM(Z4:AN4)>0,SUM(Z4:AN4),"") ->  | Z4: =IF(C4=1,C$3-C4+1+C$3+0.5,IF(C4>1,C$3-C4+1+C$3,IF(C4<1,""))) -> 
A5: =CONCATENATE('Skippers List'!B16," ",'Skippers List'!C16) -> 2753 Gene McNurlen | B5: =IF(R5<>"",_xlfn.RANK.EQ(R5,$R$4:$R$23,0),"") ->  | R5: =IF(SUM(Z5:AN5)>0,SUM(Z5:AN5),"") -> 
A6: =CONCATENATE('Skippers List'!B17," ",'Skippers List'!C17) -> 3097 Jon Feist
A7: =CONCATENATE('Skippers List'!B18," ",'Skippers List'!C18) -> 3383 Harlan Gleason
A8: =CONCATENATE('Skippers List'!B19," ",'Skippers List'!C19) -> 4836 Nate Melby
A9: =CONCATENATE('Skippers List'!B20," ",'Skippers List'!C20) -> 5251 Jordan Cerney
A10: =CONCATENATE('Skippers List'!B21," ",'Skippers List'!C21) -> 11062 Dave Vind
A11: =CONCATENATE('Skippers List'!B22," ",'Skippers List'!C22) -> 11791 Stephen Taylor
A12: =CONCATENATE('Skippers List'!B23," ",'Skippers List'!C23) -> 13030 Lee Peterson
A13: =CONCATENATE('Skippers List'!B24," ",'Skippers List'!C24) -> Chas Schelin
A14: =CONCATENATE('Skippers List'!B25," ",'Skippers List'!C25) -> Claudia Schneller
A15: =CONCATENATE('Skippers List'!B26," ",'Skippers List'!C26) -> Craig/Ellen Cutting
A16: =CONCATENATE('Skippers List'!B27," ",'Skippers List'!C27) -> Dane Lamb
A17: =CONCATENATE('Skippers List'!B28," ",'Skippers List'!C28) -> Don Anderson (Mouette)
A18: =CONCATENATE('Skippers List'!B29," ",'Skippers List'!C29) -> Ginny Wintersteen
A19: =CONCATENATE('Skippers List'!B30," ",'Skippers List'!C30) -> 3011 Karl Maas
A20: =CONCATENATE('Skippers List'!B31," ",'Skippers List'!C31) -> Paul Krause | Z20: =IF(C20=1,C$3-C20+1+C$3+0.5,IF(C20>1,C$3-C20+1+C$3,IF(C20<1,""))) -> 
A21: =CONCATENATE('Skippers List'!B32," ",'Skippers List'!C32) -> Scott Iverson
A22: =CONCATENATE('Skippers List'!B33," ",'Skippers List'!C33) -> Tom Dubisar
A23: =CONCATENATE('Skippers List'!B34," ",'Skippers List'!C34) -> Andy Plzak

Sheet Summary
A1: Day Sailer Racing | B1: Season Standings
B2: Race # -> | C2: =Sheet1!A2 -> 2016-05-11 | D2: =C2+7 -> 2016-05-18 | E2: =D2+7 -> 2016-05-25 | F2: 2016-06-01 | G2: 2016-06-08 | H2: 2016-06-15 | I2: 2016-06-22 | J2: 2016-06-29 | K2: 2016-07-06 | L2: 2016-07-13 | M2: 2016-07-20 | N2: 2016-07-27 | O2: 2016-08-03 | P2: 2016-08-10 | Q2: 2016-08-17 | R2: 2016-08-24 | S2: 2016-08-31 | T2: 2016-09-07 | U2: 2016-09-14 | V2: 2016-09-21 | W2: 2016-09-28 | X2: 2016-10-05 | Y2: 2016-10-12 | Z2: Grand Total
A3: Skipper/Sail Number | B3: Ranking | C3: 1 | D3: 2 | E3: 3 | F3: 4 | G3: 5 | H3: 6 | I3: 7 | J3: 8 | K3: 9 | L3: 10 | M3: 11 | N3: 12 | O3: 13 | P3: 14 | Q3: 15 | R3: 16 | S3: 17 | T3: 18 | U3: 19 | V3: 20 | W3: 21 | X3: 22 | Y3: 23
A4: =CONCATENATE('Skippers List'!B15," ",'Skippers List'!C15) -> 1041 Ted Sojka | B4: =IF(Z4>0,RANK(Z4,$Z$4:$Z$23,0),"") -> 4 | C4: =IF(VLOOKUP($A4,'5-11-16'!$A$4:$R$23,18,FALSE)<>"",VLOOKUP($A4,'5-11-16'!$A$4:$R$23,18,FALSE),0) -> 0 | D4: =IF(VLOOKUP($A4,'5-18-16'!$A$4:$R$23,18,FALSE)<>"",VLOOKUP($A4,'5-18-16'!$A$4:$R$23,18,FALSE),0) -> 0 | E4: =IF(VLOOKUP($A4,'5-25-16'!$A$4:$R$23,18,FALSE)<>"",VLOOKUP($A4,'5-25-16'!$A$4:$R$23,18,FALSE),0) -> 0 | F4: =IF(VLOOKUP($A4,'6-1-16'!$A$4:$R$23,18,FALSE)<>"",VLOOKUP($A4,'6-1-16'!$A$4:$R$23,18,FALSE),0) -> 0 | G4: =IF(VLOOKUP($A4,'6-8-16'!$A$4:$R$23,18,FALSE)<>"",VLOOKUP($A4,'6-8-16'!$A$4:$R$23,18,FALSE),0) -> 0 | H4: =IF(VLOOKUP($A4,'6-15-16'!$A$4:$R$23,18,FALSE)<>"",VLOOKUP($A4,'6-15-16'!$A$4:$R$23,18,FALSE),0) -> 0 | I4: =IF(VLOOKUP($A4,'6-22-16'!$A$4:$R$23,18,FALSE)<>"",VLOOKUP($A4,'6-22-16'!$A$4:$R$23,18,FALSE),0) -> 0 | J4: =IF(VLOOKUP($A4,'6-29-16'!$A$4:$R$23,18,FALSE)<>"",VLOOKUP($A4,'6-29-16'!$A$4:$R$23,18,FALSE),0) -> 28 | K4: =IF(VLOOKUP($A4,'7-6-16'!$A$4:$R$23,18,FALSE)<>"",VLOOKUP($A4,'7-6-16'!$A$4:$R$23,18,FALSE),0) -> 20.5 | L4: =IF(VLOOKUP($A4,'7-13-16'!$A$4:$R$23,18,FALSE)<>"",VLOOKUP($A4,'7-13-16'!$A$4:$R$23,18,FALSE),0) -> 0 | M4: =IF(VLOOKUP($A4,'7-20-16'!$A$4:$R$23,18,FALSE)<>"",VLOOKUP($A4,'7-20-16'!$A$4:$R$23,18,FALSE),0) -> 0 | N4: =IF(VLOOKUP($A4,'7-27-16'!$A$4:$R$23,18,FALSE)<>"",VLOOKUP($A4,'7-27-16'!$A$4:$R$23,18,FALSE),0) -> 0 | O4: =IF(VLOOKUP($A4,'8-3-16'!$A$4:$R$23,18,FALSE)<>"",VLOOKUP($A4,'8-3-16'!$A$4:$R$23,18,FALSE),0) -> 0 | P4: =IF(VLOOKUP($A4,'8-10-16'!$A$4:$R$23,18,FALSE)<>"",VLOOKUP($A4,'8-10-16'!$A$4:$R$23,18,FALSE),0) -> 0 | Q4: =IF(VLOOKUP($A4,'8-17-16'!$A$4:$R$23,18,FALSE)<>"",VLOOKUP($A4,'8-17-16'!$A$4:$R$23,18,FALSE),0) -> 0 | R4: =IF(VLOOKUP($A4,'8-24-16'!$A$4:$R$23,18,FALSE)<>"",VLOOKUP($A4,'8-24-16'!$A$4:$R$23,18,FALSE),0) -> 29 | S4: =IF(VLOOKUP($A4,'8-31-16'!$A$4:$R$23,18,FALSE)<>"",VLOOKUP($A4,'8-31-16'!$A$4:$R$23,18,FALSE),0) -> 43 | T4: =IF(VLOOKUP($A4,'9-7-16'!$A$4:$R$23,18,FALSE)<>"",VLOOKUP($A4,'9-7-16'!$A$4:$R$23,18,FALSE),0) -> 0 | U4: =IF(VLOOKUP($A4,'9-14-16'!$A$4:$R$23,18,FALSE)<>"",VLOOKUP($A4,'9-14-16'!$A$4:$R$23,18,FALSE),0) -> 0 | V4: =IF(VLOOKUP($A4,'9-21-16'!$A$4:$R$23,18,FALSE)<>"",VLOOKUP($A4,'9-21-16'!$A$4:$R$23,18,FALSE),0) -> 0 | W4: =IF(VLOOKUP($A4,'9-28-16'!$A$4:$R$23,18,FALSE)<>"",VLOOKUP($A4,'9-28-16'!$A$4:$R$23,18,FALSE),0) -> 0 | X4: =IF(VLOOKUP($A4,'10-12-16'!$A$4:$R$23,18,FALSE)<>"",VLOOKUP($A4,'10-12-16'!$A$4:$R$23,18,FALSE),0) -> 0 | Y4: =IF(VLOOKUP($A4,'10-5-16'!$A$4:$R$23,18,FALSE)<>"",VLOOKUP($A4,'10-5-16'!$A$4:$R$23,18,FALSE),0) -> 0 | Z4: =IF(SUM(C4:Y4)>0,SUM(C4:Y4),0) -> 120.5
A5: =CONCATENATE('Skippers List'!B16," ",'Skippers List'!C16) -> 2753 Gene McNurlen | B5: =IF(Z5>0,RANK(Z5,$Z$4:$Z$23,0),"") -> 2 | C5: =IF(VLOOKUP($A5,'5-11-16'!$A$4:$R$23,18,FALSE)<>"",VLOOKUP($A5,'5-11-16'!$A$4:$R$23,18,FALSE),0) -> 0 | D5: =IF(VLOOKUP($A5,'5-18-16'!$A$4:$R$23,18,FALSE)<>"",VLOOKUP($A5,'5-18-16'!$A$4:$R$23,18,FALSE),0) -> 0 | E5: =IF(VLOOKUP($A5,'5-25-16'!$A$4:$R$23,18,FALSE)<>"",VLOOKUP($A5,'5-25-16'!$A$4:$R$23,18,FALSE),0) -> 0 | F5: =IF(VLOOKUP($A5,'6-1-16'!$A$4:$R$23,18,FALSE)<>"",VLOOKUP($A5,'6-1-16'!$A$4:$R$23,18,FALSE),0) -> 18 | G5: =IF(VLOOKUP($A5,'6-8-16'!$A$4:$R$23,18,FALSE)<>"",VLOOKUP($A5,'6-8-16'!$A$4:$R$23,18,FALSE),0) -> 0 | H5: =IF(VLOOKUP($A5,'6-15-16'!$A$4:$R$23,18,FALSE)<>"",VLOOKUP($A5,'6-15-16'!$A$4:$R$23,18,FALSE),0) -> 0 | I5: =IF(VLOOKUP($A5,'6-22-16'!$A$4:$R$23,18,FALSE)<>"",VLOOKUP($A5,'6-22-16'!$A$4:$R$23,18,FALSE),0) -> 24 | J5: =IF(VLOOKUP($A5,'6-29-16'!$A$4:$R$23,18,FALSE)<>"",VLOOKUP($A5,'6-29-16'!$A$4:$R$23,18,FALSE),0) -> 0 | K5: =IF(VLOOKUP($A5,'7-6-16'!$A$4:$R$23,18,FALSE)<>"",VLOOKUP($A5,'7-6-16'!$A$4:$R$23,18,FALSE),0) -> 17 | L5: =IF(VLOOKUP($A5,'7-13-16'!$A$4:$R$23,18,FALSE)<>"",VLOOKUP($A5,'7-13-16'!$A$4:$R$23,18,FALSE),0) -> 32.5 | M5: =IF(VLOOKUP($A5,'7-20-16'!$A$4:$R$23,18,FALSE)<>"",VLOOKUP($A5,'7-20-16'!$A$4:$R$23,18,FALSE),0) -> 31 | N5: =IF(VLOOKUP($A5,'7-27-16'!$A$4:$R$23,18,FALSE)<>"",VLOOKUP($A5,'7-27-16'!$A$4:$R$23,18,FALSE),0) -> 0 | O5: =IF(VLOOKUP($A5,'8-3-16'!$A$4:$R$23,18,FALSE)<>"",VLOOKUP($A5,'8-3-16'!$A$4:$R$23,18,FALSE),0) -> 0 | P5: =IF(VLOOKUP($A5,'8-10-16'!$A$4:$R$23,18,FALSE)<>"",VLOOKUP($A5,'8-10-16'!$A$4:$R$23,18,FALSE),0) -> 0 | Q5: =IF(VLOOKUP($A5,'8-17-16'!$A$4:$R$23,18,FALSE)<>"",VLOOKUP($A5,'8-17-16'!$A$4:$R$23,18,FALSE),0) -> 0 | R5: =IF(VLOOKUP($A5,'8-24-16'!$A$4:$R$23,18,FALSE)<>"",VLOOKUP($A5,'8-24-16'!$A$4:$R$23,18,FALSE),0) -> 31 | S5: =IF(VLOOKUP($A5,'8-31-16'!$A$4:$R$23,18,FALSE)<>"",VLOOKUP($A5,'8-31-16'!$A$4:$R$23,18,FALSE),0) -> 36 | T5: =IF(VLOOKUP($A5,'9-7-16'!$A$4:$R$23,18,FALSE)<>"",VLOOKUP($A5,'9-7-16'!$A$4:$R$23,18,FALSE),0) -> 0 | U5: =IF(VLOOKUP($A5,'9-14-16'!$A$4:$R$23,18,FALSE)<>"",VLOOKUP($A5,'9-14-16'!$A$4:$R$23,18,FALSE),0) -> 0 | V5: =IF(VLOOKUP($A5,'9-21-16'!$A$4:$R$23,18,FALSE)<>"",VLOOKUP($A5,'9-21-16'!$A$4:$R$23,18,FALSE),0) -> 0 | W5: =IF(VLOOKUP($A5,'9-28-16'!$A$4:$R$23,18,FALSE)<>"",VLOOKUP($A5,'9-28-16'!$A$4:$R$23,18,FALSE),0) -> 0 | X5: =IF(VLOOKUP($A5,'10-12-16'!$A$4:$R$23,18,FALSE)<>"",VLOOKUP($A5,'10-12-16'!$A$4:$R$23,18,FALSE),0) -> 0 | Y5: =IF(VLOOKUP($A5,'10-5-16'!$A$4:$R$23,18,FALSE)<>"",VLOOKUP($A5,'10-5-16'!$A$4:$R$23,18,FALSE),0) -> 0 | Z5: =IF(SUM(C5:Y5)>0,SUM(C5:Y5),0) -> 189.5
A6: =CONCATENATE('Skippers List'!B17," ",'Skippers List'!C17) -> 3097 Jon Feist | B6: 2 | C6: =IF(VLOOKUP($A6,'5-11-16'!$A$4:$R$23,18,FALSE)<>"",VLOOKUP($A6,'5-11-16'!$A$4:$R$23,18,FALSE),0) -> 0 | D6: =IF(VLOOKUP($A6,'5-18-16'!$A$4:$R$23,18,FALSE)<>"",VLOOKUP($A6,'5-18-16'!$A$4:$R$23,18,FALSE),0) -> 0 | E6: =IF(VLOOKUP($A6,'5-25-16'!$A$4:$R$23,18,FALSE)<>"",VLOOKUP($A6,'5-25-16'!$A$4:$R$23,18,FALSE),0) -> 0 | F6: =IF(VLOOKUP($A6,'6-1-16'!$A$4:$R$23,18,FALSE)<>"",VLOOKUP($A6,'6-1-16'!$A$4:$R$23,18,FALSE),0) -> 17.5 | G6: =IF(VLOOKUP($A6,'6-8-16'!$A$4:$R$23,18,FALSE)<>"",VLOOKUP($A6,'6-8-16'!$A$4:$R$23,18,FALSE),0) -> 0 | H6: =IF(VLOOKUP($A6,'6-15-16'!$A$4:$R$23,18,FALSE)<>"",VLOOKUP($A6,'6-15-16'!$A$4:$R$23,18,FALSE),0) -> 0 | I6: =IF(VLOOKUP($A6,'6-22-16'!$A$4:$R$23,18,FALSE)<>"",VLOOKUP($A6,'6-22-16'!$A$4:$R$23,18,FALSE),0) -> 0 | J6: =IF(VLOOKUP($A6,'6-29-16'!$A$4:$R$23,18,FALSE)<>"",VLOOKUP($A6,'6-29-16'!$A$4:$R$23,18,FALSE),0) -> 37.5 | K6: =IF(VLOOKUP($A6,'7-6-16'!$A$4:$R$23,18,FALSE)<>"",VLOOKUP($A6,'7-6-16'!$A$4:$R$23,18,FALSE),0) -> 21.5 | L6: =IF(VLOOKUP($A6,'7-13-16'!$A$4:$R$23,18,FALSE)<>"",VLOOKUP($A6,'7-13-16'!$A$4:$R$23,18,FALSE),0) -> 35 | M6: =IF(VLOOKUP($A6,'7-20-16'!$A$4:$R$23,18,FALSE)<>"",VLOOKUP($A6,'7-20-16'!$A$4:$R$23,18,FALSE),0) -> 37 | N6: =IF(VLOOKUP($A6,'7-27-16'!$A$4:$R$23,18,FALSE)<>"",VLOOKUP($A6,'7-27-16'!$A$4:$R$23,18,FALSE),0) -> 0 | O6: =IF(VLOOKUP($A6,'8-3-16'!$A$4:$R$23,18,FALSE)<>"",VLOOKUP($A6,'8-3-16'!$A$4:$R$23,18,FALSE),0) -> 0 | P6: =IF(VLOOKUP($A6,'8-10-16'!$A$4:$R$23,18,FALSE)<>"",VLOOKUP($A6,'8-10-16'!$A$4:$R$23,18,FALSE),0) -> 0 | Q6: =IF(VLOOKUP($A6,'8-17-16'!$A$4:$R$23,18,FALSE)<>"",VLOOKUP($A6,'8-17-16'!$A$4:$R$23,18,FALSE),0) -> 0 | R6: =IF(VLOOKUP($A6,'8-24-16'!$A$4:$R$23,18,FALSE)<>"",VLOOKUP($A6,'8-24-16'!$A$4:$R$23,18,FALSE),0) -> 0 | S6: =IF(VLOOKUP($A6,'8-31-16'!$A$4:$R$23,18,FALSE)<>"",VLOOKUP($A6,'8-31-16'!$A$4:$R$23,18,FALSE),0) -> 41 | T6: =IF(VLOOKUP($A6,'9-7-16'!$A$4:$R$23,18,FALSE)<>"",VLOOKUP($A6,'9-7-16'!$A$4:$R$23,18,FALSE),0) -> 0 | U6: =IF(VLOOKUP($A6,'9-14-16'!$A$4:$R$23,18,FALSE)<>"",VLOOKUP($A6,'9-14-16'!$A$4:$R$23,18,FALSE),0) -> 0 | V6: =IF(VLOOKUP($A6,'9-21-16'!$A$4:$R$23,18,FALSE)<>"",VLOOKUP($A6,'9-21-16'!$A$4:$R$23,18,FALSE),0) -> 0 | W6: =IF(VLOOKUP($A6,'9-28-16'!$A$4:$R$23,18,FALSE)<>"",VLOOKUP($A6,'9-28-16'!$A$4:$R$23,18,FALSE),0) -> 0 | X6: =IF(VLOOKUP($A6,'10-12-16'!$A$4:$R$23,18,FALSE)<>"",VLOOKUP($A6,'10-12-16'!$A$4:$R$23,18,FALSE),0) -> 0 | Y6: =IF(VLOOKUP($A6,'10-5-16'!$A$4:$R$23,18,FALSE)<>"",VLOOKUP($A6,'10-5-16'!$A$4:$R$23,18,FALSE),0) -> 0 | Z6: 189.5
A7: =CONCATENATE('Skippers List'!B18," ",'Skippers List'!C18) -> 3383 Harlan Gleason | C7: =IF(VLOOKUP($A7,'5-11-16'!$A$4:$R$23,18,FALSE)<>"",VLOOKUP($A7,'5-11-16'!$A$4:$R$23,18,FALSE),0) -> 0 | D7: =IF(VLOOKUP($A7,'5-18-16'!$A$4:$R$23,18,FALSE)<>"",VLOOKUP($A7,'5-18-16'!$A$4:$R$23,18,FALSE),0) -> 0 | E7: =IF(VLOOKUP($A7,'5-25-16'!$A$4:$R$23,18,FALSE)<>"",VLOOKUP($A7,'5-25-16'!$A$4:$R$23,18,FALSE),0) -> 0 | F7: =IF(VLOOKUP($A7,'6-1-16'!$A$4:$R$23,18,FALSE)<>"",VLOOKUP($A7,'6-1-16'!$A$4:$R$23,18,FALSE),0) -> 0 | G7: =IF(VLOOKUP($A7,'6-8-16'!$A$4:$R$23,18,FALSE)<>"",VLOOKUP($A7,'6-8-16'!$A$4:$R$23,18,FALSE),0) -> 0 | H7: =IF(VLOOKUP($A7,'6-15-16'!$A$4:$R$23,18,FALSE)<>"",VLOOKUP($A7,'6-15-16'!$A$4:$R$23,18,FALSE),0) -> 0 | I7: =IF(VLOOKUP($A7,'6-22-16'!$A$4:$R$23,18,FALSE)<>"",VLOOKUP($A7,'6-22-16'!$A$4:$R$23,18,FALSE),0) -> 0 | J7: =IF(VLOOKUP($A7,'6-29-16'!$A$4:$R$23,18,FALSE)<>"",VLOOKUP($A7,'6-29-16'!$A$4:$R$23,18,FALSE),0) -> 0 | K7: =IF(VLOOKUP($A7,'7-6-16'!$A$4:$R$23,18,FALSE)<>"",VLOOKUP($A7,'7-6-16'!$A$4:$R$23,18,FALSE),0) -> 0 | L7: =IF(VLOOKUP($A7,'7-13-16'!$A$4:$R$23,18,FALSE)<>"",VLOOKUP($A7,'7-13-16'!$A$4:$R$23,18,FALSE),0) -> 0 | M7: =IF(VLOOKUP($A7,'7-20-16'!$A$4:$R$23,18,FALSE)<>"",VLOOKUP($A7,'7-20-16'!$A$4:$R$23,18,FALSE),0) -> 0 | N7: =IF(VLOOKUP($A7,'7-27-16'!$A$4:$R$23,18,FALSE)<>"",VLOOKUP($A7,'7-27-16'!$A$4:$R$23,18,FALSE),0) -> 0 | O7: =IF(VLOOKUP($A7,'8-3-16'!$A$4:$R$23,18,FALSE)<>"",VLOOKUP($A7,'8-3-16'!$A$4:$R$23,18,FALSE),0) -> 0 | P7: =IF(VLOOKUP($A7,'8-10-16'!$A$4:$R$23,18,FALSE)<>"",VLOOKUP($A7,'8-10-16'!$A$4:$R$23,18,FALSE),0) -> 0 | Q7: =IF(VLOOKUP($A7,'8-17-16'!$A$4:$R$23,18,FALSE)<>"",VLOOKUP($A7,'8-17-16'!$A$4:$R$23,18,FALSE),0) -> 0 | R7: =IF(VLOOKUP($A7,'8-24-16'!$A$4:$R$23,18,FALSE)<>"",VLOOKUP($A7,'8-24-16'!$A$4:$R$23,18,FALSE),0) -> 0 | S7: =IF(VLOOKUP($A7,'8-31-16'!$A$4:$R$23,18,FALSE)<>"",VLOOKUP($A7,'8-31-16'!$A$4:$R$23,18,FALSE),0) -> 0 | T7: =IF(VLOOKUP($A7,'9-7-16'!$A$4:$R$23,18,FALSE)<>"",VLOOKUP($A7,'9-7-16'!$A$4:$R$23,18,FALSE),0) -> 0 | U7: =IF(VLOOKUP($A7,'9-14-16'!$A$4:$R$23,18,FALSE)<>"",VLOOKUP($A7,'9-14-16'!$A$4:$R$23,18,FALSE),0) -> 0 | V7: =IF(VLOOKUP($A7,'9-21-16'!$A$4:$R$23,18,FALSE)<>"",VLOOKUP($A7,'9-21-16'!$A$4:$R$23,18,FALSE),0) -> 0 | W7: =IF(VLOOKUP($A7,'9-28-16'!$A$4:$R$23,18,FALSE)<>"",VLOOKUP($A7,'9-28-16'!$A$4:$R$23,18,FALSE),0) -> 0 | X7: =IF(VLOOKUP($A7,'10-12-16'!$A$4:$R$23,18,FALSE)<>"",VLOOKUP($A7,'10-12-16'!$A$4:$R$23,18,FALSE),0) -> 0 | Y7: =IF(VLOOKUP($A7,'10-5-16'!$A$4:$R$23,18,FALSE)<>"",VLOOKUP($A7,'10-5-16'!$A$4:$R$23,18,FALSE),0) -> 0 | Z7: 0
A8: =CONCATENATE('Skippers List'!B19," ",'Skippers List'!C19) -> 4836 Nate Melby | C8: =IF(VLOOKUP($A8,'5-11-16'!$A$4:$R$23,18,FALSE)<>"",VLOOKUP($A8,'5-11-16'!$A$4:$R$23,18,FALSE),0) -> 0 | D8: =IF(VLOOKUP($A8,'5-18-16'!$A$4:$R$23,18,FALSE)<>"",VLOOKUP($A8,'5-18-16'!$A$4:$R$23,18,FALSE),0) -> 0 | E8: =IF(VLOOKUP($A8,'5-25-16'!$A$4:$R$23,18,FALSE)<>"",VLOOKUP($A8,'5-25-16'!$A$4:$R$23,18,FALSE),0) -> 0 | F8: =IF(VLOOKUP($A8,'6-1-16'!$A$4:$R$23,18,FALSE)<>"",VLOOKUP($A8,'6-1-16'!$A$4:$R$23,18,FALSE),0) -> 0 | G8: =IF(VLOOKUP($A8,'6-8-16'!$A$4:$R$23,18,FALSE)<>"",VLOOKUP($A8,'6-8-16'!$A$4:$R$23,18,FALSE),0) -> 0 | H8: =IF(VLOOKUP($A8,'6-15-16'!$A$4:$R$23,18,FALSE)<>"",VLOOKUP($A8,'6-15-16'!$A$4:$R$23,18,FALSE),0) -> 0 | I8: =IF(VLOOKUP($A8,'6-22-16'!$A$4:$R$23,18,FALSE)<>"",VLOOKUP($A8,'6-22-16'!$A$4:$R$23,18,FALSE),0) -> 0 | J8: =IF(VLOOKUP($A8,'6-29-16'!$A$4:$R$23,18,FALSE)<>"",VLOOKUP($A8,'6-29-16'!$A$4:$R$23,18,FALSE),0) -> 0 | K8: =IF(VLOOKUP($A8,'7-6-16'!$A$4:$R$23,18,FALSE)<>"",VLOOKUP($A8,'7-6-16'!$A$4:$R$23,18,FALSE),0) -> 0 | L8: =IF(VLOOKUP($A8,'7-13-16'!$A$4:$R$23,18,FALSE)<>"",VLOOKUP($A8,'7-13-16'!$A$4:$R$23,18,FALSE),0) -> 0 | M8: =IF(VLOOKUP($A8,'7-20-16'!$A$4:$R$23,18,FALSE)<>"",VLOOKUP($A8,'7-20-16'!$A$4:$R$23,18,FALSE),0) -> 0 | N8: =IF(VLOOKUP($A8,'7-27-16'!$A$4:$R$23,18,FALSE)<>"",VLOOKUP($A8,'7-27-16'!$A$4:$R$23,18,FALSE),0) -> 0 | O8: =IF(VLOOKUP($A8,'8-3-16'!$A$4:$R$23,18,FALSE)<>"",VLOOKUP($A8,'8-3-16'!$A$4:$R$23,18,FALSE),0) -> 0 | P8: =IF(VLOOKUP($A8,'8-10-16'!$A$4:$R$23,18,FALSE)<>"",VLOOKUP($A8,'8-10-16'!$A$4:$R$23,18,FALSE),0) -> 0 | Q8: =IF(VLOOKUP($A8,'8-17-16'!$A$4:$R$23,18,FALSE)<>"",VLOOKUP($A8,'8-17-16'!$A$4:$R$23,18,FALSE),0) -> 0 | R8: =IF(VLOOKUP($A8,'8-24-16'!$A$4:$R$23,18,FALSE)<>"",VLOOKUP($A8,'8-24-16'!$A$4:$R$23,18,FALSE),0) -> 0 | S8: =IF(VLOOKUP($A8,'8-31-16'!$A$4:$R$23,18,FALSE)<>"",VLOOKUP($A8,'8-31-16'!$A$4:$R$23,18,FALSE),0) -> 0 | T8: =IF(VLOOKUP($A8,'9-7-16'!$A$4:$R$23,18,FALSE)<>"",VLOOKUP($A8,'9-7-16'!$A$4:$R$23,18,FALSE),0) -> 0 | U8: =IF(VLOOKUP($A8,'9-14-16'!$A$4:$R$23,18,FALSE)<>"",VLOOKUP($A8,'9-14-16'!$A$4:$R$23,18,FALSE),0) -> 0 | V8: =IF(VLOOKUP($A8,'9-21-16'!$A$4:$R$23,18,FALSE)<>"",VLOOKUP($A8,'9-21-16'!$A$4:$R$23,18,FALSE),0) -> 0 | W8: =IF(VLOOKUP($A8,'9-28-16'!$A$4:$R$23,18,FALSE)<>"",VLOOKUP($A8,'9-28-16'!$A$4:$R$23,18,FALSE),0) -> 0 | X8: =IF(VLOOKUP($A8,'10-12-16'!$A$4:$R$23,18,FALSE)<>"",VLOOKUP($A8,'10-12-16'!$A$4:$R$23,18,FALSE),0) -> 0 | Y8: =IF(VLOOKUP($A8,'10-5-16'!$A$4:$R$23,18,FALSE)<>"",VLOOKUP($A8,'10-5-16'!$A$4:$R$23,18,FALSE),0) -> 0 | Z8: 0
A9: =CONCATENATE('Skippers List'!B20," ",'Skippers List'!C20) -> 5251 Jordan Cerney | B9: 7 | C9: =IF(VLOOKUP($A9,'5-11-16'!$A$4:$R$23,18,FALSE)<>"",VLOOKUP($A9,'5-11-16'!$A$4:$R$23,18,FALSE),0) -> 0 | D9: =IF(VLOOKUP($A9,'5-18-16'!$A$4:$R$23,18,FALSE)<>"",VLOOKUP($A9,'5-18-16'!$A$4:$R$23,18,FALSE),0) -> 0 | E9: =IF(VLOOKUP($A9,'5-25-16'!$A$4:$R$23,18,FALSE)<>"",VLOOKUP($A9,'5-25-16'!$A$4:$R$23,18,FALSE),0) -> 0 | F9: =IF(VLOOKUP($A9,'6-1-16'!$A$4:$R$23,18,FALSE)<>"",VLOOKUP($A9,'6-1-16'!$A$4:$R$23,18,FALSE),0) -> 10.5 | G9: =IF(VLOOKUP($A9,'6-8-16'!$A$4:$R$23,18,FALSE)<>"",VLOOKUP($A9,'6-8-16'!$A$4:$R$23,18,FALSE),0) -> 0 | H9: =IF(VLOOKUP($A9,'6-15-16'!$A$4:$R$23,18,FALSE)<>"",VLOOKUP($A9,'6-15-16'!$A$4:$R$23,18,FALSE),0) -> 0 | I9: =IF(VLOOKUP($A9,'6-22-16'!$A$4:$R$23,18,FALSE)<>"",VLOOKUP($A9,'6-22-16'!$A$4:$R$23,18,FALSE),0) -> 0 | J9: =IF(VLOOKUP($A9,'6-29-16'!$A$4:$R$23,18,FALSE)<>"",VLOOKUP($A9,'6-29-16'!$A$4:$R$23,18,FALSE),0) -> 29 | K9: =IF(VLOOKUP($A9,'7-6-16'!$A$4:$R$23,18,FALSE)<>"",VLOOKUP($A9,'7-6-16'!$A$4:$R$23,18,FALSE),0) -> 0 | L9: =IF(VLOOKUP($A9,'7-13-16'!$A$4:$R$23,18,FALSE)<>"",VLOOKUP($A9,'7-13-16'!$A$4:$R$23,18,FALSE),0) -> 0 | M9: =IF(VLOOKUP($A9,'7-20-16'!$A$4:$R$23,18,FALSE)<>"",VLOOKUP($A9,'7-20-16'!$A$4:$R$23,18,FALSE),0) -> 0 | N9: =IF(VLOOKUP($A9,'7-27-16'!$A$4:$R$23,18,FALSE)<>"",VLOOKUP($A9,'7-27-16'!$A$4:$R$23,18,FALSE),0) -> 0 | O9: =IF(VLOOKUP($A9,'8-3-16'!$A$4:$R$23,18,FALSE)<>"",VLOOKUP($A9,'8-3-16'!$A$4:$R$23,18,FALSE),0) -> 0 | P9: =IF(VLOOKUP($A9,'8-10-16'!$A$4:$R$23,18,FALSE)<>"",VLOOKUP($A9,'8-10-16'!$A$4:$R$23,18,FALSE),0) -> 0 | Q9: =IF(VLOOKUP($A9,'8-17-16'!$A$4:$R$23,18,FALSE)<>"",VLOOKUP($A9,'8-17-16'!$A$4:$R$23,18,FALSE),0) -> 0 | R9: =IF(VLOOKUP($A9,'8-24-16'!$A$4:$R$23,18,FALSE)<>"",VLOOKUP($A9,'8-24-16'!$A$4:$R$23,18,FALSE),0) -> 0 | S9: =IF(VLOOKUP($A9,'8-31-16'!$A$4:$R$23,18,FALSE)<>"",VLOOKUP($A9,'8-31-16'!$A$4:$R$23,18,FALSE),0) -> 30 | T9: =IF(VLOOKUP($A9,'9-7-16'!$A$4:$R$23,18,FALSE)<>"",VLOOKUP($A9,'9-7-16'!$A$4:$R$23,18,FALSE),0) -> 0 | U9: =IF(VLOOKUP($A9,'9-14-16'!$A$4:$R$23,18,FALSE)<>"",VLOOKUP($A9,'9-14-16'!$A$4:$R$23,18,FALSE),0) -> 0 | V9: =IF(VLOOKUP($A9,'9-21-16'!$A$4:$R$23,18,FALSE)<>"",VLOOKUP($A9,'9-21-16'!$A$4:$R$23,18,FALSE),0) -> 0 | W9: =IF(VLOOKUP($A9,'9-28-16'!$A$4:$R$23,18,FALSE)<>"",VLOOKUP($A9,'9-28-16'!$A$4:$R$23,18,FALSE),0) -> 0 | X9: =IF(VLOOKUP($A9,'10-12-16'!$A$4:$R$23,18,FALSE)<>"",VLOOKUP($A9,'10-12-16'!$A$4:$R$23,18,FALSE),0) -> 0 | Y9: =IF(VLOOKUP($A9,'10-5-16'!$A$4:$R$23,18,FALSE)<>"",VLOOKUP($A9,'10-5-16'!$A$4:$R$23,18,FALSE),0) -> 0 | Z9: 69.5
A10: =CONCATENATE('Skippers List'!B21," ",'Skippers List'!C21) -> 11062 Dave Vind | B10: 8 | C10: =IF(VLOOKUP($A10,'5-11-16'!$A$4:$R$23,18,FALSE)<>"",VLOOKUP($A10,'5-11-16'!$A$4:$R$23,18,FALSE),0) -> 0 | D10: =IF(VLOOKUP($A10,'5-18-16'!$A$4:$R$23,18,FALSE)<>"",VLOOKUP($A10,'5-18-16'!$A$4:$R$23,18,FALSE),0) -> 0 | E10: =IF(VLOOKUP($A10,'5-25-16'!$A$4:$R$23,18,FALSE)<>"",VLOOKUP($A10,'5-25-16'!$A$4:$R$23,18,FALSE),0) -> 0 | F10: =IF(VLOOKUP($A10,'6-1-16'!$A$4:$R$23,18,FALSE)<>"",VLOOKUP($A10,'6-1-16'!$A$4:$R$23,18,FALSE),0) -> 15 | G10: =IF(VLOOKUP($A10,'6-8-16'!$A$4:$R$23,18,FALSE)<>"",VLOOKUP($A10,'6-8-16'!$A$4:$R$23,18,FALSE),0) -> 0 | H10: =IF(VLOOKUP($A10,'6-15-16'!$A$4:$R$23,18,FALSE)<>"",VLOOKUP($A10,'6-15-16'!$A$4:$R$23,18,FALSE),0) -> 0 | I10: =IF(VLOOKUP($A10,'6-22-16'!$A$4:$R$23,18,FALSE)<>"",VLOOKUP($A10,'6-22-16'!$A$4:$R$23,18,FALSE),0) -> 0 | J10: =IF(VLOOKUP($A10,'6-29-16'!$A$4:$R$23,18,FALSE)<>"",VLOOKUP($A10,'6-29-16'!$A$4:$R$23,18,FALSE),0) -> 0 | K10: =IF(VLOOKUP($A10,'7-6-16'!$A$4:$R$23,18,FALSE)<>"",VLOOKUP($A10,'7-6-16'!$A$4:$R$23,18,FALSE),0) -> 0 | L10: =IF(VLOOKUP($A10,'7-13-16'!$A$4:$R$23,18,FALSE)<>"",VLOOKUP($A10,'7-13-16'!$A$4:$R$23,18,FALSE),0) -> 25 | M10: =IF(VLOOKUP($A10,'7-20-16'!$A$4:$R$23,18,FALSE)<>"",VLOOKUP($A10,'7-20-16'!$A$4:$R$23,18,FALSE),0) -> 0 | N10: =IF(VLOOKUP($A10,'7-27-16'!$A$4:$R$23,18,FALSE)<>"",VLOOKUP($A10,'7-27-16'!$A$4:$R$23,18,FALSE),0) -> 0 | O10: =IF(VLOOKUP($A10,'8-3-16'!$A$4:$R$23,18,FALSE)<>"",VLOOKUP($A10,'8-3-16'!$A$4:$R$23,18,FALSE),0) -> 0 | P10: =IF(VLOOKUP($A10,'8-10-16'!$A$4:$R$23,18,FALSE)<>"",VLOOKUP($A10,'8-10-16'!$A$4:$R$23,18,FALSE),0) -> 0 | Q10: =IF(VLOOKUP($A10,'8-17-16'!$A$4:$R$23,18,FALSE)<>"",VLOOKUP($A10,'8-17-16'!$A$4:$R$23,18,FALSE),0) -> 0 | R10: =IF(VLOOKUP($A10,'8-24-16'!$A$4:$R$23,18,FALSE)<>"",VLOOKUP($A10,'8-24-16'!$A$4:$R$23,18,FALSE),0) -> 0 | S10: =IF(VLOOKUP($A10,'8-31-16'!$A$4:$R$23,18,FALSE)<>"",VLOOKUP($A10,'8-31-16'!$A$4:$R$23,18,FALSE),0) -> 0 | T10: =IF(VLOOKUP($A10,'9-7-16'!$A$4:$R$23,18,FALSE)<>"",VLOOKUP($A10,'9-7-16'!$A$4:$R$23,18,FALSE),0) -> 0 | U10: =IF(VLOOKUP($A10,'9-14-16'!$A$4:$R$23,18,FALSE)<>"",VLOOKUP($A10,'9-14-16'!$A$4:$R$23,18,FALSE),0) -> 0 | V10: =IF(VLOOKUP($A10,'9-21-16'!$A$4:$R$23,18,FALSE)<>"",VLOOKUP($A10,'9-21-16'!$A$4:$R$23,18,FALSE),0) -> 0 | W10: =IF(VLOOKUP($A10,'9-28-16'!$A$4:$R$23,18,FALSE)<>"",VLOOKUP($A10,'9-28-16'!$A$4:$R$23,18,FALSE),0) -> 0 | X10: =IF(VLOOKUP($A10,'10-12-16'!$A$4:$R$23,18,FALSE)<>"",VLOOKUP($A10,'10-12-16'!$A$4:$R$23,18,FALSE),0) -> 0 | Y10: =IF(VLOOKUP($A10,'10-5-16'!$A$4:$R$23,18,FALSE)<>"",VLOOKUP($A10,'10-5-16'!$A$4:$R$23,18,FALSE),0) -> 0 | Z10: 40
A11: =CONCATENATE('Skippers List'!B22," ",'Skippers List'!C22) -> 11791 Stephen Taylor | B11: 5 | C11: =IF(VLOOKUP($A11,'5-11-16'!$A$4:$R$23,18,FALSE)<>"",VLOOKUP($A11,'5-11-16'!$A$4:$R$23,18,FALSE),0) -> 0 | D11: =IF(VLOOKUP($A11,'5-18-16'!$A$4:$R$23,18,FALSE)<>"",VLOOKUP($A11,'5-18-16'!$A$4:$R$23,18,FALSE),0) -> 0 | E11: =IF(VLOOKUP($A11,'5-25-16'!$A$4:$R$23,18,FALSE)<>"",VLOOKUP($A11,'5-25-16'!$A$4:$R$23,18,FALSE),0) -> 0 | F11: =IF(VLOOKUP($A11,'6-1-16'!$A$4:$R$23,18,FALSE)<>"",VLOOKUP($A11,'6-1-16'!$A$4:$R$23,18,FALSE),0) -> 0 | G11: =IF(VLOOKUP($A11,'6-8-16'!$A$4:$R$23,18,FALSE)<>"",VLOOKUP($A11,'6-8-16'!$A$4:$R$23,18,FALSE),0) -> 0 | H11: =IF(VLOOKUP($A11,'6-15-16'!$A$4:$R$23,18,FALSE)<>"",VLOOKUP($A11,'6-15-16'!$A$4:$R$23,18,FALSE),0) -> 0 | I11: =IF(VLOOKUP($A11,'6-22-16'!$A$4:$R$23,18,FALSE)<>"",VLOOKUP($A11,'6-22-16'!$A$4:$R$23,18,FALSE),0) -> 12 | J11: =IF(VLOOKUP($A11,'6-29-16'!$A$4:$R$23,18,FALSE)<>"",VLOOKUP($A11,'6-29-16'!$A$4:$R$23,18,FALSE),0) -> 0 | K11: =IF(VLOOKUP($A11,'7-6-16'!$A$4:$R$23,18,FALSE)<>"",VLOOKUP($A11,'7-6-16'!$A$4:$R$23,18,FALSE),0) -> 0 | L11: =IF(VLOOKUP($A11,'7-13-16'!$A$4:$R$23,18,FALSE)<>"",VLOOKUP($A11,'7-13-16'!$A$4:$R$23,18,FALSE),0) -> 0 | M11: =IF(VLOOKUP($A11,'7-20-16'!$A$4:$R$23,18,FALSE)<>"",VLOOKUP($A11,'7-20-16'!$A$4:$R$23,18,FALSE),0) -> 25 | N11: =IF(VLOOKUP($A11,'7-27-16'!$A$4:$R$23,18,FALSE)<>"",VLOOKUP($A11,'7-27-16'!$A$4:$R$23,18,FALSE),0) -> 0 | O11: =IF(VLOOKUP($A11,'8-3-16'!$A$4:$R$23,18,FALSE)<>"",VLOOKUP($A11,'8-3-16'!$A$4:$R$23,18,FALSE),0) -> 0 | P11: =IF(VLOOKUP($A11,'8-10-16'!$A$4:$R$23,18,FALSE)<>"",VLOOKUP($A11,'8-10-16'!$A$4:$R$23,18,FALSE),0) -> 0 | Q11: =IF(VLOOKUP($A11,'8-17-16'!$A$4:$R$23,18,FALSE)<>"",VLOOKUP($A11,'8-17-16'!$A$4:$R$23,18,FALSE),0) -> 0 | R11: =IF(VLOOKUP($A11,'8-24-16'!$A$4:$R$23,18,FALSE)<>"",VLOOKUP($A11,'8-24-16'!$A$4:$R$23,18,FALSE),0) -> 27 | S11: =IF(VLOOKUP($A11,'8-31-16'!$A$4:$R$23,18,FALSE)<>"",VLOOKUP($A11,'8-31-16'!$A$4:$R$23,18,FALSE),0) -> 39 | T11: =IF(VLOOKUP($A11,'9-7-16'!$A$4:$R$23,18,FALSE)<>"",VLOOKUP($A11,'9-7-16'!$A$4:$R$23,18,FALSE),0) -> 0 | U11: =IF(VLOOKUP($A11,'9-14-16'!$A$4:$R$23,18,FALSE)<>"",VLOOKUP($A11,'9-14-16'!$A$4:$R$23,18,FALSE),0) -> 0 | V11: =IF(VLOOKUP($A11,'9-21-16'!$A$4:$R$23,18,FALSE)<>"",VLOOKUP($A11,'9-21-16'!$A$4:$R$23,18,FALSE),0) -> 0 | W11: =IF(VLOOKUP($A11,'9-28-16'!$A$4:$R$23,18,FALSE)<>"",VLOOKUP($A11,'9-28-16'!$A$4:$R$23,18,FALSE),0) -> 0 | X11: =IF(VLOOKUP($A11,'10-12-16'!$A$4:$R$23,18,FALSE)<>"",VLOOKUP($A11,'10-12-16'!$A$4:$R$23,18,FALSE),0) -> 0 | Y11: =IF(VLOOKUP($A11,'10-5-16'!$A$4:$R$23,18,FALSE)<>"",VLOOKUP($A11,'10-5-16'!$A$4:$R$23,18,FALSE),0) -> 0 | Z11: 103
A12: =CONCATENATE('Skippers List'!B23," ",'Skippers List'!C23) -> 13030 Lee Peterson | B12: 1 | C12: =IF(VLOOKUP($A12,'5-11-16'!$A$4:$R$23,18,FALSE)<>"",VLOOKUP($A12,'5-11-16'!$A$4:$R$23,18,FALSE),0) -> 0 | D12: =IF(VLOOKUP($A12,'5-18-16'!$A$4:$R$23,18,FALSE)<>"",VLOOKUP($A12,'5-18-16'!$A$4:$R$23,18,FALSE),0) -> 0 | E12: =IF(VLOOKUP($A12,'5-25-16'!$A$4:$R$23,18,FALSE)<>"",VLOOKUP($A12,'5-25-16'!$A$4:$R$23,18,FALSE),0) -> 0 | F12: =IF(VLOOKUP($A12,'6-1-16'!$A$4:$R$23,18,FALSE)<>"",VLOOKUP($A12,'6-1-16'!$A$4:$R$23,18,FALSE),0) -> 21.5 | G12: =IF(VLOOKUP($A12,'6-8-16'!$A$4:$R$23,18,FALSE)<>"",VLOOKUP($A12,'6-8-16'!$A$4:$R$23,18,FALSE),0) -> 0 | H12: =IF(VLOOKUP($A12,'6-15-16'!$A$4:$R$23,18,FALSE)<>"",VLOOKUP($A12,'6-15-16'!$A$4:$R$23,18,FALSE),0) -> 0 | I12: =IF(VLOOKUP($A12,'6-22-16'!$A$4:$R$23,18,FALSE)<>"",VLOOKUP($A12,'6-22-16'!$A$4:$R$23,18,FALSE),0) -> 18 | J12: =IF(VLOOKUP($A12,'6-29-16'!$A$4:$R$23,18,FALSE)<>"",VLOOKUP($A12,'6-29-16'!$A$4:$R$23,18,FALSE),0) -> 38 | K12: =IF(VLOOKUP($A12,'7-6-16'!$A$4:$R$23,18,FALSE)<>"",VLOOKUP($A12,'7-6-16'!$A$4:$R$23,18,FALSE),0) -> 20.5 | L12: =IF(VLOOKUP($A12,'7-13-16'!$A$4:$R$23,18,FALSE)<>"",VLOOKUP($A12,'7-13-16'!$A$4:$R$23,18,FALSE),0) -> 40 | M12: =IF(VLOOKUP($A12,'7-20-16'!$A$4:$R$23,18,FALSE)<>"",VLOOKUP($A12,'7-20-16'!$A$4:$R$23,18,FALSE),0) -> 39.5 | N12: =IF(VLOOKUP($A12,'7-27-16'!$A$4:$R$23,18,FALSE)<>"",VLOOKUP($A12,'7-27-16'!$A$4:$R$23,18,FALSE),0) -> 0 | O12: =IF(VLOOKUP($A12,'8-3-16'!$A$4:$R$23,18,FALSE)<>"",VLOOKUP($A12,'8-3-16'!$A$4:$R$23,18,FALSE),0) -> 0 | P12: =IF(VLOOKUP($A12,'8-10-16'!$A$4:$R$23,18,FALSE)<>"",VLOOKUP($A12,'8-10-16'!$A$4:$R$23,18,FALSE),0) -> 0 | Q12: =IF(VLOOKUP($A12,'8-17-16'!$A$4:$R$23,18,FALSE)<>"",VLOOKUP($A12,'8-17-16'!$A$4:$R$23,18,FALSE),0) -> 0 | R12: =IF(VLOOKUP($A12,'8-24-16'!$A$4:$R$23,18,FALSE)<>"",VLOOKUP($A12,'8-24-16'!$A$4:$R$23,18,FALSE),0) -> 36 | S12: =IF(VLOOKUP($A12,'8-31-16'!$A$4:$R$23,18,FALSE)<>"",VLOOKUP($A12,'8-31-16'!$A$4:$R$23,18,FALSE),0) -> 51 | T12: =IF(VLOOKUP($A12,'9-7-16'!$A$4:$R$23,18,FALSE)<>"",VLOOKUP($A12,'9-7-16'!$A$4:$R$23,18,FALSE),0) -> 0 | U12: =IF(VLOOKUP($A12,'9-14-16'!$A$4:$R$23,18,FALSE)<>"",VLOOKUP($A12,'9-14-16'!$A$4:$R$23,18,FALSE),0) -> 0 | V12: =IF(VLOOKUP($A12,'9-21-16'!$A$4:$R$23,18,FALSE)<>"",VLOOKUP($A12,'9-21-16'!$A$4:$R$23,18,FALSE),0) -> 0 | W12: =IF(VLOOKUP($A12,'9-28-16'!$A$4:$R$23,18,FALSE)<>"",VLOOKUP($A12,'9-28-16'!$A$4:$R$23,18,FALSE),0) -> 0 | X12: =IF(VLOOKUP($A12,'10-12-16'!$A$4:$R$23,18,FALSE)<>"",VLOOKUP($A12,'10-12-16'!$A$4:$R$23,18,FALSE),0) -> 0 | Y12: =IF(VLOOKUP($A12,'10-5-16'!$A$4:$R$23,18,FALSE)<>"",VLOOKUP($A12,'10-5-16'!$A$4:$R$23,18,FALSE),0) -> 0 | Z12: 264.5
A13: =CONCATENATE('Skippers List'!B24," ",'Skippers List'!C24) -> Chas Schelin | C13: =IF(VLOOKUP($A13,'5-11-16'!$A$4:$R$23,18,FALSE)<>"",VLOOKUP($A13,'5-11-16'!$A$4:$R$23,18,FALSE),0) -> 0 | D13: =IF(VLOOKUP($A13,'5-18-16'!$A$4:$R$23,18,FALSE)<>"",VLOOKUP($A13,'5-18-16'!$A$4:$R$23,18,FALSE),0) -> 0 | E13: =IF(VLOOKUP($A13,'5-25-16'!$A$4:$R$23,18,FALSE)<>"",VLOOKUP($A13,'5-25-16'!$A$4:$R$23,18,FALSE),0) -> 0 | F13: =IF(VLOOKUP($A13,'6-1-16'!$A$4:$R$23,18,FALSE)<>"",VLOOKUP($A13,'6-1-16'!$A$4:$R$23,18,FALSE),0) -> 0 | G13: =IF(VLOOKUP($A13,'6-8-16'!$A$4:$R$23,18,FALSE)<>"",VLOOKUP($A13,'6-8-16'!$A$4:$R$23,18,FALSE),0) -> 0 | H13: =IF(VLOOKUP($A13,'6-15-16'!$A$4:$R$23,18,FALSE)<>"",VLOOKUP($A13,'6-15-16'!$A$4:$R$23,18,FALSE),0) -> 0 | I13: =IF(VLOOKUP($A13,'6-22-16'!$A$4:$R$23,18,FALSE)<>"",VLOOKUP($A13,'6-22-16'!$A$4:$R$23,18,FALSE),0) -> 0 | J13: =IF(VLOOKUP($A13,'6-29-16'!$A$4:$R$23,18,FALSE)<>"",VLOOKUP($A13,'6-29-16'!$A$4:$R$23,18,FALSE),0) -> 0 | K13: =IF(VLOOKUP($A13,'7-6-16'!$A$4:$R$23,18,FALSE)<>"",VLOOKUP($A13,'7-6-16'!$A$4:$R$23,18,FALSE),0) -> 0 | L13: =IF(VLOOKUP($A13,'7-13-16'!$A$4:$R$23,18,FALSE)<>"",VLOOKUP($A13,'7-13-16'!$A$4:$R$23,18,FALSE),0) -> 0 | M13: =IF(VLOOKUP($A13,'7-20-16'!$A$4:$R$23,18,FALSE)<>"",VLOOKUP($A13,'7-20-16'!$A$4:$R$23,18,FALSE),0) -> 0 | N13: =IF(VLOOKUP($A13,'7-27-16'!$A$4:$R$23,18,FALSE)<>"",VLOOKUP($A13,'7-27-16'!$A$4:$R$23,18,FALSE),0) -> 0 | O13: =IF(VLOOKUP($A13,'8-3-16'!$A$4:$R$23,18,FALSE)<>"",VLOOKUP($A13,'8-3-16'!$A$4:$R$23,18,FALSE),0) -> 0 | P13: =IF(VLOOKUP($A13,'8-10-16'!$A$4:$R$23,18,FALSE)<>"",VLOOKUP($A13,'8-10-16'!$A$4:$R$23,18,FALSE),0) -> 0 | Q13: =IF(VLOOKUP($A13,'8-17-16'!$A$4:$R$23,18,FALSE)<>"",VLOOKUP($A13,'8-17-16'!$A$4:$R$23,18,FALSE),0) -> 0 | R13: =IF(VLOOKUP($A13,'8-24-16'!$A$4:$R$23,18,FALSE)<>"",VLOOKUP($A13,'8-24-16'!$A$4:$R$23,18,FALSE),0) -> 0 | S13: =IF(VLOOKUP($A13,'8-31-16'!$A$4:$R$23,18,FALSE)<>"",VLOOKUP($A13,'8-31-16'!$A$4:$R$23,18,FALSE),0) -> 0 | T13: =IF(VLOOKUP($A13,'9-7-16'!$A$4:$R$23,18,FALSE)<>"",VLOOKUP($A13,'9-7-16'!$A$4:$R$23,18,FALSE),0) -> 0 | U13: =IF(VLOOKUP($A13,'9-14-16'!$A$4:$R$23,18,FALSE)<>"",VLOOKUP($A13,'9-14-16'!$A$4:$R$23,18,FALSE),0) -> 0 | V13: =IF(VLOOKUP($A13,'9-21-16'!$A$4:$R$23,18,FALSE)<>"",VLOOKUP($A13,'9-21-16'!$A$4:$R$23,18,FALSE),0) -> 0 | W13: =IF(VLOOKUP($A13,'9-28-16'!$A$4:$R$23,18,FALSE)<>"",VLOOKUP($A13,'9-28-16'!$A$4:$R$23,18,FALSE),0) -> 0 | X13: =IF(VLOOKUP($A13,'10-12-16'!$A$4:$R$23,18,FALSE)<>"",VLOOKUP($A13,'10-12-16'!$A$4:$R$23,18,FALSE),0) -> 0 | Y13: =IF(VLOOKUP($A13,'10-5-16'!$A$4:$R$23,18,FALSE)<>"",VLOOKUP($A13,'10-5-16'!$A$4:$R$23,18,FALSE),0) -> 0 | Z13: 0
A14: =CONCATENATE('Skippers List'!B25," ",'Skippers List'!C25) -> Claudia Schneller | C14: =IF(VLOOKUP($A14,'5-11-16'!$A$4:$R$23,18,FALSE)<>"",VLOOKUP($A14,'5-11-16'!$A$4:$R$23,18,FALSE),0) -> 0 | D14: =IF(VLOOKUP($A14,'5-18-16'!$A$4:$R$23,18,FALSE)<>"",VLOOKUP($A14,'5-18-16'!$A$4:$R$23,18,FALSE),0) -> 0 | E14: =IF(VLOOKUP($A14,'5-25-16'!$A$4:$R$23,18,FALSE)<>"",VLOOKUP($A14,'5-25-16'!$A$4:$R$23,18,FALSE),0) -> 0 | F14: =IF(VLOOKUP($A14,'6-1-16'!$A$4:$R$23,18,FALSE)<>"",VLOOKUP($A14,'6-1-16'!$A$4:$R$23,18,FALSE),0) -> 0 | G14: =IF(VLOOKUP($A14,'6-8-16'!$A$4:$R$23,18,FALSE)<>"",VLOOKUP($A14,'6-8-16'!$A$4:$R$23,18,FALSE),0) -> 0 | H14: =IF(VLOOKUP($A14,'6-15-16'!$A$4:$R$23,18,FALSE)<>"",VLOOKUP($A14,'6-15-16'!$A$4:$R$23,18,FALSE),0) -> 0 | I14: =IF(VLOOKUP($A14,'6-22-16'!$A$4:$R$23,18,FALSE)<>"",VLOOKUP($A14,'6-22-16'!$A$4:$R$23,18,FALSE),0) -> 0 | J14: =IF(VLOOKUP($A14,'6-29-16'!$A$4:$R$23,18,FALSE)<>"",VLOOKUP($A14,'6-29-16'!$A$4:$R$23,18,FALSE),0) -> 0 | K14: =IF(VLOOKUP($A14,'7-6-16'!$A$4:$R$23,18,FALSE)<>"",VLOOKUP($A14,'7-6-16'!$A$4:$R$23,18,FALSE),0) -> 0 | L14: =IF(VLOOKUP($A14,'7-13-16'!$A$4:$R$23,18,FALSE)<>"",VLOOKUP($A14,'7-13-16'!$A$4:$R$23,18,FALSE),0) -> 0 | M14: =IF(VLOOKUP($A14,'7-20-16'!$A$4:$R$23,18,FALSE)<>"",VLOOKUP($A14,'7-20-16'!$A$4:$R$23,18,FALSE),0) -> 0 | N14: =IF(VLOOKUP($A14,'7-27-16'!$A$4:$R$23,18,FALSE)<>"",VLOOKUP($A14,'7-27-16'!$A$4:$R$23,18,FALSE),0) -> 0 | O14: =IF(VLOOKUP($A14,'8-3-16'!$A$4:$R$23,18,FALSE)<>"",VLOOKUP($A14,'8-3-16'!$A$4:$R$23,18,FALSE),0) -> 0 | P14: =IF(VLOOKUP($A14,'8-10-16'!$A$4:$R$23,18,FALSE)<>"",VLOOKUP($A14,'8-10-16'!$A$4:$R$23,18,FALSE),0) -> 0 | Q14: =IF(VLOOKUP($A14,'8-17-16'!$A$4:$R$23,18,FALSE)<>"",VLOOKUP($A14,'8-17-16'!$A$4:$R$23,18,FALSE),0) -> 0 | R14: =IF(VLOOKUP($A14,'8-24-16'!$A$4:$R$23,18,FALSE)<>"",VLOOKUP($A14,'8-24-16'!$A$4:$R$23,18,FALSE),0) -> 0 | S14: =IF(VLOOKUP($A14,'8-31-16'!$A$4:$R$23,18,FALSE)<>"",VLOOKUP($A14,'8-31-16'!$A$4:$R$23,18,FALSE),0) -> 0 | T14: =IF(VLOOKUP($A14,'9-7-16'!$A$4:$R$23,18,FALSE)<>"",VLOOKUP($A14,'9-7-16'!$A$4:$R$23,18,FALSE),0) -> 0 | U14: =IF(VLOOKUP($A14,'9-14-16'!$A$4:$R$23,18,FALSE)<>"",VLOOKUP($A14,'9-14-16'!$A$4:$R$23,18,FALSE),0) -> 0 | V14: =IF(VLOOKUP($A14,'9-21-16'!$A$4:$R$23,18,FALSE)<>"",VLOOKUP($A14,'9-21-16'!$A$4:$R$23,18,FALSE),0) -> 0 | W14: =IF(VLOOKUP($A14,'9-28-16'!$A$4:$R$23,18,FALSE)<>"",VLOOKUP($A14,'9-28-16'!$A$4:$R$23,18,FALSE),0) -> 0 | X14: =IF(VLOOKUP($A14,'10-12-16'!$A$4:$R$23,18,FALSE)<>"",VLOOKUP($A14,'10-12-16'!$A$4:$R$23,18,FALSE),0) -> 0 | Y14: =IF(VLOOKUP($A14,'10-5-16'!$A$4:$R$23,18,FALSE)<>"",VLOOKUP($A14,'10-5-16'!$A$4:$R$23,18,FALSE),0) -> 0 | Z14: 0
A15: =CONCATENATE('Skippers List'!B26," ",'Skippers List'!C26) -> Craig/Ellen Cutting | C15: =IF(VLOOKUP($A15,'5-11-16'!$A$4:$R$23,18,FALSE)<>"",VLOOKUP($A15,'5-11-16'!$A$4:$R$23,18,FALSE),0) -> 0 | D15: =IF(VLOOKUP($A15,'5-18-16'!$A$4:$R$23,18,FALSE)<>"",VLOOKUP($A15,'5-18-16'!$A$4:$R$23,18,FALSE),0) -> 0 | E15: =IF(VLOOKUP($A15,'5-25-16'!$A$4:$R$23,18,FALSE)<>"",VLOOKUP($A15,'5-25-16'!$A$4:$R$23,18,FALSE),0) -> 0 | F15: =IF(VLOOKUP($A15,'6-1-16'!$A$4:$R$23,18,FALSE)<>"",VLOOKUP($A15,'6-1-16'!$A$4:$R$23,18,FALSE),0) -> 0 | G15: =IF(VLOOKUP($A15,'6-8-16'!$A$4:$R$23,18,FALSE)<>"",VLOOKUP($A15,'6-8-16'!$A$4:$R$23,18,FALSE),0) -> 0 | H15: =IF(VLOOKUP($A15,'6-15-16'!$A$4:$R$23,18,FALSE)<>"",VLOOKUP($A15,'6-15-16'!$A$4:$R$23,18,FALSE),0) -> 0 | I15: =IF(VLOOKUP($A15,'6-22-16'!$A$4:$R$23,18,FALSE)<>"",VLOOKUP($A15,'6-22-16'!$A$4:$R$23,18,FALSE),0) -> 0 | J15: =IF(VLOOKUP($A15,'6-29-16'!$A$4:$R$23,18,FALSE)<>"",VLOOKUP($A15,'6-29-16'!$A$4:$R$23,18,FALSE),0) -> 0 | K15: =IF(VLOOKUP($A15,'7-6-16'!$A$4:$R$23,18,FALSE)<>"",VLOOKUP($A15,'7-6-16'!$A$4:$R$23,18,FALSE),0) -> 0 | L15: =IF(VLOOKUP($A15,'7-13-16'!$A$4:$R$23,18,FALSE)<>"",VLOOKUP($A15,'7-13-16'!$A$4:$R$23,18,FALSE),0) -> 0 | M15: =IF(VLOOKUP($A15,'7-20-16'!$A$4:$R$23,18,FALSE)<>"",VLOOKUP($A15,'7-20-16'!$A$4:$R$23,18,FALSE),0) -> 0 | N15: =IF(VLOOKUP($A15,'7-27-16'!$A$4:$R$23,18,FALSE)<>"",VLOOKUP($A15,'7-27-16'!$A$4:$R$23,18,FALSE),0) -> 0 | O15: =IF(VLOOKUP($A15,'8-3-16'!$A$4:$R$23,18,FALSE)<>"",VLOOKUP($A15,'8-3-16'!$A$4:$R$23,18,FALSE),0) -> 0 | P15: =IF(VLOOKUP($A15,'8-10-16'!$A$4:$R$23,18,FALSE)<>"",VLOOKUP($A15,'8-10-16'!$A$4:$R$23,18,FALSE),0) -> 0 | Q15: =IF(VLOOKUP($A15,'8-17-16'!$A$4:$R$23,18,FALSE)<>"",VLOOKUP($A15,'8-17-16'!$A$4:$R$23,18,FALSE),0) -> 0 | R15: =IF(VLOOKUP($A15,'8-24-16'!$A$4:$R$23,18,FALSE)<>"",VLOOKUP($A15,'8-24-16'!$A$4:$R$23,18,FALSE),0) -> 0 | S15: =IF(VLOOKUP($A15,'8-31-16'!$A$4:$R$23,18,FALSE)<>"",VLOOKUP($A15,'8-31-16'!$A$4:$R$23,18,FALSE),0) -> 0 | T15: =IF(VLOOKUP($A15,'9-7-16'!$A$4:$R$23,18,FALSE)<>"",VLOOKUP($A15,'9-7-16'!$A$4:$R$23,18,FALSE),0) -> 0 | U15: =IF(VLOOKUP($A15,'9-14-16'!$A$4:$R$23,18,FALSE)<>"",VLOOKUP($A15,'9-14-16'!$A$4:$R$23,18,FALSE),0) -> 0 | V15: =IF(VLOOKUP($A15,'9-21-16'!$A$4:$R$23,18,FALSE)<>"",VLOOKUP($A15,'9-21-16'!$A$4:$R$23,18,FALSE),0) -> 0 | W15: =IF(VLOOKUP($A15,'9-28-16'!$A$4:$R$23,18,FALSE)<>"",VLOOKUP($A15,'9-28-16'!$A$4:$R$23,18,FALSE),0) -> 0 | X15: =IF(VLOOKUP($A15,'10-12-16'!$A$4:$R$23,18,FALSE)<>"",VLOOKUP($A15,'10-12-16'!$A$4:$R$23,18,FALSE),0) -> 0 | Y15: =IF(VLOOKUP($A15,'10-5-16'!$A$4:$R$23,18,FALSE)<>"",VLOOKUP($A15,'10-5-16'!$A$4:$R$23,18,FALSE),0) -> 0 | Z15: 0
A16: =CONCATENATE('Skippers List'!B27," ",'Skippers List'!C27) -> Dane Lamb | C16: =IF(VLOOKUP($A16,'5-11-16'!$A$4:$R$23,18,FALSE)<>"",VLOOKUP($A16,'5-11-16'!$A$4:$R$23,18,FALSE),0) -> 0 | D16: =IF(VLOOKUP($A16,'5-18-16'!$A$4:$R$23,18,FALSE)<>"",VLOOKUP($A16,'5-18-16'!$A$4:$R$23,18,FALSE),0) -> 0 | E16: =IF(VLOOKUP($A16,'5-25-16'!$A$4:$R$23,18,FALSE)<>"",VLOOKUP($A16,'5-25-16'!$A$4:$R$23,18,FALSE),0) -> 0 | F16: =IF(VLOOKUP($A16,'6-1-16'!$A$4:$R$23,18,FALSE)<>"",VLOOKUP($A16,'6-1-16'!$A$4:$R$23,18,FALSE),0) -> 0 | G16: =IF(VLOOKUP($A16,'6-8-16'!$A$4:$R$23,18,FALSE)<>"",VLOOKUP($A16,'6-8-16'!$A$4:$R$23,18,FALSE),0) -> 0 | H16: =IF(VLOOKUP($A16,'6-15-16'!$A$4:$R$23,18,FALSE)<>"",VLOOKUP($A16,'6-15-16'!$A$4:$R$23,18,FALSE),0) -> 0 | I16: =IF(VLOOKUP($A16,'6-22-16'!$A$4:$R$23,18,FALSE)<>"",VLOOKUP($A16,'6-22-16'!$A$4:$R$23,18,FALSE),0) -> 0 | J16: =IF(VLOOKUP($A16,'6-29-16'!$A$4:$R$23,18,FALSE)<>"",VLOOKUP($A16,'6-29-16'!$A$4:$R$23,18,FALSE),0) -> 0 | K16: =IF(VLOOKUP($A16,'7-6-16'!$A$4:$R$23,18,FALSE)<>"",VLOOKUP($A16,'7-6-16'!$A$4:$R$23,18,FALSE),0) -> 0 | L16: =IF(VLOOKUP($A16,'7-13-16'!$A$4:$R$23,18,FALSE)<>"",VLOOKUP($A16,'7-13-16'!$A$4:$R$23,18,FALSE),0) -> 0 | M16: =IF(VLOOKUP($A16,'7-20-16'!$A$4:$R$23,18,FALSE)<>"",VLOOKUP($A16,'7-20-16'!$A$4:$R$23,18,FALSE),0) -> 0 | N16: =IF(VLOOKUP($A16,'7-27-16'!$A$4:$R$23,18,FALSE)<>"",VLOOKUP($A16,'7-27-16'!$A$4:$R$23,18,FALSE),0) -> 0 | O16: =IF(VLOOKUP($A16,'8-3-16'!$A$4:$R$23,18,FALSE)<>"",VLOOKUP($A16,'8-3-16'!$A$4:$R$23,18,FALSE),0) -> 0 | P16: =IF(VLOOKUP($A16,'8-10-16'!$A$4:$R$23,18,FALSE)<>"",VLOOKUP($A16,'8-10-16'!$A$4:$R$23,18,FALSE),0) -> 0 | Q16: =IF(VLOOKUP($A16,'8-17-16'!$A$4:$R$23,18,FALSE)<>"",VLOOKUP($A16,'8-17-16'!$A$4:$R$23,18,FALSE),0) -> 0 | R16: =IF(VLOOKUP($A16,'8-24-16'!$A$4:$R$23,18,FALSE)<>"",VLOOKUP($A16,'8-24-16'!$A$4:$R$23,18,FALSE),0) -> 0 | S16: =IF(VLOOKUP($A16,'8-31-16'!$A$4:$R$23,18,FALSE)<>"",VLOOKUP($A16,'8-31-16'!$A$4:$R$23,18,FALSE),0) -> 0 | T16: =IF(VLOOKUP($A16,'9-7-16'!$A$4:$R$23,18,FALSE)<>"",VLOOKUP($A16,'9-7-16'!$A$4:$R$23,18,FALSE),0) -> 0 | U16: =IF(VLOOKUP($A16,'9-14-16'!$A$4:$R$23,18,FALSE)<>"",VLOOKUP($A16,'9-14-16'!$A$4:$R$23,18,FALSE),0) -> 0 | V16: =IF(VLOOKUP($A16,'9-21-16'!$A$4:$R$23,18,FALSE)<>"",VLOOKUP($A16,'9-21-16'!$A$4:$R$23,18,FALSE),0) -> 0 | W16: =IF(VLOOKUP($A16,'9-28-16'!$A$4:$R$23,18,FALSE)<>"",VLOOKUP($A16,'9-28-16'!$A$4:$R$23,18,FALSE),0) -> 0 | X16: =IF(VLOOKUP($A16,'10-12-16'!$A$4:$R$23,18,FALSE)<>"",VLOOKUP($A16,'10-12-16'!$A$4:$R$23,18,FALSE),0) -> 0 | Y16: =IF(VLOOKUP($A16,'10-5-16'!$A$4:$R$23,18,FALSE)<>"",VLOOKUP($A16,'10-5-16'!$A$4:$R$23,18,FALSE),0) -> 0 | Z16: 0
A17: =CONCATENATE('Skippers List'!B28," ",'Skippers List'!C28) -> Don Anderson (Mouette) | C17: =IF(VLOOKUP($A17,'5-11-16'!$A$4:$R$23,18,FALSE)<>"",VLOOKUP($A17,'5-11-16'!$A$4:$R$23,18,FALSE),0) -> 0 | D17: =IF(VLOOKUP($A17,'5-18-16'!$A$4:$R$23,18,FALSE)<>"",VLOOKUP($A17,'5-18-16'!$A$4:$R$23,18,FALSE),0) -> 0 | E17: =IF(VLOOKUP($A17,'5-25-16'!$A$4:$R$23,18,FALSE)<>"",VLOOKUP($A17,'5-25-16'!$A$4:$R$23,18,FALSE),0) -> 0 | F17: =IF(VLOOKUP($A17,'6-1-16'!$A$4:$R$23,18,FALSE)<>"",VLOOKUP($A17,'6-1-16'!$A$4:$R$23,18,FALSE),0) -> 0 | G17: =IF(VLOOKUP($A17,'6-8-16'!$A$4:$R$23,18,FALSE)<>"",VLOOKUP($A17,'6-8-16'!$A$4:$R$23,18,FALSE),0) -> 0 | H17: =IF(VLOOKUP($A17,'6-15-16'!$A$4:$R$23,18,FALSE)<>"",VLOOKUP($A17,'6-15-16'!$A$4:$R$23,18,FALSE),0) -> 0 | I17: =IF(VLOOKUP($A17,'6-22-16'!$A$4:$R$23,18,FALSE)<>"",VLOOKUP($A17,'6-22-16'!$A$4:$R$23,18,FALSE),0) -> 0 | J17: =IF(VLOOKUP($A17,'6-29-16'!$A$4:$R$23,18,FALSE)<>"",VLOOKUP($A17,'6-29-16'!$A$4:$R$23,18,FALSE),0) -> 0 | K17: =IF(VLOOKUP($A17,'7-6-16'!$A$4:$R$23,18,FALSE)<>"",VLOOKUP($A17,'7-6-16'!$A$4:$R$23,18,FALSE),0) -> 0 | L17: =IF(VLOOKUP($A17,'7-13-16'!$A$4:$R$23,18,FALSE)<>"",VLOOKUP($A17,'7-13-16'!$A$4:$R$23,18,FALSE),0) -> 0 | M17: =IF(VLOOKUP($A17,'7-20-16'!$A$4:$R$23,18,FALSE)<>"",VLOOKUP($A17,'7-20-16'!$A$4:$R$23,18,FALSE),0) -> 0 | N17: =IF(VLOOKUP($A17,'7-27-16'!$A$4:$R$23,18,FALSE)<>"",VLOOKUP($A17,'7-27-16'!$A$4:$R$23,18,FALSE),0) -> 0 | O17: =IF(VLOOKUP($A17,'8-3-16'!$A$4:$R$23,18,FALSE)<>"",VLOOKUP($A17,'8-3-16'!$A$4:$R$23,18,FALSE),0) -> 0 | P17: =IF(VLOOKUP($A17,'8-10-16'!$A$4:$R$23,18,FALSE)<>"",VLOOKUP($A17,'8-10-16'!$A$4:$R$23,18,FALSE),0) -> 0 | Q17: =IF(VLOOKUP($A17,'8-17-16'!$A$4:$R$23,18,FALSE)<>"",VLOOKUP($A17,'8-17-16'!$A$4:$R$23,18,FALSE),0) -> 0 | R17: =IF(VLOOKUP($A17,'8-24-16'!$A$4:$R$23,18,FALSE)<>"",VLOOKUP($A17,'8-24-16'!$A$4:$R$23,18,FALSE),0) -> 0 | S17: =IF(VLOOKUP($A17,'8-31-16'!$A$4:$R$23,18,FALSE)<>"",VLOOKUP($A17,'8-31-16'!$A$4:$R$23,18,FALSE),0) -> 0 | T17: =IF(VLOOKUP($A17,'9-7-16'!$A$4:$R$23,18,FALSE)<>"",VLOOKUP($A17,'9-7-16'!$A$4:$R$23,18,FALSE),0) -> 0 | U17: =IF(VLOOKUP($A17,'9-14-16'!$A$4:$R$23,18,FALSE)<>"",VLOOKUP($A17,'9-14-16'!$A$4:$R$23,18,FALSE),0) -> 0 | V17: =IF(VLOOKUP($A17,'9-21-16'!$A$4:$R$23,18,FALSE)<>"",VLOOKUP($A17,'9-21-16'!$A$4:$R$23,18,FALSE),0) -> 0 | W17: =IF(VLOOKUP($A17,'9-28-16'!$A$4:$R$23,18,FALSE)<>"",VLOOKUP($A17,'9-28-16'!$A$4:$R$23,18,FALSE),0) -> 0 | X17: =IF(VLOOKUP($A17,'10-12-16'!$A$4:$R$23,18,FALSE)<>"",VLOOKUP($A17,'10-12-16'!$A$4:$R$23,18,FALSE),0) -> 0 | Y17: =IF(VLOOKUP($A17,'10-5-16'!$A$4:$R$23,18,FALSE)<>"",VLOOKUP($A17,'10-5-16'!$A$4:$R$23,18,FALSE),0) -> 0 | Z17: 0
A18: =CONCATENATE('Skippers List'!B29," ",'Skippers List'!C29) -> Ginny Wintersteen | C18: =IF(VLOOKUP($A18,'5-11-16'!$A$4:$R$23,18,FALSE)<>"",VLOOKUP($A18,'5-11-16'!$A$4:$R$23,18,FALSE),0) -> 0 | D18: =IF(VLOOKUP($A18,'5-18-16'!$A$4:$R$23,18,FALSE)<>"",VLOOKUP($A18,'5-18-16'!$A$4:$R$23,18,FALSE),0) -> 0 | E18: =IF(VLOOKUP($A18,'5-25-16'!$A$4:$R$23,18,FALSE)<>"",VLOOKUP($A18,'5-25-16'!$A$4:$R$23,18,FALSE),0) -> 0 | F18: =IF(VLOOKUP($A18,'6-1-16'!$A$4:$R$23,18,FALSE)<>"",VLOOKUP($A18,'6-1-16'!$A$4:$R$23,18,FALSE),0) -> 0 | G18: =IF(VLOOKUP($A18,'6-8-16'!$A$4:$R$23,18,FALSE)<>"",VLOOKUP($A18,'6-8-16'!$A$4:$R$23,18,FALSE),0) -> 0 | H18: =IF(VLOOKUP($A18,'6-15-16'!$A$4:$R$23,18,FALSE)<>"",VLOOKUP($A18,'6-15-16'!$A$4:$R$23,18,FALSE),0) -> 0 | I18: =IF(VLOOKUP($A18,'6-22-16'!$A$4:$R$23,18,FALSE)<>"",VLOOKUP($A18,'6-22-16'!$A$4:$R$23,18,FALSE),0) -> 0 | J18: =IF(VLOOKUP($A18,'6-29-16'!$A$4:$R$23,18,FALSE)<>"",VLOOKUP($A18,'6-29-16'!$A$4:$R$23,18,FALSE),0) -> 0 | K18: =IF(VLOOKUP($A18,'7-6-16'!$A$4:$R$23,18,FALSE)<>"",VLOOKUP($A18,'7-6-16'!$A$4:$R$23,18,FALSE),0) -> 0 | L18: =IF(VLOOKUP($A18,'7-13-16'!$A$4:$R$23,18,FALSE)<>"",VLOOKUP($A18,'7-13-16'!$A$4:$R$23,18,FALSE),0) -> 0 | M18: =IF(VLOOKUP($A18,'7-20-16'!$A$4:$R$23,18,FALSE)<>"",VLOOKUP($A18,'7-20-16'!$A$4:$R$23,18,FALSE),0) -> 0 | N18: =IF(VLOOKUP($A18,'7-27-16'!$A$4:$R$23,18,FALSE)<>"",VLOOKUP($A18,'7-27-16'!$A$4:$R$23,18,FALSE),0) -> 0 | O18: =IF(VLOOKUP($A18,'8-3-16'!$A$4:$R$23,18,FALSE)<>"",VLOOKUP($A18,'8-3-16'!$A$4:$R$23,18,FALSE),0) -> 0 | P18: =IF(VLOOKUP($A18,'8-10-16'!$A$4:$R$23,18,FALSE)<>"",VLOOKUP($A18,'8-10-16'!$A$4:$R$23,18,FALSE),0) -> 0 | Q18: =IF(VLOOKUP($A18,'8-17-16'!$A$4:$R$23,18,FALSE)<>"",VLOOKUP($A18,'8-17-16'!$A$4:$R$23,18,FALSE),0) -> 0 | R18: =IF(VLOOKUP($A18,'8-24-16'!$A$4:$R$23,18,FALSE)<>"",VLOOKUP($A18,'8-24-16'!$A$4:$R$23,18,FALSE),0) -> 0 | S18: =IF(VLOOKUP($A18,'8-31-16'!$A$4:$R$23,18,FALSE)<>"",VLOOKUP($A18,'8-31-16'!$A$4:$R$23,18,FALSE),0) -> 0 | T18: =IF(VLOOKUP($A18,'9-7-16'!$A$4:$R$23,18,FALSE)<>"",VLOOKUP($A18,'9-7-16'!$A$4:$R$23,18,FALSE),0) -> 0 | U18: =IF(VLOOKUP($A18,'9-14-16'!$A$4:$R$23,18,FALSE)<>"",VLOOKUP($A18,'9-14-16'!$A$4:$R$23,18,FALSE),0) -> 0 | V18: =IF(VLOOKUP($A18,'9-21-16'!$A$4:$R$23,18,FALSE)<>"",VLOOKUP($A18,'9-21-16'!$A$4:$R$23,18,FALSE),0) -> 0 | W18: =IF(VLOOKUP($A18,'9-28-16'!$A$4:$R$23,18,FALSE)<>"",VLOOKUP($A18,'9-28-16'!$A$4:$R$23,18,FALSE),0) -> 0 | X18: =IF(VLOOKUP($A18,'10-12-16'!$A$4:$R$23,18,FALSE)<>"",VLOOKUP($A18,'10-12-16'!$A$4:$R$23,18,FALSE),0) -> 0 | Y18: =IF(VLOOKUP($A18,'10-5-16'!$A$4:$R$23,18,FALSE)<>"",VLOOKUP($A18,'10-5-16'!$A$4:$R$23,18,FALSE),0) -> 0 | Z18: 0
A19: =CONCATENATE('Skippers List'!B30," ",'Skippers List'!C30) -> 3011 Karl Maas | C19: =IF(VLOOKUP($A19,'5-11-16'!$A$4:$R$23,18,FALSE)<>"",VLOOKUP($A19,'5-11-16'!$A$4:$R$23,18,FALSE),0) -> 0 | D19: =IF(VLOOKUP($A19,'5-18-16'!$A$4:$R$23,18,FALSE)<>"",VLOOKUP($A19,'5-18-16'!$A$4:$R$23,18,FALSE),0) -> 0 | E19: =IF(VLOOKUP($A19,'5-25-16'!$A$4:$R$23,18,FALSE)<>"",VLOOKUP($A19,'5-25-16'!$A$4:$R$23,18,FALSE),0) -> 0 | F19: =IF(VLOOKUP($A19,'6-1-16'!$A$4:$R$23,18,FALSE)<>"",VLOOKUP($A19,'6-1-16'!$A$4:$R$23,18,FALSE),0) -> 0 | G19: =IF(VLOOKUP($A19,'6-8-16'!$A$4:$R$23,18,FALSE)<>"",VLOOKUP($A19,'6-8-16'!$A$4:$R$23,18,FALSE),0) -> 0 | H19: =IF(VLOOKUP($A19,'6-15-16'!$A$4:$R$23,18,FALSE)<>"",VLOOKUP($A19,'6-15-16'!$A$4:$R$23,18,FALSE),0) -> 0 | I19: =IF(VLOOKUP($A19,'6-22-16'!$A$4:$R$23,18,FALSE)<>"",VLOOKUP($A19,'6-22-16'!$A$4:$R$23,18,FALSE),0) -> 0 | J19: =IF(VLOOKUP($A19,'6-29-16'!$A$4:$R$23,18,FALSE)<>"",VLOOKUP($A19,'6-29-16'!$A$4:$R$23,18,FALSE),0) -> 0 | K19: =IF(VLOOKUP($A19,'7-6-16'!$A$4:$R$23,18,FALSE)<>"",VLOOKUP($A19,'7-6-16'!$A$4:$R$23,18,FALSE),0) -> 0 | L19: =IF(VLOOKUP($A19,'7-13-16'!$A$4:$R$23,18,FALSE)<>"",VLOOKUP($A19,'7-13-16'!$A$4:$R$23,18,FALSE),0) -> 0 | M19: =IF(VLOOKUP($A19,'7-20-16'!$A$4:$R$23,18,FALSE)<>"",VLOOKUP($A19,'7-20-16'!$A$4:$R$23,18,FALSE),0) -> 0 | N19: =IF(VLOOKUP($A19,'7-27-16'!$A$4:$R$23,18,FALSE)<>"",VLOOKUP($A19,'7-27-16'!$A$4:$R$23,18,FALSE),0) -> 0 | O19: =IF(VLOOKUP($A19,'8-3-16'!$A$4:$R$23,18,FALSE)<>"",VLOOKUP($A19,'8-3-16'!$A$4:$R$23,18,FALSE),0) -> 0 | P19: =IF(VLOOKUP($A19,'8-10-16'!$A$4:$R$23,18,FALSE)<>"",VLOOKUP($A19,'8-10-16'!$A$4:$R$23,18,FALSE),0) -> 0 | Q19: =IF(VLOOKUP($A19,'8-17-16'!$A$4:$R$23,18,FALSE)<>"",VLOOKUP($A19,'8-17-16'!$A$4:$R$23,18,FALSE),0) -> 0 | R19: =IF(VLOOKUP($A19,'8-24-16'!$A$4:$R$23,18,FALSE)<>"",VLOOKUP($A19,'8-24-16'!$A$4:$R$23,18,FALSE),0) -> 0 | S19: =IF(VLOOKUP($A19,'8-31-16'!$A$4:$R$23,18,FALSE)<>"",VLOOKUP($A19,'8-31-16'!$A$4:$R$23,18,FALSE),0) -> 0 | T19: =IF(VLOOKUP($A19,'9-7-16'!$A$4:$R$23,18,FALSE)<>"",VLOOKUP($A19,'9-7-16'!$A$4:$R$23,18,FALSE),0) -> 0 | U19: =IF(VLOOKUP($A19,'9-14-16'!$A$4:$R$23,18,FALSE)<>"",VLOOKUP($A19,'9-14-16'!$A$4:$R$23,18,FALSE),0) -> 0 | V19: =IF(VLOOKUP($A19,'9-21-16'!$A$4:$R$23,18,FALSE)<>"",VLOOKUP($A19,'9-21-16'!$A$4:$R$23,18,FALSE),0) -> 0 | W19: =IF(VLOOKUP($A19,'9-28-16'!$A$4:$R$23,18,FALSE)<>"",VLOOKUP($A19,'9-28-16'!$A$4:$R$23,18,FALSE),0) -> 0 | X19: =IF(VLOOKUP($A19,'10-12-16'!$A$4:$R$23,18,FALSE)<>"",VLOOKUP($A19,'10-12-16'!$A$4:$R$23,18,FALSE),0) -> 0 | Y19: =IF(VLOOKUP($A19,'10-5-16'!$A$4:$R$23,18,FALSE)<>"",VLOOKUP($A19,'10-5-16'!$A$4:$R$23,18,FALSE),0) -> 0 | Z19: 0
A20: =CONCATENATE('Skippers List'!B31," ",'Skippers List'!C31) -> Paul Krause | C20: =IF(VLOOKUP($A20,'5-11-16'!$A$4:$R$23,18,FALSE)<>"",VLOOKUP($A20,'5-11-16'!$A$4:$R$23,18,FALSE),0) -> 0 | D20: =IF(VLOOKUP($A20,'5-18-16'!$A$4:$R$23,18,FALSE)<>"",VLOOKUP($A20,'5-18-16'!$A$4:$R$23,18,FALSE),0) -> 0 | E20: =IF(VLOOKUP($A20,'5-25-16'!$A$4:$R$23,18,FALSE)<>"",VLOOKUP($A20,'5-25-16'!$A$4:$R$23,18,FALSE),0) -> 0 | F20: =IF(VLOOKUP($A20,'6-1-16'!$A$4:$R$23,18,FALSE)<>"",VLOOKUP($A20,'6-1-16'!$A$4:$R$23,18,FALSE),0) -> 0 | G20: =IF(VLOOKUP($A20,'6-8-16'!$A$4:$R$23,18,FALSE)<>"",VLOOKUP($A20,'6-8-16'!$A$4:$R$23,18,FALSE),0) -> 0 | H20: =IF(VLOOKUP($A20,'6-15-16'!$A$4:$R$23,18,FALSE)<>"",VLOOKUP($A20,'6-15-16'!$A$4:$R$23,18,FALSE),0) -> 0 | I20: =IF(VLOOKUP($A20,'6-22-16'!$A$4:$R$23,18,FALSE)<>"",VLOOKUP($A20,'6-22-16'!$A$4:$R$23,18,FALSE),0) -> 0 | J20: =IF(VLOOKUP($A20,'6-29-16'!$A$4:$R$23,18,FALSE)<>"",VLOOKUP($A20,'6-29-16'!$A$4:$R$23,18,FALSE),0) -> 0 | K20: =IF(VLOOKUP($A20,'7-6-16'!$A$4:$R$23,18,FALSE)<>"",VLOOKUP($A20,'7-6-16'!$A$4:$R$23,18,FALSE),0) -> 0 | L20: =IF(VLOOKUP($A20,'7-13-16'!$A$4:$R$23,18,FALSE)<>"",VLOOKUP($A20,'7-13-16'!$A$4:$R$23,18,FALSE),0) -> 0 | M20: =IF(VLOOKUP($A20,'7-20-16'!$A$4:$R$23,18,FALSE)<>"",VLOOKUP($A20,'7-20-16'!$A$4:$R$23,18,FALSE),0) -> 0 | N20: =IF(VLOOKUP($A20,'7-27-16'!$A$4:$R$23,18,FALSE)<>"",VLOOKUP($A20,'7-27-16'!$A$4:$R$23,18,FALSE),0) -> 0 | O20: =IF(VLOOKUP($A20,'8-3-16'!$A$4:$R$23,18,FALSE)<>"",VLOOKUP($A20,'8-3-16'!$A$4:$R$23,18,FALSE),0) -> 0 | P20: =IF(VLOOKUP($A20,'8-10-16'!$A$4:$R$23,18,FALSE)<>"",VLOOKUP($A20,'8-10-16'!$A$4:$R$23,18,FALSE),0) -> 0 | Q20: =IF(VLOOKUP($A20,'8-17-16'!$A$4:$R$23,18,FALSE)<>"",VLOOKUP($A20,'8-17-16'!$A$4:$R$23,18,FALSE),0) -> 0 | R20: =IF(VLOOKUP($A20,'8-24-16'!$A$4:$R$23,18,FALSE)<>"",VLOOKUP($A20,'8-24-16'!$A$4:$R$23,18,FALSE),0) -> 0 | S20: =IF(VLOOKUP($A20,'8-31-16'!$A$4:$R$23,18,FALSE)<>"",VLOOKUP($A20,'8-31-16'!$A$4:$R$23,18,FALSE),0) -> 0 | T20: =IF(VLOOKUP($A20,'9-7-16'!$A$4:$R$23,18,FALSE)<>"",VLOOKUP($A20,'9-7-16'!$A$4:$R$23,18,FALSE),0) -> 0 | U20: =IF(VLOOKUP($A20,'9-14-16'!$A$4:$R$23,18,FALSE)<>"",VLOOKUP($A20,'9-14-16'!$A$4:$R$23,18,FALSE),0) -> 0 | V20: =IF(VLOOKUP($A20,'9-21-16'!$A$4:$R$23,18,FALSE)<>"",VLOOKUP($A20,'9-21-16'!$A$4:$R$23,18,FALSE),0) -> 0 | W20: =IF(VLOOKUP($A20,'9-28-16'!$A$4:$R$23,18,FALSE)<>"",VLOOKUP($A20,'9-28-16'!$A$4:$R$23,18,FALSE),0) -> 0 | X20: =IF(VLOOKUP($A20,'10-12-16'!$A$4:$R$23,18,FALSE)<>"",VLOOKUP($A20,'10-12-16'!$A$4:$R$23,18,FALSE),0) -> 0 | Y20: =IF(VLOOKUP($A20,'10-5-16'!$A$4:$R$23,18,FALSE)<>"",VLOOKUP($A20,'10-5-16'!$A$4:$R$23,18,FALSE),0) -> 0 | Z20: 0
A21: =CONCATENATE('Skippers List'!B32," ",'Skippers List'!C32) -> Scott Iverson | C21: =IF(VLOOKUP($A21,'5-11-16'!$A$4:$R$23,18,FALSE)<>"",VLOOKUP($A21,'5-11-16'!$A$4:$R$23,18,FALSE),0) -> 0 | D21: =IF(VLOOKUP($A21,'5-18-16'!$A$4:$R$23,18,FALSE)<>"",VLOOKUP($A21,'5-18-16'!$A$4:$R$23,18,FALSE),0) -> 0 | E21: =IF(VLOOKUP($A21,'5-25-16'!$A$4:$R$23,18,FALSE)<>"",VLOOKUP($A21,'5-25-16'!$A$4:$R$23,18,FALSE),0) -> 0 | F21: =IF(VLOOKUP($A21,'6-1-16'!$A$4:$R$23,18,FALSE)<>"",VLOOKUP($A21,'6-1-16'!$A$4:$R$23,18,FALSE),0) -> 0 | G21: =IF(VLOOKUP($A21,'6-8-16'!$A$4:$R$23,18,FALSE)<>"",VLOOKUP($A21,'6-8-16'!$A$4:$R$23,18,FALSE),0) -> 0 | H21: =IF(VLOOKUP($A21,'6-15-16'!$A$4:$R$23,18,FALSE)<>"",VLOOKUP($A21,'6-15-16'!$A$4:$R$23,18,FALSE),0) -> 0 | I21: =IF(VLOOKUP($A21,'6-22-16'!$A$4:$R$23,18,FALSE)<>"",VLOOKUP($A21,'6-22-16'!$A$4:$R$23,18,FALSE),0) -> 0 | J21: =IF(VLOOKUP($A21,'6-29-16'!$A$4:$R$23,18,FALSE)<>"",VLOOKUP($A21,'6-29-16'!$A$4:$R$23,18,FALSE),0) -> 0 | K21: =IF(VLOOKUP($A21,'7-6-16'!$A$4:$R$23,18,FALSE)<>"",VLOOKUP($A21,'7-6-16'!$A$4:$R$23,18,FALSE),0) -> 0 | L21: =IF(VLOOKUP($A21,'7-13-16'!$A$4:$R$23,18,FALSE)<>"",VLOOKUP($A21,'7-13-16'!$A$4:$R$23,18,FALSE),0) -> 0 | M21: =IF(VLOOKUP($A21,'7-20-16'!$A$4:$R$23,18,FALSE)<>"",VLOOKUP($A21,'7-20-16'!$A$4:$R$23,18,FALSE),0) -> 0 | N21: =IF(VLOOKUP($A21,'7-27-16'!$A$4:$R$23,18,FALSE)<>"",VLOOKUP($A21,'7-27-16'!$A$4:$R$23,18,FALSE),0) -> 0 | O21: =IF(VLOOKUP($A21,'8-3-16'!$A$4:$R$23,18,FALSE)<>"",VLOOKUP($A21,'8-3-16'!$A$4:$R$23,18,FALSE),0) -> 0 | P21: =IF(VLOOKUP($A21,'8-10-16'!$A$4:$R$23,18,FALSE)<>"",VLOOKUP($A21,'8-10-16'!$A$4:$R$23,18,FALSE),0) -> 0 | Q21: =IF(VLOOKUP($A21,'8-17-16'!$A$4:$R$23,18,FALSE)<>"",VLOOKUP($A21,'8-17-16'!$A$4:$R$23,18,FALSE),0) -> 0 | R21: =IF(VLOOKUP($A21,'8-24-16'!$A$4:$R$23,18,FALSE)<>"",VLOOKUP($A21,'8-24-16'!$A$4:$R$23,18,FALSE),0) -> 0 | S21: =IF(VLOOKUP($A21,'8-31-16'!$A$4:$R$23,18,FALSE)<>"",VLOOKUP($A21,'8-31-16'!$A$4:$R$23,18,FALSE),0) -> 0 | T21: =IF(VLOOKUP($A21,'9-7-16'!$A$4:$R$23,18,FALSE)<>"",VLOOKUP($A21,'9-7-16'!$A$4:$R$23,18,FALSE),0) -> 0 | U21: =IF(VLOOKUP($A21,'9-14-16'!$A$4:$R$23,18,FALSE)<>"",VLOOKUP($A21,'9-14-16'!$A$4:$R$23,18,FALSE),0) -> 0 | V21: =IF(VLOOKUP($A21,'9-21-16'!$A$4:$R$23,18,FALSE)<>"",VLOOKUP($A21,'9-21-16'!$A$4:$R$23,18,FALSE),0) -> 0 | W21: =IF(VLOOKUP($A21,'9-28-16'!$A$4:$R$23,18,FALSE)<>"",VLOOKUP($A21,'9-28-16'!$A$4:$R$23,18,FALSE),0) -> 0 | X21: =IF(VLOOKUP($A21,'10-12-16'!$A$4:$R$23,18,FALSE)<>"",VLOOKUP($A21,'10-12-16'!$A$4:$R$23,18,FALSE),0) -> 0 | Y21: =IF(VLOOKUP($A21,'10-5-16'!$A$4:$R$23,18,FALSE)<>"",VLOOKUP($A21,'10-5-16'!$A$4:$R$23,18,FALSE),0) -> 0 | Z21: 0
A22: =CONCATENATE('Skippers List'!B33," ",'Skippers List'!C33) -> Tom Dubisar | C22: =IF(VLOOKUP($A22,'5-11-16'!$A$4:$R$23,18,FALSE)<>"",VLOOKUP($A22,'5-11-16'!$A$4:$R$23,18,FALSE),0) -> 0 | D22: =IF(VLOOKUP($A22,'5-18-16'!$A$4:$R$23,18,FALSE)<>"",VLOOKUP($A22,'5-18-16'!$A$4:$R$23,18,FALSE),0) -> 0 | E22: =IF(VLOOKUP($A22,'5-25-16'!$A$4:$R$23,18,FALSE)<>"",VLOOKUP($A22,'5-25-16'!$A$4:$R$23,18,FALSE),0) -> 0 | F22: =IF(VLOOKUP($A22,'6-1-16'!$A$4:$R$23,18,FALSE)<>"",VLOOKUP($A22,'6-1-16'!$A$4:$R$23,18,FALSE),0) -> 0 | G22: =IF(VLOOKUP($A22,'6-8-16'!$A$4:$R$23,18,FALSE)<>"",VLOOKUP($A22,'6-8-16'!$A$4:$R$23,18,FALSE),0) -> 0 | H22: =IF(VLOOKUP($A22,'6-15-16'!$A$4:$R$23,18,FALSE)<>"",VLOOKUP($A22,'6-15-16'!$A$4:$R$23,18,FALSE),0) -> 0 | I22: =IF(VLOOKUP($A22,'6-22-16'!$A$4:$R$23,18,FALSE)<>"",VLOOKUP($A22,'6-22-16'!$A$4:$R$23,18,FALSE),0) -> 0 | J22: =IF(VLOOKUP($A22,'6-29-16'!$A$4:$R$23,18,FALSE)<>"",VLOOKUP($A22,'6-29-16'!$A$4:$R$23,18,FALSE),0) -> 0 | K22: =IF(VLOOKUP($A22,'7-6-16'!$A$4:$R$23,18,FALSE)<>"",VLOOKUP($A22,'7-6-16'!$A$4:$R$23,18,FALSE),0) -> 0 | L22: =IF(VLOOKUP($A22,'7-13-16'!$A$4:$R$23,18,FALSE)<>"",VLOOKUP($A22,'7-13-16'!$A$4:$R$23,18,FALSE),0) -> 0 | M22: =IF(VLOOKUP($A22,'7-20-16'!$A$4:$R$23,18,FALSE)<>"",VLOOKUP($A22,'7-20-16'!$A$4:$R$23,18,FALSE),0) -> 0 | N22: =IF(VLOOKUP($A22,'7-27-16'!$A$4:$R$23,18,FALSE)<>"",VLOOKUP($A22,'7-27-16'!$A$4:$R$23,18,FALSE),0) -> 0 | O22: =IF(VLOOKUP($A22,'8-3-16'!$A$4:$R$23,18,FALSE)<>"",VLOOKUP($A22,'8-3-16'!$A$4:$R$23,18,FALSE),0) -> 0 | P22: =IF(VLOOKUP($A22,'8-10-16'!$A$4:$R$23,18,FALSE)<>"",VLOOKUP($A22,'8-10-16'!$A$4:$R$23,18,FALSE),0) -> 0 | Q22: =IF(VLOOKUP($A22,'8-17-16'!$A$4:$R$23,18,FALSE)<>"",VLOOKUP($A22,'8-17-16'!$A$4:$R$23,18,FALSE),0) -> 0 | R22: =IF(VLOOKUP($A22,'8-24-16'!$A$4:$R$23,18,FALSE)<>"",VLOOKUP($A22,'8-24-16'!$A$4:$R$23,18,FALSE),0) -> 0 | S22: =IF(VLOOKUP($A22,'8-31-16'!$A$4:$R$23,18,FALSE)<>"",VLOOKUP($A22,'8-31-16'!$A$4:$R$23,18,FALSE),0) -> 0 | T22: =IF(VLOOKUP($A22,'9-7-16'!$A$4:$R$23,18,FALSE)<>"",VLOOKUP($A22,'9-7-16'!$A$4:$R$23,18,FALSE),0) -> 0 | U22: =IF(VLOOKUP($A22,'9-14-16'!$A$4:$R$23,18,FALSE)<>"",VLOOKUP($A22,'9-14-16'!$A$4:$R$23,18,FALSE),0) -> 0 | V22: =IF(VLOOKUP($A22,'9-21-16'!$A$4:$R$23,18,FALSE)<>"",VLOOKUP($A22,'9-21-16'!$A$4:$R$23,18,FALSE),0) -> 0 | W22: =IF(VLOOKUP($A22,'9-28-16'!$A$4:$R$23,18,FALSE)<>"",VLOOKUP($A22,'9-28-16'!$A$4:$R$23,18,FALSE),0) -> 0 | X22: =IF(VLOOKUP($A22,'10-12-16'!$A$4:$R$23,18,FALSE)<>"",VLOOKUP($A22,'10-12-16'!$A$4:$R$23,18,FALSE),0) -> 0 | Y22: =IF(VLOOKUP($A22,'10-5-16'!$A$4:$R$23,18,FALSE)<>"",VLOOKUP($A22,'10-5-16'!$A$4:$R$23,18,FALSE),0) -> 0 | Z22: 0
A23: =CONCATENATE('Skippers List'!B34," ",'Skippers List'!C34) -> Andy Plzak | B23: 6 | C23: =IF(VLOOKUP($A23,'5-11-16'!$A$4:$R$23,18,FALSE)<>"",VLOOKUP($A23,'5-11-16'!$A$4:$R$23,18,FALSE),0) -> 0 | D23: =IF(VLOOKUP($A23,'5-18-16'!$A$4:$R$23,18,FALSE)<>"",VLOOKUP($A23,'5-18-16'!$A$4:$R$23,18,FALSE),0) -> 0 | E23: =IF(VLOOKUP($A23,'5-25-16'!$A$4:$R$23,18,FALSE)<>"",VLOOKUP($A23,'5-25-16'!$A$4:$R$23,18,FALSE),0) -> 0 | F23: =IF(VLOOKUP($A23,'6-1-16'!$A$4:$R$23,18,FALSE)<>"",VLOOKUP($A23,'6-1-16'!$A$4:$R$23,18,FALSE),0) -> 0 | G23: =IF(VLOOKUP($A23,'6-8-16'!$A$4:$R$23,18,FALSE)<>"",VLOOKUP($A23,'6-8-16'!$A$4:$R$23,18,FALSE),0) -> 0 | H23: =IF(VLOOKUP($A23,'6-15-16'!$A$4:$R$23,18,FALSE)<>"",VLOOKUP($A23,'6-15-16'!$A$4:$R$23,18,FALSE),0) -> 0 | I23: =IF(VLOOKUP($A23,'6-22-16'!$A$4:$R$23,18,FALSE)<>"",VLOOKUP($A23,'6-22-16'!$A$4:$R$23,18,FALSE),0) -> 0 | J23: =IF(VLOOKUP($A23,'6-29-16'!$A$4:$R$23,18,FALSE)<>"",VLOOKUP($A23,'6-29-16'!$A$4:$R$23,18,FALSE),0) -> 0 | K23: =IF(VLOOKUP($A23,'7-6-16'!$A$4:$R$23,18,FALSE)<>"",VLOOKUP($A23,'7-6-16'!$A$4:$R$23,18,FALSE),0) -> 0 | L23: =IF(VLOOKUP($A23,'7-13-16'!$A$4:$R$23,18,FALSE)<>"",VLOOKUP($A23,'7-13-16'!$A$4:$R$23,18,FALSE),0) -> 0 | M23: =IF(VLOOKUP($A23,'7-20-16'!$A$4:$R$23,18,FALSE)<>"",VLOOKUP($A23,'7-20-16'!$A$4:$R$23,18,FALSE),0) -> 0 | N23: =IF(VLOOKUP($A23,'7-27-16'!$A$4:$R$23,18,FALSE)<>"",VLOOKUP($A23,'7-27-16'!$A$4:$R$23,18,FALSE),0) -> 0 | O23: =IF(VLOOKUP($A23,'8-3-16'!$A$4:$R$23,18,FALSE)<>"",VLOOKUP($A23,'8-3-16'!$A$4:$R$23,18,FALSE),0) -> 0 | P23: =IF(VLOOKUP($A23,'8-10-16'!$A$4:$R$23,18,FALSE)<>"",VLOOKUP($A23,'8-10-16'!$A$4:$R$23,18,FALSE),0) -> 0 | Q23: =IF(VLOOKUP($A23,'8-17-16'!$A$4:$R$23,18,FALSE)<>"",VLOOKUP($A23,'8-17-16'!$A$4:$R$23,18,FALSE),0) -> 0 | R23: =IF(VLOOKUP($A23,'8-24-16'!$A$4:$R$23,18,FALSE)<>"",VLOOKUP($A23,'8-24-16'!$A$4:$R$23,18,FALSE),0) -> 39 | S23: =IF(VLOOKUP($A23,'8-31-16'!$A$4:$R$23,18,FALSE)<>"",VLOOKUP($A23,'8-31-16'!$A$4:$R$23,18,FALSE),0) -> 35 | T23: =IF(VLOOKUP($A23,'9-7-16'!$A$4:$R$23,18,FALSE)<>"",VLOOKUP($A23,'9-7-16'!$A$4:$R$23,18,FALSE),0) -> 0 | U23: =IF(VLOOKUP($A23,'9-14-16'!$A$4:$R$23,18,FALSE)<>"",VLOOKUP($A23,'9-14-16'!$A$4:$R$23,18,FALSE),0) -> 0 | V23: =IF(VLOOKUP($A23,'9-21-16'!$A$4:$R$23,18,FALSE)<>"",VLOOKUP($A23,'9-21-16'!$A$4:$R$23,18,FALSE),0) -> 0 | W23: =IF(VLOOKUP($A23,'9-28-16'!$A$4:$R$23,18,FALSE)<>"",VLOOKUP($A23,'9-28-16'!$A$4:$R$23,18,FALSE),0) -> 0 | X23: =IF(VLOOKUP($A23,'10-12-16'!$A$4:$R$23,18,FALSE)<>"",VLOOKUP($A23,'10-12-16'!$A$4:$R$23,18,FALSE),0) -> 0 | Y23: =IF(VLOOKUP($A23,'10-5-16'!$A$4:$R$23,18,FALSE)<>"",VLOOKUP($A23,'10-5-16'!$A$4:$R$23,18,FALSE),0) -> 0 | Z23: 74
